Workbook

Sheet Inicio
C65531: Formula Hoy() | D65531: =+TODAY() -> 2024-10-01
C65532: Fecha Caducidad | D65532: 2024-12-31 | E65532: =+D65532-D65531 -> 91

Sheet Calculo
B1: RENTAS ASEGURADAS FONDITEL
B3: CALCULO DE RENTAS MENSUALES VITALICIAS
I4: 0.01
B5: METER DATOS | E5: RESULTADOS OBTENIDOS | I5: 0.0008
B6: Apellidos | C6: MILLAN OUTEIRAL
B7: Nombre | C7: SALVADOR | F7: =+F8-F10 -> -6.357042683e-05 | K7: Interes Año | L7: Interes Mes | M7: FactActualiz
B8: F. Efecto: | C8: 2031-01-01 | F8: 0.003456772551 | H8: G. Interna | I8: 0.015 | K8: =+VLOOKUP(C15+C19,B23:C28,2) -> 0.0211 | L8: =+(1+K8)^(1/12)-1 -> 0.001741554546 | M8: =1/(1+L8) -> 0.9982614732
B9: F. Inicio Renta: | C9: 2031-01-01 | E9: Resultados Opción 1) | H9: Comision | I9: 0.0095 | J9: =+(1+I9)^(1/12)-1 -> 0.0007882403959 | K9: =+(1+K8)*(1-I9)-1 -> 0.01139955 | L9: =+(1+L8)*(1-J9)-1 -> 0.0009519413865 | M9: =1/(1+L9) -> 0.9990489639
B10: F. Nacimiento: | C10: 1964-01-01 | E10: Renta mensual: | F10: =+C17/(O13+T13) -> 0.003520342978
B11: F. Conyuge: | E11: Renta Anual | F11: =+F10*12 -> 0.04224411574 | W11: Renta Unitaria | X11: Reserva | Y11: Renta | Z11: Renta Unitaria | AB11: Renta Unitaria | AE11: Renta Total
B12: Sexo: | C12: 2 | E12: Resultados Opción 2) | H12: Fecha de Calculo | I12: Periodo | J12: Edad | K12: Edad Cony | L12: Px | M12: Py | N12: Renta x | O12: Reserva x | P12: Comision | Q12: Renta y | R12: Reserva y | S12: Reserva xy | T12: Reversion | U12: Comision y | V12: Comision xy | W12: Decreciente | X12: Antares | Y12: Decreciente | Z12: Reversion Decreciente | AA12: Reseva y | AB12: Conjunta Decreciente | AC12: Reserva xy | AD12: Reversion | AE12: Antares
B13: Reversion Renta | C13: 0 | E13: Prima Unica: | F13: =+F10*(O13+T13) -> 1 | H13: =+DATE(YEAR(C8),MONTH(C8),1) -> 2031-01-01 | I13: 1 | J13: =+IF(I13="","",ROUND((YEAR($H13)-YEAR($C$10)+(MONTH($H13)-MONTH($C$10))/12+(DAY($H13)-DAY($C$10))/365)*365,0)/365) -> 67 | K13: =+IF(J13="","",ROUND((YEAR($H13)-YEAR($C$11)+(MONTH($H13)-MONTH($C$11))/12+(DAY($H13)-DAY($C$11))/365)*365,0)/365) -> 131.0027397 | L13: =+IF(I13="",0,VLOOKUP(J13,TB_GEN,3+$C$12)) -> 0.9997449591 | M13: =+IF(I13="",0,VLOOKUP(K13,TB_GEN,7+$F$18)) -> 0.7343513224 | N13: =+IF(I13="",0,IF(H13<DATE(YEAR($C$9),MONTH($C$9),1),0,(1+$C$14)^(YEAR(H13)-YEAR($C$9)))) -> 1 | O13: =+(O14*$L13+N13*$L13/(1-$I$8))*$M$9 -> 284.0632308 | P13: =+IF(O13=0,0,O13/L13*(1+$L$8)*$J$9) -> 0.2243572855 | Q13: =+N13*$C$13 -> 0 | R13: =+(R14*$M13+Q13*$M13/(1-$I$8))*$M$9 -> 0 | S13: =+(S14*L13*$M13+Q13*L13*$M13/(1-$I$8))*$M$9 -> 0 | T13: =+R13-S13 -> 0 | U13: =+IF(R13=0,0,R13/M13*(1+$L$8)*$J$9) -> 0 | V13: =+IF(S13=0,0,S13/(L13*M13)*(1+$L$8)*$J$9) -> 0 | W13: =+IF(P13=0,0,N13+P13*(1-$I$8)) -> 1.220991926 | X13: =+(W13/(1-$I$8)+X14)*L13*$M$8 -> 284.0632308 | Y13: =+W13*$F$10 -> 0.004298310354 | Z13: =+Q13+U13*(1-$I$8) -> 0 | AA13: =+(AA14+Z13/(1-$I$8))*M13*$M$8 -> 0 | AB13: =+Q13+V13*(1-$I$8) -> 0 | AC13: =+(AC14+AB13/(1-$I$8))*L13*M13*$M$8 -> 0 | AD13: =+AA13-AC13 -> 0 | AE13: =+W13*$C$18+(Z13-AB13)*$C$18 -> 0.004298310354
B14: Crecimiento | C14: 0 | H14: =+IF(I14="","",DATE(YEAR(H13),MONTH(H13)+1,1)) -> 2031-02-01 | I14: =+IF(OR(I13="",I13=$C$19+$C$15),"",I13+1) -> 2 | J14: =+IF(I14="","",ROUND((YEAR(H14)-YEAR($C$10)+(MONTH(H14)-MONTH($C$10))/12+(DAY(H14)-DAY($C$10))/365)*365,0)/365) -> 67.08219178 | K14: 131.0849315 | L14: =+IF(I14="",0,VLOOKUP(J14,TB_GEN,3+$C$12)) -> 0.9997449591 | M14: =+IF(I14="",0,VLOOKUP(K14,TB_GEN,7+$F$18)) -> 0.7343513224 | N14: =+IF(I14="",0,IF(H14<DATE(YEAR($C$9),MONTH($C$9),1),0,(1+$C$14)^(YEAR(H14)-YEAR($C$9)))) -> 1 | O14: =+(O15*L14+N14*L14/(1-$I$8))*$M$9 -> 283.3909492 | P14: 0.2238263076 | Q14: 0 | R14: =+(R15*$M14+Q14*$M14/(1-$I$8))*$M$9 -> 0 | S14: =+(S15*L14*$M14+Q14*L14*$M14/(1-$I$8))*$M$9 -> 0 | T14: =+R14-S14 -> 0 | U14: =+IF(R14=0,0,R14/M14*(1+$L$8)*$J$9) -> 0 | V14: =+IF(S14=0,0,S14/(L14*M14)*(1+$L$8)*$J$9) -> 0 | W14: =+IF(P14=0,0,N14+P14*(1-$I$8)) -> 1.220468913 | X14: =+(W14/(1-$I$8)+X15)*L14*$M$8 -> 283.3909492 | Y14: =+W14*$F$10 -> 0.004296469168 | Z14: =+Q14+U14*(1-$I$8) -> 0 | AA14: 0 | AB14: =+Q14+V14*(1-$I$8) -> 0 | AC14: 0 | AD14: =+AA14-AC14 -> 0 | AE14: =+W14*$C$18+(Z14-AB14)*$C$18 -> 0.004296469168
B15: Diferimiento Renta en meses (0 para inmediatas) | C15: =+DAYS360(DATE(YEAR(C8),MONTH(C8),1),DATE(YEAR(C9),MONTH(C9),1))/30 -> 0 | H15: 2031-03-01 | I15: =+IF(OR(I14="",I14=$C$19+$C$15),"",I14+1) -> 3 | J15: 67.16712329 | K15: 131.169863 | L15: =+IF(I15="",0,VLOOKUP(J15,TB_GEN,3+$C$12)) -> 0.9997449591 | M15: =+IF(I15="",0,VLOOKUP(K15,TB_GEN,7+$F$18)) -> 0.7343513224 | N15: 1 | O15: 282.7178559 | P15: 0.2232946887 | Q15: 0 | R15: 0 | S15: 0 | T15: 0 | U15: 0 | V15: 0 | W15: 1.219945268 | X15: 282.7178559 | Y15: =+W15*$F$10 -> 0.004294625759 | Z15: 0 | AA15: 0 | AB15: 0 | AC15: 0 | AD15: =+AA15-AC15 -> 0 | AE15: =+W15*$C$18+(Z15-AB15)*$C$18 -> 0.004294625759
B16: Elegir una Opción (1 ó 2) | E16: Apellidos Conyuge: | H16: 2031-04-01 | I16: 4 | J16: 67.24931507 | K16: 131.2520548 | L16: 0.9997449591 | M16: =+IF(I16="",0,VLOOKUP(K16,TB_GEN,7+$F$18)) -> 0.7343513224 | N16: 1 | O16: 282.0439499 | P16: 0.222762428 | Q16: 0 | R16: 0 | S16: 0 | T16: 0 | U16: 0 | V16: 0 | W16: 1.219420992 | X16: 282.0439499 | Y16: 0.004292780125 | Z16: 0 | AA16: 0 | AB16: 0 | AC16: 0 | AD16: =+AA16-AC16 -> 0 | AE16: 0.004292780125
B17: 1)Prima Unica: | C17: 1 | E17: Nombre Nombre: | H17: 2031-05-01 | I17: 5 | J17: 67.33424658 | K17: 131.3369863 | L17: 0.9997449591 | M17: 0.7343513224 | N17: 1 | O17: 281.3692304 | P17: 0.2222295246 | Q17: 0 | R17: 0 | S17: 0 | T17: 0 | U17: 0 | V17: 0 | W17: 1.218896082 | X17: 281.3692304 | Y17: 0.004290932262 | Z17: 0 | AA17: 0 | AB17: 0 | AC17: 0 | AD17: 0 | AE17: 0.004290932262
B18: 2)Renta Mensual: | C18: =+F10 -> 0.003520342978 | E18: Sexo Conyuge: | H18: 2031-06-01 | I18: 6 | J18: 67.41643836 | K18: 131.4191781 | L18: 0.9997449591 | M18: 0.7343513224 | N18: 1 | O18: 280.6936963 | P18: 0.2216959779 | Q18: 0 | R18: 0 | S18: 0 | T18: 0 | U18: 0 | V18: 0 | W18: 1.218370538 | X18: 280.6936963 | Y18: 0.004289082169 | Z18: 0 | AA18: 0 | AB18: 0 | AC18: 0 | AD18: 0 | AE18: 0.004289082169
B19: Duración Renta en meses | C19: 999 | E19: F. Fin Renta: | F19: =+_xll.FIN.MES(C9,C19-1) -> 2114-03-31 | H19: 2031-07-01 | I19: 7 | J19: 67.50136986 | K19: 131.5041096 | L19: 0.9997449591 | M19: 0.7343513224 | N19: 1 | O19: 280.0173466 | P19: 0.2211617871 | Q19: 0 | R19: 0 | S19: 0 | T19: 0 | U19: 0 | V19: 0 | W19: 1.21784436 | X19: 280.0173466 | Y19: 0.004287229842 | Z19: 0 | AA19: 0 | AB19: 0 | AC19: 0 | AD19: 0 | AE19: 0.004287229842
H20: 2031-08-01 | I20: 8 | J20: 67.58356164 | K20: 131.5863014 | L20: 0.9997449591 | M20: 0.7343513224 | N20: 1 | O20: 279.3401804 | P20: 0.2206269513 | Q20: 0 | R20: 0 | S20: 0 | T20: 0 | U20: 0 | V20: 0 | W20: 1.217317547 | X20: 279.3401804 | Y20: 0.004285375279 | Z20: 0 | AA20: 0 | AB20: 0 | AC20: 0 | AD20: 0 | AE20: 0.004285375279
B21: TIPO DE INTERES VIGENTES | H21: 2031-09-01 | I21: 9 | J21: 67.66575342 | K21: 131.6684932 | L21: 0.9997449591 | M21: 0.7343513224 | N21: 1 | O21: 278.6621966 | P21: 0.2200914698 | Q21: 0 | R21: 0 | S21: 0 | T21: 0 | U21: 0 | V21: 0 | W21: 1.216790098 | X21: 278.6621966 | Y21: 0.004283518477 | Z21: 0 | AA21: 0 | AB21: 0 | AC21: 0 | AD21: 0 | AE21: 0.004283518477
B22: Duracion Meses | C22: Interes | H22: 2031-10-01 | I22: 10 | J22: 67.75068493 | K22: 131.7534247 | L22: 0.9997449591 | M22: 0.7343513224 | N22: 1 | O22: 277.9833943 | P22: 0.2195553419 | Q22: 0 | R22: 0 | S22: 0 | T22: 0 | U22: 0 | V22: 0 | W22: 1.216262012 | X22: 277.9833943 | Y22: 0.004281659433 | Z22: 0 | AA22: 0 | AB22: 0 | AC22: 0 | AD22: 0 | AE22: 0.004281659433
B23: 0 | C23: 0.0251 | H23: 2031-11-01 | I23: 11 | J23: 67.83287671 | K23: 131.8356164 | L23: 0.9997449591 | M23: 0.7343513224 | N23: 1 | O23: 277.3037726 | P23: 0.2190185667 | Q23: 0 | R23: 0 | S23: 0 | T23: 0 | U23: 0 | V23: 0 | W23: 1.215733288 | X23: 277.3037726 | Y23: 0.004279798144 | Z23: 0 | AA23: 0 | AB23: 0 | AC23: 0 | AD23: 0 | AE23: 0.004279798144
B24: 13 | C24: 0.0192 | H24: 2031-12-01 | I24: 12 | J24: 67.91780822 | K24: 131.9205479 | L24: 0.9997449591 | M24: 0.7343513224 | N24: 1 | O24: 276.6233303 | P24: 0.2184811434 | Q24: 0 | R24: 0 | S24: 0 | T24: 0 | U24: 0 | V24: 0 | W24: 1.215203926 | X24: 276.6233303 | Y24: 0.004277934609 | Z24: 0 | AA24: 0 | AB24: 0 | AC24: 0 | AD24: 0 | AE24: 0.004277934609
B25: 37 | C25: 0.019 | H25: 2032-01-01 | I25: 13 | J25: 68 | K25: 132.0027397 | L25: 0.9997341266 | M25: 0.7343513224 | N25: 1 | O25: 275.9420665 | P25: 0.2179454328 | Q25: 0 | R25: 0 | S25: 0 | T25: 0 | U25: 0 | V25: 0 | W25: 1.214676251 | X25: 275.9420665 | Y25: 0.004276077012 | Z25: 0 | AA25: 0 | AB25: 0 | AC25: 0 | AD25: 0 | AE25: 0.004276077012
B26: 60 | C26: 0.0197 | H26: 2032-02-01 | I26: 14 | J26: 68.08219178 | K26: 132.0849315 | L26: 0.9997341266 | M26: 0.7343513224 | N26: 1 | O26: 275.2629738 | P26: 0.2174090697 | Q26: 0 | R26: 0 | S26: 0 | T26: 0 | U26: 0 | V26: 0 | W26: 1.214147934 | X26: 275.2629738 | Y26: 0.004274217153 | Z26: 0 | AA26: 0 | AB26: 0 | AC26: 0 | AD26: 0 | AE26: 0.004274217153
B27: 97 | C27: 0.0201 | H27: 2032-03-01 | I27: 15 | J27: 68.16712329 | K27: 132.169863 | L27: 0.9997341266 | M27: 0.7343513224 | N27: 1 | O27: 274.5830538 | P27: 0.2168720532 | Q27: 0 | R27: 0 | S27: 0 | T27: 0 | U27: 0 | V27: 0 | W27: 1.213618972 | X27: 274.5830538 | Y27: 0.004272355028 | Z27: 0 | AA27: 0 | AB27: 0 | AC27: 0 | AD27: 0 | AE27: 0.004272355028
B28: 181 | C28: 0.0211 | H28: 2032-04-01 | I28: 16 | J28: 68.24931507 | K28: 132.2520548 | L28: 0.9997341266 | M28: 0.7343513224 | N28: 1 | O28: 273.9023056 | P28: 0.2163343825 | Q28: 0 | R28: 0 | S28: 0 | T28: 0 | U28: 0 | V28: 0 | W28: 1.213089367 | X28: 273.9023056 | Y28: 0.004270490634 | Z28: 0 | AA28: 0 | AB28: 0 | AC28: 0 | AD28: 0 | AE28: 0.004270490634
H29: 2032-05-01 | I29: 17 | J29: 68.33424658 | K29: 132.3369863 | L29: 0.9997341266 | M29: 0.7343513224 | N29: 1 | O29: 273.2207282 | P29: 0.2157960569 | Q29: 0 | R29: 0 | S29: 0 | T29: 0 | U29: 0 | V29: 0 | W29: 1.212559116 | X29: 273.2207282 | Y29: 0.00426862397 | Z29: 0 | AA29: 0 | AB29: 0 | AC29: 0 | AD29: 0 | AE29: 0.00426862397
H30: 2032-06-01 | I30: 18 | J30: 68.41643836 | K30: 132.4191781 | L30: 0.9997341266 | M30: 0.7343513224 | N30: 1 | O30: 272.5383205 | P30: 0.2152570755 | Q30: 0 | R30: 0 | S30: 0 | T30: 0 | U30: 0 | V30: 0 | W30: 1.212028219 | X30: 272.5383205 | Y30: 0.004266755031 | Z30: 0 | AA30: 0 | AB30: 0 | AC30: 0 | AD30: 0 | AE30: 0.004266755031
H31: 2032-07-01 | I31: 19 | J31: 68.50136986 | K31: 132.5041096 | L31: 0.9997341266 | M31: 0.7343513224 | N31: 1 | O31: 271.8550816 | P31: 0.2147174375 | Q31: 0 | R31: 0 | S31: 0 | T31: 0 | U31: 0 | V31: 0 | W31: 1.211496676 | X31: 271.8550816 | Y31: 0.004264883816 | Z31: 0 | AA31: 0 | AB31: 0 | AC31: 0 | AD31: 0 | AE31: 0.004264883816
H32: 2032-08-01 | I32: 20 | J32: 68.58356164 | K32: 132.5863014 | L32: 0.9997341266 | M32: 0.7343513224 | N32: 1 | O32: 271.1710103 | P32: 0.2141771422 | Q32: 0 | R32: 0 | S32: 0 | T32: 0 | U32: 0 | V32: 0 | W32: 1.210964485 | X32: 271.1710103 | Y32: 0.004263010322 | Z32: 0 | AA32: 0 | AB32: 0 | AC32: 0 | AD32: 0 | AE32: 0.004263010322
H33: 2032-09-01 | I33: 21 | J33: 68.66575342 | K33: 132.6684932 | L33: 0.9997341266 | M33: 0.7343513224 | N33: 1 | O33: 270.4861058 | P33: 0.2136361888 | Q33: 0 | R33: 0 | S33: 0 | T33: 0 | U33: 0 | V33: 0 | W33: 1.210431646 | X33: 270.4861058 | Y33: 0.004261134545 | Z33: 0 | AA33: 0 | AB33: 0 | AC33: 0 | AD33: 0 | AE33: 0.004261134545
H34: 2032-10-01 | I34: 22 | J34: 68.75068493 | K34: 132.7534247 | L34: 0.9997341266 | M34: 0.7343513224 | N34: 1 | O34: 269.800367 | P34: 0.2130945764 | Q34: 0 | R34: 0 | S34: 0 | T34: 0 | U34: 0 | V34: 0 | W34: 1.209898158 | X34: 269.800367 | Y34: 0.004259256484 | Z34: 0 | AA34: 0 | AB34: 0 | AC34: 0 | AD34: 0 | AE34: 0.004259256484
H35: 2032-11-01 | I35: 23 | J35: 68.83287671 | K35: 132.8356164 | L35: 0.9997341266 | M35: 0.7343513224 | N35: 1 | O35: 269.1137928 | P35: 0.2125523042 | Q35: 0 | R35: 0 | S35: 0 | T35: 0 | U35: 0 | V35: 0 | W35: 1.20936402 | X35: 269.1137928 | Y35: 0.004257376135 | Z35: 0 | AA35: 0 | AB35: 0 | AC35: 0 | AD35: 0 | AE35: 0.004257376135
H36: 2032-12-01 | I36: 24 | J36: 68.91780822 | K36: 132.9205479 | L36: 0.9997341266 | M36: 0.7343513224 | N36: 1 | O36: 268.4263823 | P36: 0.2120093715 | Q36: 0 | R36: 0 | S36: 0 | T36: 0 | U36: 0 | V36: 0 | W36: 1.208829231 | X36: 268.4263823 | Y36: 0.004255493495 | Z36: 0 | AA36: 0 | AB36: 0 | AC36: 0 | AD36: 0 | AE36: 0.004255493495
H37: 2033-01-01 | I37: 25 | J37: 69 | K37: 133.0027397 | L37: 0.9997205184 | M37: 0.7343513224 | N37: 1 | O37: 267.7381344 | P37: 0.2114686559 | Q37: 0 | R37: 0 | S37: 0 | T37: 0 | U37: 0 | V37: 0 | W37: 1.208296626 | X37: 267.7381344 | Y37: 0.004253618543 | Z37: 0 | AA37: 0 | AB37: 0 | AC37: 0 | AD37: 0 | AE37: 0.004253618543
H38: 2033-02-01 | I38: 26 | J38: 69.08219178 | K38: 133.0849315 | L38: 0.9997205184 | M38: 0.7343513224 | N38: 1 | O38: 267.0526971 | P38: 0.2109272742 | Q38: 0 | R38: 0 | S38: 0 | T38: 0 | U38: 0 | V38: 0 | W38: 1.207763365 | X38: 267.0526971 | Y38: 0.004251741281 | Z38: 0 | AA38: 0 | AB38: 0 | AC38: 0 | AD38: 0 | AE38: 0.004251741281
H39: 2033-03-01 | I39: 27 | J39: 69.16712329 | K39: 133.169863 | L39: 0.9997205184 | M39: 0.7343513224 | N39: 1 | O39: 266.3664154 | P39: 0.2103852257 | Q39: 0 | R39: 0 | S39: 0 | T39: 0 | U39: 0 | V39: 0 | W39: 1.207229447 | X39: 266.3664154 | Y39: 0.004249861708 | Z39: 0 | AA39: 0 | AB39: 0 | AC39: 0 | AD39: 0 | AE39: 0.004249861708
H40: 2033-04-01 | I40: 28 | J40: 69.24931507 | K40: 133.2520548 | L40: 0.9997205184 | M40: 0.7343513224 | N40: 1 | O40: 265.6792884 | P40: 0.2098425095 | Q40: 0 | R40: 0 | S40: 0 | T40: 0 | U40: 0 | V40: 0 | W40: 1.206694872 | X40: 265.6792884 | Y40: 0.004247979819 | Z40: 0 | AA40: 0 | AB40: 0 | AC40: 0 | AD40: 0 | AE40: 0.004247979819
H41: 2033-05-01 | I41: 29 | J41: 69.33424658 | K41: 133.3369863 | L41: 0.9997205184 | M41: 0.7343513224 | N41: 1 | O41: 264.991315 | P41: 0.2092991248 | Q41: 0 | R41: 0 | S41: 0 | T41: 0 | U41: 0 | V41: 0 | W41: 1.206159638 | X41: 264.991315 | Y41: 0.004246095612 | Z41: 0 | AA41: 0 | AB41: 0 | AC41: 0 | AD41: 0 | AE41: 0.004246095612
H42: 2033-06-01 | I42: 30 | J42: 69.41643836 | K42: 133.4191781 | L42: 0.9997205184 | M42: 0.7343513224 | N42: 1 | O42: 264.3024942 | P42: 0.2087550707 | Q42: 0 | R42: 0 | S42: 0 | T42: 0 | U42: 0 | V42: 0 | W42: 1.205623745 | X42: 264.3024942 | Y42: 0.004244209084 | Z42: 0 | AA42: 0 | AB42: 0 | AC42: 0 | AD42: 0 | AE42: 0.004244209084
H43: 2033-07-01 | I43: 31 | J43: 69.50136986 | K43: 133.5041096 | L43: 0.9997205184 | M43: 0.7343513224 | N43: 1 | O43: 263.612825 | P43: 0.2082103466 | Q43: 0 | R43: 0 | S43: 0 | T43: 0 | U43: 0 | V43: 0 | W43: 1.205087191 | X43: 263.612825 | Y43: 0.004242320232 | Z43: 0 | AA43: 0 | AB43: 0 | AC43: 0 | AD43: 0 | AE43: 0.004242320232
H44: 2033-08-01 | I44: 32 | J44: 69.58356164 | K44: 133.5863014 | L44: 0.9997205184 | M44: 0.7343513224 | N44: 1 | O44: 262.9223062 | P44: 0.2076649514 | Q44: 0 | R44: 0 | S44: 0 | T44: 0 | U44: 0 | V44: 0 | W44: 1.204549977 | X44: 262.9223062 | Y44: 0.004240429054 | Z44: 0 | AA44: 0 | AB44: 0 | AC44: 0 | AD44: 0 | AE44: 0.004240429054
H45: 2033-09-01 | I45: 33 | J45: 69.66575342 | K45: 133.6684932 | L45: 0.9997205184 | M45: 0.7343513224 | N45: 1 | O45: 262.2309368 | P45: 0.2071188845 | Q45: 0 | R45: 0 | S45: 0 | T45: 0 | U45: 0 | V45: 0 | W45: 1.204012101 | X45: 262.2309368 | Y45: 0.004238535546 | Z45: 0 | AA45: 0 | AB45: 0 | AC45: 0 | AD45: 0 | AE45: 0.004238535546
H46: 2033-10-01 | I46: 34 | J46: 69.75068493 | K46: 133.7534247 | L46: 0.9997205184 | M46: 0.7343513224 | N46: 1 | O46: 261.5387159 | P46: 0.2065721449 | Q46: 0 | R46: 0 | S46: 0 | T46: 0 | U46: 0 | V46: 0 | W46: 1.203473563 | X46: 261.5387159 | Y46: 0.004236639706 | Z46: 0 | AA46: 0 | AB46: 0 | AC46: 0 | AD46: 0 | AE46: 0.004236639706
H47: 2033-11-01 | I47: 35 | J47: 69.83287671 | K47: 133.8356164 | L47: 0.9997205184 | M47: 0.7343513224 | N47: 1 | O47: 260.8456423 | P47: 0.2060247319 | Q47: 0 | R47: 0 | S47: 0 | T47: 0 | U47: 0 | V47: 0 | W47: 1.202934361 | X47: 260.8456423 | Y47: 0.004234741531 | Z47: 0 | AA47: 0 | AB47: 0 | AC47: 0 | AD47: 0 | AE47: 0.004234741531
H48: 2033-12-01 | I48: 36 | J48: 69.91780822 | K48: 133.9205479 | L48: 0.9997205184 | M48: 0.7343513224 | N48: 1 | O48: 260.151715 | P48: 0.2054766446 | Q48: 0 | R48: 0 | S48: 0 | T48: 0 | U48: 0 | V48: 0 | W48: 1.202394495 | X48: 260.151715 | Y48: 0.004232841017 | Z48: 0 | AA48: 0 | AB48: 0 | AC48: 0 | AD48: 0 | AE48: 0.004232841017
H49: 2034-01-01 | I49: 37 | J49: 70 | K49: 134.0027397 | L49: 0.9997052456 | M49: 0.7343513224 | N49: 1 | O49: 259.4569329 | P49: 0.2049310129 | Q49: 0 | R49: 0 | S49: 0 | T49: 0 | U49: 0 | V49: 0 | W49: 1.201857048 | X49: 259.4569329 | Y49: 0.004230949019 | Z49: 0 | AA49: 0 | AB49: 0 | AC49: 0 | AD49: 0 | AE49: 0.004230949019
H50: 2034-02-01 | I50: 38 | J50: 70.08219178 | K50: 134.0849315 | L50: 0.9997052456 | M50: 0.7343513224 | N50: 1 | O50: 258.7652637 | P50: 0.2043847007 | Q50: 0 | R50: 0 | S50: 0 | T50: 0 | U50: 0 | V50: 0 | W50: 1.20131893 | X50: 258.7652637 | Y50: 0.004229054661 | Z50: 0 | AA50: 0 | AB50: 0 | AC50: 0 | AD50: 0 | AE50: 0.004229054661
H51: 2034-03-01 | I51: 39 | J51: 70.16712329 | K51: 134.169863 | L51: 0.9997052456 | M51: 0.7343513224 | N51: 1 | O51: 258.072732 | P51: 0.2038377073 | Q51: 0 | R51: 0 | S51: 0 | T51: 0 | U51: 0 | V51: 0 | W51: 1.200780142 | X51: 258.072732 | Y51: 0.00422715794 | Z51: 0 | AA51: 0 | AB51: 0 | AC51: 0 | AD51: 0 | AE51: 0.00422715794
H52: 2034-04-01 | I52: 40 | J52: 70.24931507 | K52: 134.2520548 | L52: 0.9997052456 | M52: 0.7343513224 | N52: 1 | O52: 257.3793366 | P52: 0.2032900318 | Q52: 0 | R52: 0 | S52: 0 | T52: 0 | U52: 0 | V52: 0 | W52: 1.200240681 | X52: 257.3793366 | Y52: 0.004225258854 | Z52: 0 | AA52: 0 | AB52: 0 | AC52: 0 | AD52: 0 | AE52: 0.004225258854
H53: 2034-05-01 | I53: 41 | J53: 70.33424658 | K53: 134.3369863 | L53: 0.9997052456 | M53: 0.7343513224 | N53: 1 | O53: 256.6850765 | P53: 0.2027416733 | Q53: 0 | R53: 0 | S53: 0 | T53: 0 | U53: 0 | V53: 0 | W53: 1.199700548 | X53: 256.6850765 | Y53: 0.004223357401 | Z53: 0 | AA53: 0 | AB53: 0 | AC53: 0 | AD53: 0 | AE53: 0.004223357401
H54: 2034-06-01 | I54: 42 | J54: 70.41643836 | K54: 134.4191781 | L54: 0.9997052456 | M54: 0.7343513224 | N54: 1 | O54: 255.9899506 | P54: 0.2021926309 | Q54: 0 | R54: 0 | S54: 0 | T54: 0 | U54: 0 | V54: 0 | W54: 1.199159741 | X54: 255.9899506 | Y54: 0.004221453575 | Z54: 0 | AA54: 0 | AB54: 0 | AC54: 0 | AD54: 0 | AE54: 0.004221453575
H55: 2034-07-01 | I55: 43 | J55: 70.50136986 | K55: 134.5041096 | L55: 0.9997052456 | M55: 0.7343513224 | N55: 1 | O55: 255.2939579 | P55: 0.2016429038 | Q55: 0 | R55: 0 | S55: 0 | T55: 0 | U55: 0 | V55: 0 | W55: 1.19861826 | X55: 255.2939579 | Y55: 0.004219547376 | Z55: 0 | AA55: 0 | AB55: 0 | AC55: 0 | AD55: 0 | AE55: 0.004219547376
H56: 2034-08-01 | I56: 44 | J56: 70.58356164 | K56: 134.5863014 | L56: 0.9997052456 | M56: 0.7343513224 | N56: 1 | O56: 254.5970972 | P56: 0.2010924912 | Q56: 0 | R56: 0 | S56: 0 | T56: 0 | U56: 0 | V56: 0 | W56: 1.198076104 | X56: 254.5970972 | Y56: 0.004217638799 | Z56: 0 | AA56: 0 | AB56: 0 | AC56: 0 | AD56: 0 | AE56: 0.004217638799
H57: 2034-09-01 | I57: 45 | J57: 70.66575342 | K57: 134.6684932 | L57: 0.9997052456 | M57: 0.7343513224 | N57: 1 | O57: 253.8993675 | P57: 0.2005413922 | Q57: 0 | R57: 0 | S57: 0 | T57: 0 | U57: 0 | V57: 0 | W57: 1.197533271 | X57: 253.8993675 | Y57: 0.004215727843 | Z57: 0 | AA57: 0 | AB57: 0 | AC57: 0 | AD57: 0 | AE57: 0.004215727843
H58: 2034-10-01 | I58: 46 | J58: 70.75068493 | K58: 134.7534247 | L58: 0.9997052456 | M58: 0.7343513224 | N58: 1 | O58: 253.2007676 | P58: 0.1999896059 | Q58: 0 | R58: 0 | S58: 0 | T58: 0 | U58: 0 | V58: 0 | W58: 1.196989762 | X58: 253.2007676 | Y58: 0.004213814503 | Z58: 0 | AA58: 0 | AB58: 0 | AC58: 0 | AD58: 0 | AE58: 0.004213814503
H59: 2034-11-01 | I59: 47 | J59: 70.83287671 | K59: 134.8356164 | L59: 0.9997052456 | M59: 0.7343513224 | N59: 1 | O59: 252.5012966 | P59: 0.1994371316 | Q59: 0 | R59: 0 | S59: 0 | T59: 0 | U59: 0 | V59: 0 | W59: 1.196445575 | X59: 252.5012966 | Y59: 0.004211898777 | Z59: 0 | AA59: 0 | AB59: 0 | AC59: 0 | AD59: 0 | AE59: 0.004211898777
H60: 2034-12-01 | I60: 48 | J60: 70.91780822 | K60: 134.9205479 | L60: 0.9997052456 | M60: 0.7343513224 | N60: 1 | O60: 251.8009533 | P60: 0.1988839682 | Q60: 0 | R60: 0 | S60: 0 | T60: 0 | U60: 0 | V60: 0 | W60: 1.195900709 | X60: 251.8009533 | Y60: 0.004209980662 | Z60: 0 | AA60: 0 | AB60: 0 | AC60: 0 | AD60: 0 | AE60: 0.004209980662
H61: 2035-01-01 | I61: 49 | J61: 71 | K61: 135.0027397 | L61: 0.9996881597 | M61: 0.7343513224 | N61: 1 | O61: 251.0997366 | P61: 0.1983335048 | Q61: 0 | R61: 0 | S61: 0 | T61: 0 | U61: 0 | V61: 0 | W61: 1.195358502 | X61: 251.0997366 | Y61: 0.00420807191 | Z61: 0 | AA61: 0 | AB61: 0 | AC61: 0 | AD61: 0 | AE61: 0.00420807191
H62: 2035-02-01 | I62: 50 | J62: 71.08219178 | K62: 135.0849315 | L62: 0.9996881597 | M62: 0.7343513224 | N62: 1 | O62: 250.4019424 | P62: 0.1977823454 | Q62: 0 | R62: 0 | S62: 0 | T62: 0 | U62: 0 | V62: 0 | W62: 1.19481561 | X62: 250.4019424 | Y62: 0.004206160744 | Z62: 0 | AA62: 0 | AB62: 0 | AC62: 0 | AD62: 0 | AE62: 0.004206160744
H63: 2035-03-01 | I63: 51 | J63: 71.16712329 | K63: 135.169863 | L63: 0.9996881597 | M63: 0.7343513224 | N63: 1 | O63: 249.7032661 | P63: 0.1972304893 | Q63: 0 | R63: 0 | S63: 0 | T63: 0 | U63: 0 | V63: 0 | W63: 1.194272032 | X63: 249.7032661 | Y63: 0.004204247162 | Z63: 0 | AA63: 0 | AB63: 0 | AC63: 0 | AD63: 0 | AE63: 0.004204247162
H64: 2035-04-01 | I64: 52 | J64: 71.24931507 | K64: 135.2520548 | L64: 0.9996881597 | M64: 0.7343513224 | N64: 1 | O64: 249.0037065 | P64: 0.1966779356 | Q64: 0 | R64: 0 | S64: 0 | T64: 0 | U64: 0 | V64: 0 | W64: 1.193727767 | X64: 249.0037065 | Y64: 0.004202331161 | Z64: 0 | AA64: 0 | AB64: 0 | AC64: 0 | AD64: 0 | AE64: 0.004202331161
H65: 2035-05-01 | I65: 53 | J65: 71.33424658 | K65: 135.3369863 | L65: 0.9996881597 | M65: 0.7343513224 | N65: 1 | O65: 248.3032626 | P65: 0.1961246833 | Q65: 0 | R65: 0 | S65: 0 | T65: 0 | U65: 0 | V65: 0 | W65: 1.193182813 | X65: 248.3032626 | Y65: 0.004200412737 | Z65: 0 | AA65: 0 | AB65: 0 | AC65: 0 | AD65: 0 | AE65: 0.004200412737
H66: 2035-06-01 | I66: 54 | J66: 71.41643836 | K66: 135.4191781 | L66: 0.9996881597 | M66: 0.7343513224 | N66: 1 | O66: 247.6019332 | P66: 0.1955707316 | Q66: 0 | R66: 0 | S66: 0 | T66: 0 | U66: 0 | V66: 0 | W66: 1.192637171 | X66: 247.6019332 | Y66: 0.004198491889 | Z66: 0 | AA66: 0 | AB66: 0 | AC66: 0 | AD66: 0 | AE66: 0.004198491889
H67: 2035-07-01 | I67: 55 | J67: 71.50136986 | K67: 135.5041096 | L67: 0.9996881597 | M67: 0.7343513224 | N67: 1 | O67: 246.8997172 | P67: 0.1950160796 | Q67: 0 | R67: 0 | S67: 0 | T67: 0 | U67: 0 | V67: 0 | W67: 1.192090838 | X67: 246.8997172 | Y67: 0.004196568612 | Z67: 0 | AA67: 0 | AB67: 0 | AC67: 0 | AD67: 0 | AE67: 0.004196568612
H68: 2035-08-01 | I68: 56 | J68: 71.58356164 | K68: 135.5863014 | L68: 0.9996881597 | M68: 0.7343513224 | N68: 1 | O68: 246.1966134 | P68: 0.1944607265 | Q68: 0 | R68: 0 | S68: 0 | T68: 0 | U68: 0 | V68: 0 | W68: 1.191543816 | X68: 246.1966134 | Y68: 0.004194642904 | Z68: 0 | AA68: 0 | AB68: 0 | AC68: 0 | AD68: 0 | AE68: 0.004194642904
H69: 2035-09-01 | I69: 57 | J69: 71.66575342 | K69: 135.6684932 | L69: 0.9996881597 | M69: 0.7343513224 | N69: 1 | O69: 245.4926208 | P69: 0.1939046713 | Q69: 0 | R69: 0 | S69: 0 | T69: 0 | U69: 0 | V69: 0 | W69: 1.190996101 | X69: 245.4926208 | Y69: 0.004192714762 | Z69: 0 | AA69: 0 | AB69: 0 | AC69: 0 | AD69: 0 | AE69: 0.004192714762
H70: 2035-10-01 | I70: 58 | J70: 71.75068493 | K70: 135.7534247 | L70: 0.9996881597 | M70: 0.7343513224 | N70: 1 | O70: 244.7877383 | P70: 0.1933479131 | Q70: 0 | R70: 0 | S70: 0 | T70: 0 | U70: 0 | V70: 0 | W70: 1.190447694 | X70: 244.7877383 | Y70: 0.004190784182 | Z70: 0 | AA70: 0 | AB70: 0 | AC70: 0 | AD70: 0 | AE70: 0.004190784182
H71: 2035-11-01 | I71: 59 | J71: 71.83287671 | K71: 135.8356164 | L71: 0.9996881597 | M71: 0.7343513224 | N71: 1 | O71: 244.0819646 | P71: 0.1927904511 | Q71: 0 | R71: 0 | S71: 0 | T71: 0 | U71: 0 | V71: 0 | W71: 1.189898594 | X71: 244.0819646 | Y71: 0.004188851161 | Z71: 0 | AA71: 0 | AB71: 0 | AC71: 0 | AD71: 0 | AE71: 0.004188851161
H72: 2035-12-01 | I72: 60 | J72: 71.91780822 | K72: 135.9205479 | L72: 0.9996881597 | M72: 0.7343513224 | N72: 1 | O72: 243.3752987 | P72: 0.1922322844 | Q72: 0 | R72: 0 | S72: 0 | T72: 0 | U72: 0 | V72: 0 | W72: 1.1893488 | X72: 243.3752987 | Y72: 0.004186915697 | Z72: 0 | AA72: 0 | AB72: 0 | AC72: 0 | AD72: 0 | AE72: 0.004186915697
H73: 2036-01-01 | I73: 61 | J73: 72 | K73: 136.0027397 | L73: 0.9996645461 | M73: 0.7343513224 | N73: 1 | O73: 242.6677395 | P73: 0.1916779396 | Q73: 0 | R73: 0 | S73: 0 | T73: 0 | U73: 0 | V73: 0 | W73: 1.188802771 | X73: 242.6677395 | Y73: 0.004184993486 | Z73: 0 | AA73: 0 | AB73: 0 | AC73: 0 | AD73: 0 | AE73: 0.004184993486
H74: 2036-02-01 | I74: 62 | J74: 72.08219178 | K74: 136.0849315 | L74: 0.9996645461 | M74: 0.7343513224 | N74: 1 | O74: 241.9650252 | P74: 0.191122881 | Q74: 0 | R74: 0 | S74: 0 | T74: 0 | U74: 0 | V74: 0 | W74: 1.188256038 | X74: 241.9650252 | Y74: 0.004183068799 | Z74: 0 | AA74: 0 | AB74: 0 | AC74: 0 | AD74: 0 | AE74: 0.004183068799
H75: 2036-03-01 | I75: 63 | J75: 72.16712329 | K75: 136.169863 | L75: 0.9996645461 | M75: 0.7343513224 | N75: 1 | O75: 241.261406 | P75: 0.1905671075 | Q75: 0 | R75: 0 | S75: 0 | T75: 0 | U75: 0 | V75: 0 | W75: 1.187708601 | X75: 241.261406 | Y75: 0.004181141633 | Z75: 0 | AA75: 0 | AB75: 0 | AC75: 0 | AD75: 0 | AE75: 0.004181141633
H76: 2036-04-01 | I76: 64 | J76: 72.24931507 | K76: 136.2520548 | L76: 0.9996645461 | M76: 0.7343513224 | N76: 1 | O76: 240.5568806 | P76: 0.1900106183 | Q76: 0 | R76: 0 | S76: 0 | T76: 0 | U76: 0 | V76: 0 | W76: 1.187160459 | X76: 240.5568806 | Y76: 0.004179211986 | Z76: 0 | AA76: 0 | AB76: 0 | AC76: 0 | AD76: 0 | AE76: 0.004179211986
H77: 2036-05-01 | I77: 65 | J77: 72.33424658 | K77: =+IF(J77="","",ROUND((YEAR($H77)-YEAR($C$11)+(MONTH($H77)-MONTH($C$11))/12+(DAY($H77)-DAY($C$11))/365)*365,0)/365) -> 136.3369863 | L77: 0.9996645461 | M77: 0.7343513224 | N77: 1 | O77: 239.8514479 | P77: =+IF(O77=0,0,O77/L77*(1+$L$8)*$J$9) -> 0.1894534125 | Q77: =+N77*$C$13 -> 0 | R77: 0 | S77: 0 | T77: 0 | U77: 0 | V77: 0 | W77: =+IF(P77=0,0,N77+P77*(1-$I$8)) -> 1.186611611 | X77: =+(W77/(1-$I$8)+X78)*L77*$M$8 -> 239.8514479 | Y77: =+W77*$F$10 -> 0.004177279853 | Z77: 0 | AA77: =+(AA78+Z77/(1-$I$8))*M77*$M$8 -> 0 | AB77: 0 | AC77: =+(AC78+AB77/(1-$I$8))*L77*M77*$M$8 -> 0 | AD77: 0 | AE77: 0.004177279853
H78: =+IF(I78="","",DATE(YEAR(H77),MONTH(H77)+1,1)) -> 2036-06-01 | I78: 66 | J78: =+IF(I78="","",ROUND((YEAR(H78)-YEAR($C$10)+(MONTH(H78)-MONTH($C$10))/12+(DAY(H78)-DAY($C$10))/365)*365,0)/365) -> 72.41643836 | K78: 136.4191781 | L78: 0.9996645461 | M78: 0.7343513224 | N78: =+IF(I78="",0,IF(H78<DATE(YEAR($C$9),MONTH($C$9),1),0,(1+$C$14)^(YEAR(H78)-YEAR($C$9)))) -> 1 | O78: =+(O79*L78+N78*L78/(1-$I$8))*$M$9 -> 239.1451067 | P78: 0.188895489 | Q78: 0 | R78: =+(R79*$M78+Q78*$M78/(1-$I$8))*$M$9 -> 0 | S78: =+(S79*L78*$M78+Q78*L78*$M78/(1-$I$8))*$M$9 -> 0 | T78: =+R78-S78 -> 0 | U78: =+IF(R78=0,0,R78/M78*(1+$L$8)*$J$9) -> 0 | V78: =+IF(S78=0,0,S78/(L78*M78)*(1+$L$8)*$J$9) -> 0 | W78: 1.186062057 | X78: 239.1451067 | Y78: 0.004175345233 | Z78: =+Q78+U78*(1-$I$8) -> 0 | AA78: 0 | AB78: =+Q78+V78*(1-$I$8) -> 0 | AC78: 0 | AD78: 0 | AE78: 0.004175345233
H79: 2036-07-01 | I79: =+IF(OR(I78="",I78=$C$19+$C$15),"",I78+1) -> 67 | J79: 72.50136986 | K79: 136.5041096 | L79: =+IF(I79="",0,VLOOKUP(J79,TB_GEN,3+$C$12)) -> 0.9996645461 | M79: 0.7343513224 | N79: 1 | O79: 238.4378559 | P79: 0.1883368471 | Q79: 0 | R79: 0 | S79: 0 | T79: 0 | U79: 0 | V79: 0 | W79: 1.185511794 | X79: 238.4378559 | Y79: 0.004173408121 | Z79: 0 | AA79: 0 | AB79: 0 | AC79: 0 | AD79: 0 | AE79: =+W79*$C$18+(Z79-AB79)*$C$18 -> 0.004173408121
H80: 2036-08-01 | I80: 68 | J80: 72.58356164 | K80: 136.5863014 | L80: 0.9996645461 | M80: =+IF(I80="",0,VLOOKUP(K80,TB_GEN,7+$F$18)) -> 0.7343513224 | N80: 1 | O80: 237.7296942 | P80: 0.1877774857 | Q80: 0 | R80: 0 | S80: 0 | T80: 0 | U80: 0 | V80: 0 | W80: 1.184960823 | X80: 237.7296942 | Y80: 0.004171468514 | Z80: 0 | AA80: 0 | AB80: 0 | AC80: 0 | AD80: =+AA80-AC80 -> 0 | AE80: 0.004171468514
H81: 2036-09-01 | I81: 69 | J81: 72.66575342 | K81: 136.6684932 | L81: 0.9996645461 | M81: 0.7343513224 | N81: 1 | O81: 237.0206206 | P81: 0.1872174039 | Q81: 0 | R81: 0 | S81: 0 | T81: 0 | U81: 0 | V81: 0 | W81: 1.184409143 | X81: 237.0206206 | Y81: 0.004169526409 | Z81: 0 | AA81: 0 | AB81: 0 | AC81: 0 | AD81: 0 | AE81: 0.004169526409
H82: 2036-10-01 | I82: 70 | J82: 72.75068493 | K82: 136.7534247 | L82: 0.9996645461 | M82: 0.7343513224 | N82: 1 | O82: 236.3106338 | P82: 0.1866566009 | Q82: 0 | R82: 0 | S82: 0 | T82: 0 | U82: 0 | V82: 0 | W82: 1.183856752 | X82: 236.3106338 | Y82: 0.004167581803 | Z82: 0 | AA82: 0 | AB82: 0 | AC82: 0 | AD82: 0 | AE82: 0.004167581803
H83: 2036-11-01 | I83: 71 | J83: 72.83287671 | K83: 136.8356164 | L83: 0.9996645461 | M83: 0.7343513224 | N83: 1 | O83: 235.5997327 | P83: 0.1860950756 | Q83: 0 | R83: 0 | S83: 0 | T83: 0 | U83: 0 | V83: 0 | W83: 1.183303649 | X83: 235.5997327 | Y83: 0.004165634693 | Z83: 0 | AA83: 0 | AB83: 0 | AC83: 0 | AD83: 0 | AE83: 0.004165634693
H84: 2036-12-01 | I84: 72 | J84: 72.91780822 | K84: 136.9205479 | L84: 0.9996645461 | M84: 0.7343513224 | N84: 1 | O84: 234.887916 | P84: 0.1855328272 | Q84: 0 | R84: 0 | S84: 0 | T84: 0 | U84: 0 | V84: 0 | W84: 1.182749835 | X84: 234.887916 | Y84: 0.004163685076 | Z84: 0 | AA84: 0 | AB84: 0 | AC84: 0 | AD84: 0 | AE84: 0.004163685076
H85: 2037-01-01 | I85: 73 | J85: 73 | K85: 137.0027397 | L85: 0.9996352804 | M85: 0.7343513224 | N85: 1 | O85: 234.1751827 | P85: 0.18497527 | Q85: 0 | R85: 0 | S85: 0 | T85: 0 | U85: 0 | V85: 0 | W85: 1.182200641 | X85: 234.1751827 | Y85: 0.004161751725 | Z85: 0 | AA85: 0 | AB85: 0 | AC85: 0 | AD85: 0 | AE85: 0.004161751725
H86: 2037-02-01 | I86: 74 | J86: 73.08219178 | K86: 137.0849315 | L86: 0.9996352804 | M86: 0.7343513224 | N86: 1 | O86: 233.4683961 | P86: 0.1844169783 | Q86: 0 | R86: 0 | S86: 0 | T86: 0 | U86: 0 | V86: 0 | W86: 1.181650724 | X86: 233.4683961 | Y86: 0.004159815828 | Z86: 0 | AA86: 0 | AB86: 0 | AC86: 0 | AD86: 0 | AE86: 0.004159815828
H87: 2037-03-01 | I87: 75 | J87: 73.16712329 | K87: 137.169863 | L87: 0.9996352804 | M87: 0.7343513224 | N87: 1 | O87: 232.7606785 | P87: 0.1838579514 | Q87: 0 | R87: 0 | S87: 0 | T87: 0 | U87: 0 | V87: 0 | W87: 1.181100082 | X87: 232.7606785 | Y87: 0.00415787738 | Z87: 0 | AA87: 0 | AB87: 0 | AC87: 0 | AD87: 0 | AE87: 0.00415787738
H88: 2037-04-01 | I88: 76 | J88: 73.24931507 | K88: 137.2520548 | L88: 0.9996352804 | M88: 0.7343513224 | N88: 1 | O88: 232.0520288 | P88: 0.1832981881 | Q88: 0 | R88: 0 | S88: 0 | T88: 0 | U88: 0 | V88: 0 | W88: 1.180548715 | X88: 232.0520288 | Y88: 0.00415593638 | Z88: 0 | AA88: 0 | AB88: 0 | AC88: 0 | AD88: 0 | AE88: 0.00415593638
H89: 2037-05-01 | I89: 77 | J89: 73.33424658 | K89: 137.3369863 | L89: 0.9996352804 | M89: 0.7343513224 | N89: 1 | O89: 231.3424457 | P89: 0.1827376875 | Q89: 0 | R89: 0 | S89: 0 | T89: 0 | U89: 0 | V89: 0 | W89: 1.179996622 | X89: 231.3424457 | Y89: 0.004153992823 | Z89: 0 | AA89: 0 | AB89: 0 | AC89: 0 | AD89: 0 | AE89: 0.004153992823
H90: 2037-06-01 | I90: 78 | J90: 73.41643836 | K90: 137.4191781 | L90: 0.9996352804 | M90: 0.7343513224 | N90: 1 | O90: 230.631928 | P90: 0.1821764487 | Q90: 0 | R90: 0 | S90: 0 | T90: 0 | U90: 0 | V90: 0 | W90: 1.179443802 | X90: 230.631928 | Y90: 0.004152046706 | Z90: 0 | AA90: 0 | AB90: 0 | AC90: 0 | AD90: 0 | AE90: 0.004152046706
H91: 2037-07-01 | I91: 79 | J91: 73.50136986 | K91: 137.5041096 | L91: 0.9996352804 | M91: 0.7343513224 | N91: 1 | O91: 229.9204744 | P91: 0.1816144706 | Q91: 0 | R91: 0 | S91: 0 | T91: 0 | U91: 0 | V91: 0 | W91: 1.178890254 | X91: 229.9204744 | Y91: 0.004150098026 | Z91: 0 | AA91: 0 | AB91: 0 | AC91: 0 | AD91: 0 | AE91: 0.004150098026
H92: 2037-08-01 | I92: 80 | J92: 73.58356164 | K92: 137.5863014 | L92: 0.9996352804 | M92: 0.7343513224 | N92: 1 | O92: 229.2080838 | P92: 0.1810517523 | Q92: 0 | R92: 0 | S92: 0 | T92: 0 | U92: 0 | V92: 0 | W92: 1.178335976 | X92: 229.2080838 | Y92: 0.004148146779 | Z92: 0 | AA92: 0 | AB92: 0 | AC92: 0 | AD92: 0 | AE92: 0.004148146779
H93: 2037-09-01 | I93: 81 | J93: 73.66575342 | K93: 137.6684932 | L93: 0.9996352804 | M93: 0.7343513224 | N93: 1 | O93: 228.4947548 | P93: 0.1804882929 | Q93: 0 | R93: 0 | S93: 0 | T93: 0 | U93: 0 | V93: 0 | W93: 1.177780969 | X93: 228.4947548 | Y93: 0.004146192962 | Z93: 0 | AA93: 0 | AB93: 0 | AC93: 0 | AD93: 0 | AE93: 0.004146192962
H94: 2037-10-01 | I94: 82 | J94: 73.75068493 | K94: 137.7534247 | L94: 0.9996352804 | M94: 0.7343513224 | N94: 1 | O94: 227.7804863 | P94: 0.1799240913 | Q94: 0 | R94: 0 | S94: 0 | T94: 0 | U94: 0 | V94: 0 | W94: 1.17722523 | X94: 227.7804863 | Y94: 0.004144236572 | Z94: 0 | AA94: 0 | AB94: 0 | AC94: 0 | AD94: 0 | AE94: 0.004144236572
H95: 2037-11-01 | I95: 83 | J95: 73.83287671 | K95: 137.8356164 | L95: 0.9996352804 | M95: 0.7343513224 | N95: 1 | O95: 227.065277 | P95: 0.1793591466 | Q95: 0 | R95: 0 | S95: 0 | T95: 0 | U95: 0 | V95: 0 | W95: 1.176668759 | X95: 227.065277 | Y95: 0.004142277605 | Z95: 0 | AA95: 0 | AB95: 0 | AC95: 0 | AD95: 0 | AE95: 0.004142277605
H96: 2037-12-01 | I96: 84 | J96: 73.91780822 | K96: 137.9205479 | L96: 0.9996352804 | M96: 0.7343513224 | N96: 1 | O96: 226.3491256 | P96: 0.1787934577 | Q96: 0 | R96: 0 | S96: 0 | T96: 0 | U96: 0 | V96: 0 | W96: 1.176111556 | X96: 226.3491256 | Y96: 0.004140316057 | Z96: 0 | AA96: 0 | AB96: 0 | AC96: 0 | AD96: 0 | AE96: 0.004140316057
H97: 2038-01-01 | I97: 85 | J97: 74 | K97: 138.0027397 | L97: 0.9995989142 | M97: 0.7343513224 | N97: 1 | O97: 225.632031 | P97: 0.1782335078 | Q97: 0 | R97: 0 | S97: 0 | T97: 0 | U97: 0 | V97: 0 | W97: 1.175560005 | X97: 225.632031 | Y97: 0.00413837441 | Z97: 0 | AA97: 0 | AB97: 0 | AC97: 0 | AD97: 0 | AE97: 0.00413837441
H98: 2038-02-01 | I98: 86 | J98: 74.08219178 | K98: 138.0849315 | L98: 0.9995989142 | M98: 0.7343513224 | N98: 1 | O98: 224.9222113 | P98: 0.1776728 | Q98: 0 | R98: 0 | S98: 0 | T98: 0 | U98: 0 | V98: 0 | W98: 1.175007708 | X98: 224.9222113 | Y98: 0.004136430134 | Z98: 0 | AA98: 0 | AB98: 0 | AC98: 0 | AD98: 0 | AE98: 0.004136430134
H99: 2038-03-01 | I99: 87 | J99: 74.16712329 | K99: 138.169863 | L99: 0.9995989142 | M99: 0.7343513224 | N99: 1 | O99: 224.2114309 | P99: 0.1771113332 | Q99: 0 | R99: 0 | S99: 0 | T99: 0 | U99: 0 | V99: 0 | W99: 1.174454663 | X99: 224.2114309 | Y99: 0.004134483227 | Z99: 0 | AA99: 0 | AB99: 0 | AC99: 0 | AD99: 0 | AE99: 0.004134483227
H100: 2038-04-01 | I100: 88 | J100: 74.24931507 | K100: 138.2520548 | L100: 0.9995989142 | M100: 0.7343513224 | N100: 1 | O100: 223.4996883 | P100: 0.1765491064 | Q100: 0 | R100: 0 | S100: 0 | T100: 0 | U100: 0 | V100: 0 | W100: 1.17390087 | X100: 223.4996883 | Y100: 0.004132533684 | Z100: 0 | AA100: 0 | AB100: 0 | AC100: 0 | AD100: 0 | AE100: 0.004132533684
H101: 2038-05-01 | I101: 89 | J101: 74.33424658 | K101: 138.3369863 | L101: 0.9995989142 | M101: 0.7343513224 | N101: 1 | O101: 222.7869824 | P101: 0.1759861186 | Q101: 0 | R101: 0 | S101: 0 | T101: 0 | U101: 0 | V101: 0 | W101: 1.173346327 | X101: 222.7869824 | Y101: 0.004130581503 | Z101: 0 | AA101: 0 | AB101: 0 | AC101: 0 | AD101: 0 | AE101: 0.004130581503
H102: 2038-06-01 | I102: 90 | J102: 74.41643836 | K102: 138.4191781 | L102: 0.9995989142 | M102: 0.7343513224 | N102: 1 | O102: 222.0733118 | P102: 0.1754223688 | Q102: 0 | R102: 0 | S102: 0 | T102: 0 | U102: 0 | V102: 0 | W102: 1.172791033 | X102: 222.0733118 | Y102: 0.004128626679 | Z102: 0 | AA102: 0 | AB102: 0 | AC102: 0 | AD102: 0 | AE102: 0.004128626679
H103: 2038-07-01 | I103: 91 | J103: 74.50136986 | K103: 138.5041096 | L103: 0.9995989142 | M103: 0.7343513224 | N103: 1 | O103: 221.3586752 | P103: 0.1748578559 | Q103: 0 | R103: 0 | S103: 0 | T103: 0 | U103: 0 | V103: 0 | W103: 1.172234988 | X103: 221.3586752 | Y103: 0.004126669209 | Z103: 0 | AA103: 0 | AB103: 0 | AC103: 0 | AD103: 0 | AE103: 0.004126669209
H104: 2038-08-01 | I104: 92 | J104: 74.58356164 | K104: 138.5863014 | L104: 0.9995989142 | M104: 0.7343513224 | N104: 1 | O104: 220.6430712 | P104: 0.1742925789 | Q104: 0 | R104: 0 | S104: 0 | T104: 0 | U104: 0 | V104: 0 | W104: 1.17167819 | X104: 220.6430712 | Y104: 0.004124709089 | Z104: 0 | AA104: 0 | AB104: 0 | AC104: 0 | AD104: 0 | AE104: 0.004124709089
H105: 2038-09-01 | I105: 93 | J105: 74.66575342 | K105: 138.6684932 | L105: 0.9995989142 | M105: 0.7343513224 | N105: 1 | O105: 219.9264987 | P105: 0.1737265367 | Q105: 0 | R105: 0 | S105: 0 | T105: 0 | U105: 0 | V105: 0 | W105: 1.171120639 | X105: 219.9264987 | Y105: 0.004122746317 | Z105: 0 | AA105: 0 | AB105: 0 | AC105: 0 | AD105: 0 | AE105: 0.004122746317
H106: 2038-10-01 | I106: 94 | J106: 74.75068493 | K106: 138.7534247 | L106: 0.9995989142 | M106: 0.7343513224 | N106: 1 | O106: 219.2089562 | P106: 0.1731597284 | Q106: 0 | R106: 0 | S106: 0 | T106: 0 | U106: 0 | V106: 0 | W106: 1.170562332 | X106: 219.2089562 | Y106: 0.004120780887 | Z106: 0 | AA106: 0 | AB106: 0 | AC106: 0 | AD106: 0 | AE106: 0.004120780887
H107: 2038-11-01 | I107: 95 | J107: 74.83287671 | K107: 138.8356164 | L107: 0.9995989142 | M107: 0.7343513224 | N107: 1 | O107: 218.4904424 | P107: 0.1725921528 | Q107: 0 | R107: 0 | S107: 0 | T107: 0 | U107: 0 | V107: 0 | W107: 1.170003271 | X107: 218.4904424 | Y107: 0.004118812798 | Z107: 0 | AA107: 0 | AB107: 0 | AC107: 0 | AD107: 0 | AE107: 0.004118812798
H108: 2038-12-01 | I108: 96 | J108: 74.91780822 | K108: 138.9205479 | L108: 0.9995989142 | M108: 0.7343513224 | N108: 1 | O108: 217.7709561 | P108: 0.172023809 | Q108: 0 | R108: 0 | S108: 0 | T108: 0 | U108: 0 | V108: 0 | W108: 1.169443452 | X108: 217.7709561 | Y108: 0.004116842044 | Z108: 0 | AA108: 0 | AB108: 0 | AC108: 0 | AD108: 0 | AE108: 0.004116842044
H109: 2039-01-01 | I109: 97 | J109: 75 | K109: 139.0027397 | L109: 0.9995535685 | M109: 0.7343513224 | N109: 1 | O109: 217.050496 | P109: 0.1714624741 | Q109: 0 | R109: 0 | S109: 0 | T109: 0 | U109: 0 | V109: 0 | W109: 1.168890537 | X109: 217.050496 | Y109: 0.004114895594 | Z109: 0 | AA109: 0 | AB109: 0 | AC109: 0 | AD109: 0 | AE109: 0.004114895594
H110: 2039-02-01 | I110: 98 | J110: 75.08219178 | K110: 139.0849315 | L110: 0.9995535685 | M110: 0.7343513224 | N110: 1 | O110: 216.3389206 | P110: 0.1709003539 | Q110: 0 | R110: 0 | S110: 0 | T110: 0 | U110: 0 | V110: 0 | W110: 1.168336849 | X110: 216.3389206 | Y110: 0.004112946421 | Z110: 0 | AA110: 0 | AB110: 0 | AC110: 0 | AD110: 0 | AE110: 0.004112946421
H111: 2039-03-01 | I111: 99 | J111: 75.16712329 | K111: 139.169863 | L111: 0.9995535685 | M111: 0.7343513224 | N111: 1 | O111: 215.6263498 | P111: 0.1703374473 | Q111: 0 | R111: 0 | S111: 0 | T111: 0 | U111: 0 | V111: 0 | W111: 1.167782386 | X111: 215.6263498 | Y111: 0.004110994521 | Z111: 0 | AA111: 0 | AB111: 0 | AC111: 0 | AD111: 0 | AE111: 0.004110994521
H112: 2039-04-01 | I112: 100 | J112: 75.24931507 | K112: 139.2520548 | L112: 0.9995535685 | M112: 0.7343513224 | N112: 1 | O112: 214.912782 | P112: 0.1697737532 | Q112: 0 | R112: 0 | S112: 0 | T112: 0 | U112: 0 | V112: 0 | W112: 1.167227147 | X112: 214.912782 | Y112: 0.00410903989 | Z112: 0 | AA112: 0 | AB112: 0 | AC112: 0 | AD112: 0 | AE112: 0.00410903989
H113: 2039-05-01 | I113: 101 | J113: 75.33424658 | K113: 139.3369863 | L113: 0.9995535685 | M113: 0.7343513224 | N113: 1 | O113: 214.198216 | P113: 0.1692092705 | Q113: 0 | R113: 0 | S113: 0 | T113: 0 | U113: 0 | V113: 0 | W113: 1.166671131 | X113: 214.198216 | Y113: 0.004107082525 | Z113: 0 | AA113: 0 | AB113: 0 | AC113: 0 | AD113: 0 | AE113: 0.004107082525
H114: 2039-06-01 | I114: 102 | J114: 75.41643836 | K114: 139.4191781 | L114: 0.9995535685 | M114: 0.7343513224 | N114: 1 | O114: 213.4826504 | P114: 0.168643998 | Q114: 0 | R114: 0 | S114: 0 | T114: 0 | U114: 0 | V114: 0 | W114: 1.166114338 | X114: 213.4826504 | Y114: 0.004105122422 | Z114: 0 | AA114: 0 | AB114: 0 | AC114: 0 | AD114: 0 | AE114: 0.004105122422
H115: 2039-07-01 | I115: 103 | J115: 75.50136986 | K115: 139.5041096 | L115: 0.9995535685 | M115: 0.7343513224 | N115: 1 | O115: 212.7660836 | P115: 0.1680779348 | Q115: 0 | R115: 0 | S115: 0 | T115: 0 | U115: 0 | V115: 0 | W115: 1.165556766 | X115: 212.7660836 | Y115: 0.004103159576 | Z115: 0 | AA115: 0 | AB115: 0 | AC115: 0 | AD115: 0 | AE115: 0.004103159576
H116: 2039-08-01 | I116: 104 | J116: 75.58356164 | K116: 139.5863014 | L116: 0.9995535685 | M116: 0.7343513224 | N116: 1 | O116: 212.0485144 | P116: 0.1675110796 | Q116: 0 | R116: 0 | S116: 0 | T116: 0 | U116: 0 | V116: 0 | W116: 1.164998413 | X116: 212.0485144 | Y116: 0.004101193984 | Z116: 0 | AA116: 0 | AB116: 0 | AC116: 0 | AD116: 0 | AE116: 0.004101193984
H117: 2039-09-01 | I117: 105 | J117: 75.66575342 | K117: 139.6684932 | L117: 0.9995535685 | M117: 0.7343513224 | N117: 1 | O117: 211.3299413 | P117: 0.1669434314 | Q117: 0 | R117: 0 | S117: 0 | T117: 0 | U117: 0 | V117: 0 | W117: 1.16443928 | X117: 211.3299413 | Y117: 0.004099225643 | Z117: 0 | AA117: 0 | AB117: 0 | AC117: 0 | AD117: 0 | AE117: 0.004099225643
H118: 2039-10-01 | I118: 106 | J118: 75.75068493 | K118: 139.7534247 | L118: 0.9995535685 | M118: 0.7343513224 | N118: 1 | O118: 210.6103629 | P118: 0.1663749891 | Q118: 0 | R118: 0 | S118: 0 | T118: 0 | U118: 0 | V118: 0 | W118: 1.163879364 | X118: 210.6103629 | Y118: 0.004097254547 | Z118: 0 | AA118: 0 | AB118: 0 | AC118: 0 | AD118: 0 | AE118: 0.004097254547
H119: 2039-11-01 | I119: 107 | J119: 75.83287671 | K119: 139.8356164 | L119: 0.9995535685 | M119: 0.7343513224 | N119: 1 | O119: 209.8897778 | P119: 0.1658057515 | Q119: 0 | R119: 0 | S119: 0 | T119: 0 | U119: 0 | V119: 0 | W119: 1.163318665 | X119: 209.8897778 | Y119: 0.004095280694 | Z119: 0 | AA119: 0 | AB119: 0 | AC119: 0 | AD119: 0 | AE119: 0.004095280694
H120: 2039-12-01 | I120: 108 | J120: 75.91780822 | K120: 139.9205479 | L120: 0.9995535685 | M120: 0.7343513224 | N120: 1 | O120: 209.1681846 | P120: 0.1652357176 | Q120: 0 | R120: 0 | S120: 0 | T120: 0 | U120: 0 | V120: 0 | W120: 1.162757182 | X120: 209.1681846 | Y120: 0.00409330408 | Z120: 0 | AA120: 0 | AB120: 0 | AC120: 0 | AD120: 0 | AE120: 0.00409330408
H121: 2040-01-01 | I121: 109 | J121: 76 | K121: 140.0027397 | L121: 0.9994953812 | M121: 0.7343513224 | N121: 1 | O121: 208.445582 | P121: 0.1646744724 | Q121: 0 | R121: 0 | S121: 0 | T121: 0 | U121: 0 | V121: 0 | W121: 1.162204355 | X121: 208.445582 | Y121: 0.004091357941 | Z121: 0 | AA121: 0 | AB121: 0 | AC121: 0 | AD121: 0 | AE121: 0.004091357941
H122: 2040-02-01 | I122: 110 | J122: 76.08219178 | K122: 140.0849315 | L122: 0.9994953812 | M122: 0.7343513224 | N122: 1 | O122: 207.7341204 | P122: 0.1641124093 | Q122: 0 | R122: 0 | S122: 0 | T122: 0 | U122: 0 | V122: 0 | W122: 1.161650723 | X122: 207.7341204 | Y122: 0.004089408966 | Z122: 0 | AA122: 0 | AB122: 0 | AC122: 0 | AD122: 0 | AE122: 0.004089408966
H123: 2040-03-01 | I123: 111 | J123: 76.16712329 | K123: 140.169863 | L123: 0.9994953812 | M123: 0.7343513224 | N123: 1 | O123: 207.0216219 | P123: 0.1635495272 | Q123: 0 | R123: 0 | S123: 0 | T123: 0 | U123: 0 | V123: 0 | W123: 1.161096284 | X123: 207.0216219 | Y123: 0.004087457151 | Z123: 0 | AA123: 0 | AB123: 0 | AC123: 0 | AD123: 0 | AE123: 0.004087457151
H124: 2040-04-01 | I124: 112 | J124: 76.24931507 | K124: 140.2520548 | L124: 0.9994953812 | M124: 0.7343513224 | N124: 1 | O124: 206.3080852 | P124: 0.1629858247 | Q124: 0 | R124: 0 | S124: 0 | T124: 0 | U124: 0 | V124: 0 | W124: 1.160541037 | X124: 206.3080852 | Y124: 0.004085502492 | Z124: 0 | AA124: 0 | AB124: 0 | AC124: 0 | AD124: 0 | AE124: 0.004085502492
H125: 2040-05-01 | I125: 113 | J125: 76.33424658 | K125: 140.3369863 | L125: 0.9994953812 | M125: 0.7343513224 | N125: 1 | O125: 205.5935086 | P125: 0.1624213008 | Q125: 0 | R125: 0 | S125: 0 | T125: 0 | U125: 0 | V125: 0 | W125: 1.159984981 | X125: 205.5935086 | Y125: 0.004083544984 | Z125: 0 | AA125: 0 | AB125: 0 | AC125: 0 | AD125: 0 | AE125: 0.004083544984
H126: 2040-06-01 | I126: 114 | J126: 76.41643836 | K126: 140.4191781 | L126: 0.9994953812 | M126: 0.7343513224 | N126: 1 | O126: 204.8778907 | P126: 0.1618559542 | Q126: 0 | R126: 0 | S126: 0 | T126: 0 | U126: 0 | V126: 0 | W126: 1.159428115 | X126: 204.8778907 | Y126: 0.004081584623 | Z126: 0 | AA126: 0 | AB126: 0 | AC126: 0 | AD126: 0 | AE126: 0.004081584623
H127: 2040-07-01 | I127: 115 | J127: 76.50136986 | K127: 140.5041096 | L127: 0.9994953812 | M127: 0.7343513224 | N127: 1 | O127: 204.1612299 | P127: 0.1612897837 | Q127: 0 | R127: 0 | S127: 0 | T127: 0 | U127: 0 | V127: 0 | W127: 1.158870437 | X127: 204.1612299 | Y127: 0.004079621405 | Z127: 0 | AA127: 0 | AB127: 0 | AC127: 0 | AD127: 0 | AE127: 0.004079621405
H128: 2040-08-01 | I128: 116 | J128: 76.58356164 | K128: 140.5863014 | L128: 0.9994953812 | M128: 0.7343513224 | N128: 1 | O128: 203.4435248 | P128: 0.1607227881 | Q128: 0 | R128: 0 | S128: 0 | T128: 0 | U128: 0 | V128: 0 | W128: 1.158311946 | X128: 203.4435248 | Y128: 0.004077655327 | Z128: 0 | AA128: 0 | AB128: 0 | AC128: 0 | AD128: 0 | AE128: 0.004077655327
H129: 2040-09-01 | I129: 117 | J129: 76.66575342 | K129: 140.6684932 | L129: 0.9994953812 | M129: 0.7343513224 | N129: 1 | O129: 202.7247737 | P129: 0.1601549663 | Q129: 0 | R129: 0 | S129: 0 | T129: 0 | U129: 0 | V129: 0 | W129: 1.157752642 | X129: 202.7247737 | Y129: 0.004075686383 | Z129: 0 | AA129: 0 | AB129: 0 | AC129: 0 | AD129: 0 | AE129: 0.004075686383
H130: 2040-10-01 | I130: 118 | J130: 76.75068493 | K130: 140.7534247 | L130: 0.9994953812 | M130: 0.7343513224 | N130: 1 | O130: 202.0049752 | P130: 0.1595863169 | Q130: 0 | R130: 0 | S130: 0 | T130: 0 | U130: 0 | V130: 0 | W130: 1.157192522 | X130: 202.0049752 | Y130: 0.00407371457 | Z130: 0 | AA130: 0 | AB130: 0 | AC130: 0 | AD130: 0 | AE130: 0.00407371457
H131: 2040-11-01 | I131: 119 | J131: 76.83287671 | K131: 140.8356164 | L131: 0.9994953812 | M131: 0.7343513224 | N131: 1 | O131: 201.2841277 | P131: 0.1590168389 | Q131: 0 | R131: 0 | S131: 0 | T131: 0 | U131: 0 | V131: 0 | W131: 1.156631586 | X131: 201.2841277 | Y131: 0.004071739883 | Z131: 0 | AA131: 0 | AB131: 0 | AC131: 0 | AD131: 0 | AE131: 0.004071739883
H132: 2040-12-01 | I132: 120 | J132: 76.91780822 | K132: 140.9205479 | L132: 0.9994953812 | M132: 0.7343513224 | N132: 1 | O132: 200.5622297 | P132: 0.158446531 | Q132: 0 | R132: 0 | S132: 0 | T132: 0 | U132: 0 | V132: 0 | W132: 1.156069833 | X132: 200.5622297 | Y132: 0.004069762319 | Z132: 0 | AA132: 0 | AB132: 0 | AC132: 0 | AD132: 0 | AE132: 0.004069762319
H133: 2041-01-01 | I133: 121 | J133: 77 | K133: 141.0027397 | L133: 0.9994248355 | M133: 0.7343513224 | N133: 1 | O133: 199.8392798 | P133: 0.1578865358 | Q133: 0 | R133: 0 | S133: 0 | T133: 0 | U133: 0 | V133: 0 | W133: 1.155518238 | X133: 199.8392798 | Y133: 0.004067820514 | Z133: 0 | AA133: 0 | AB133: 0 | AC133: 0 | AD133: 0 | AE133: 0.004067820514
H134: 2041-02-01 | I134: 122 | J134: 77.08219178 | K134: 141.0849315 | L134: 0.9994248355 | M134: 0.7343513224 | N134: 1 | O134: 199.1294027 | P134: 0.157325685 | Q134: 0 | R134: 0 | S134: 0 | T134: 0 | U134: 0 | V134: 0 | W134: 1.1549658 | X134: 199.1294027 | Y134: 0.004065875743 | Z134: 0 | AA134: 0 | AB134: 0 | AC134: 0 | AD134: 0 | AE134: 0.004065875743
H135: 2041-03-01 | I135: 123 | J135: 77.16712329 | K135: 141.169863 | L135: 0.9994248355 | M135: 0.7343513224 | N135: 1 | O135: 198.418441 | P135: 0.1567639772 | Q135: 0 | R135: 0 | S135: 0 | T135: 0 | U135: 0 | V135: 0 | W135: 1.154412518 | X135: 198.418441 | Y135: 0.004063928 | Z135: 0 | AA135: 0 | AB135: 0 | AC135: 0 | AD135: 0 | AE135: 0.004063928
H136: 2041-04-01 | I136: 124 | J136: 77.24931507 | K136: 141.2520548 | L136: 0.9994248355 | M136: 0.7343513224 | N136: 1 | O136: 197.7063929 | P136: 0.1562014111 | Q136: 0 | R136: 0 | S136: 0 | T136: 0 | U136: 0 | V136: 0 | W136: 1.15385839 | X136: 197.7063929 | Y136: 0.004061977281 | Z136: 0 | AA136: 0 | AB136: 0 | AC136: 0 | AD136: 0 | AE136: 0.004061977281
H137: 2041-05-01 | I137: 125 | J137: 77.33424658 | K137: 141.3369863 | L137: 0.9994248355 | M137: 0.7343513224 | N137: 1 | O137: 196.9932568 | P137: 0.1556379854 | Q137: 0 | R137: 0 | S137: 0 | T137: 0 | U137: 0 | V137: 0 | W137: 1.153303416 | X137: 196.9932568 | Y137: 0.004060023581 | Z137: 0 | AA137: 0 | AB137: 0 | AC137: 0 | AD137: 0 | AE137: 0.004060023581
H138: 2041-06-01 | I138: 126 | J138: 77.41643836 | K138: 141.4191781 | L138: 0.9994248355 | M138: 0.7343513224 | N138: 1 | O138: 196.2790311 | P138: 0.1550736988 | Q138: 0 | R138: 0 | S138: 0 | T138: 0 | U138: 0 | V138: 0 | W138: 1.152747593 | X138: 196.2790311 | Y138: 0.004058066896 | Z138: 0 | AA138: 0 | AB138: 0 | AC138: 0 | AD138: 0 | AE138: 0.004058066896
H139: 2041-07-01 | I139: 127 | J139: 77.50136986 | K139: 141.5041096 | L139: 0.9994248355 | M139: 0.7343513224 | N139: 1 | O139: 195.563714 | P139: 0.15450855 | Q139: 0 | R139: 0 | S139: 0 | T139: 0 | U139: 0 | V139: 0 | W139: 1.152190922 | X139: 195.563714 | Y139: 0.004056107221 | Z139: 0 | AA139: 0 | AB139: 0 | AC139: 0 | AD139: 0 | AE139: 0.004056107221
H140: 2041-08-01 | I140: 128 | J140: 77.58356164 | K140: 141.5863014 | L140: 0.9994248355 | M140: 0.7343513224 | N140: 1 | O140: 194.847304 | P140: 0.1539425376 | Q140: 0 | R140: 0 | S140: 0 | T140: 0 | U140: 0 | V140: 0 | W140: 1.1516334 | X140: 194.847304 | Y140: 0.004054144551 | Z140: 0 | AA140: 0 | AB140: 0 | AC140: 0 | AD140: 0 | AE140: 0.004054144551
H141: 2041-09-01 | I141: 129 | J141: 77.66575342 | K141: =+IF(J141="","",ROUND((YEAR($H141)-YEAR($C$11)+(MONTH($H141)-MONTH($C$11))/12+(DAY($H141)-DAY($C$11))/365)*365,0)/365) -> 141.6684932 | L141: 0.9994248355 | M141: 0.7343513224 | N141: 1 | O141: 194.1297993 | P141: =+IF(O141=0,0,O141/L141*(1+$L$8)*$J$9) -> 0.1533756604 | Q141: =+N141*$C$13 -> 0 | R141: 0 | S141: 0 | T141: 0 | U141: 0 | V141: 0 | W141: =+IF(P141=0,0,N141+P141*(1-$I$8)) -> 1.151075025 | X141: =+(W141/(1-$I$8)+X142)*L141*$M$8 -> 194.1297993 | Y141: =+W141*$F$10 -> 0.004052178883 | Z141: 0 | AA141: =+(AA142+Z141/(1-$I$8))*M141*$M$8 -> 0 | AB141: 0 | AC141: =+(AC142+AB141/(1-$I$8))*L141*M141*$M$8 -> 0 | AD141: 0 | AE141: 0.004052178883
H142: =+IF(I142="","",DATE(YEAR(H141),MONTH(H141)+1,1)) -> 2041-10-01 | I142: 130 | J142: =+IF(I142="","",ROUND((YEAR(H142)-YEAR($C$10)+(MONTH(H142)-MONTH($C$10))/12+(DAY(H142)-DAY($C$10))/365)*365,0)/365) -> 77.75068493 | K142: 141.7534247 | L142: 0.9994248355 | M142: 0.7343513224 | N142: =+IF(I142="",0,IF(H142<DATE(YEAR($C$9),MONTH($C$9),1),0,(1+$C$14)^(YEAR(H142)-YEAR($C$9)))) -> 1 | O142: =+(O143*L142+N142*L142/(1-$I$8))*$M$9 -> 193.4111982 | P142: 0.152807917 | Q142: 0 | R142: =+(R143*$M142+Q142*$M142/(1-$I$8))*$M$9 -> 0 | S142: =+(S143*L142*$M142+Q142*L142*$M142/(1-$I$8))*$M$9 -> 0 | T142: =+R142-S142 -> 0 | U142: =+IF(R142=0,0,R142/M142*(1+$L$8)*$J$9) -> 0 | V142: =+IF(S142=0,0,S142/(L142*M142)*(1+$L$8)*$J$9) -> 0 | W142: 1.150515798 | X142: 193.4111982 | Y142: 0.004050210212 | Z142: =+Q142+U142*(1-$I$8) -> 0 | AA142: 0 | AB142: =+Q142+V142*(1-$I$8) -> 0 | AC142: 0 | AD142: 0 | AE142: 0.004050210212
H143: 2041-11-01 | I143: =+IF(OR(I142="",I142=$C$19+$C$15),"",I142+1) -> 131 | J143: 77.83287671 | K143: 141.8356164 | L143: =+IF(I143="",0,VLOOKUP(J143,TB_GEN,3+$C$12)) -> 0.9994248355 | M143: 0.7343513224 | N143: 1 | O143: 192.6914991 | P143: 0.1522393061 | Q143: 0 | R143: 0 | S143: 0 | T143: 0 | U143: 0 | V143: 0 | W143: 1.149955717 | X143: 192.6914991 | Y143: 0.004048238532 | Z143: 0 | AA143: 0 | AB143: 0 | AC143: 0 | AD143: 0 | AE143: =+W143*$C$18+(Z143-AB143)*$C$18 -> 0.004048238532
H144: 2041-12-01 | I144: 132 | J144: 77.91780822 | K144: 141.9205479 | L144: 0.9994248355 | M144: =+IF(I144="",0,VLOOKUP(K144,TB_GEN,7+$F$18)) -> 0.7343513224 | N144: 1 | O144: 191.9707004 | P144: 0.1516698264 | Q144: 0 | R144: 0 | S144: 0 | T144: 0 | U144: 0 | V144: 0 | W144: 1.149394779 | X144: 191.9707004 | Y144: 0.004046263839 | Z144: 0 | AA144: 0 | AB144: 0 | AC144: 0 | AD144: =+AA144-AC144 -> 0 | AE144: 0.004046263839
H145: 2042-01-01 | I145: 133 | J145: 78 | K145: 142.0027397 | L145: 0.999339108 | M145: 0.7343513224 | N145: 1 | O145: 191.2488003 | P145: 0.1511124384 | Q145: 0 | R145: 0 | S145: 0 | T145: 0 | U145: 0 | V145: 0 | W145: 1.148845752 | X145: 191.2488003 | Y145: 0.004044331076 | Z145: 0 | AA145: 0 | AB145: 0 | AC145: 0 | AD145: 0 | AE145: 0.004044331076
H146: 2042-02-01 | I146: 134 | J146: 78.08219178 | K146: 142.0849315 | L146: 0.999339108 | M146: 0.7343513224 | N146: 1 | O146: 190.5422283 | P146: 0.1505541509 | Q146: 0 | R146: 0 | S146: 0 | T146: 0 | U146: 0 | V146: 0 | W146: 1.148295839 | X146: 190.5422283 | Y146: 0.004042395192 | Z146: 0 | AA146: 0 | AB146: 0 | AC146: 0 | AD146: 0 | AE146: 0.004042395192
H147: 2042-03-01 | I147: 135 | J147: 78.16712329 | K147: 142.169863 | L147: 0.999339108 | M147: 0.7343513224 | N147: 1 | O147: 189.834516 | P147: 0.1499949624 | Q147: 0 | R147: 0 | S147: 0 | T147: 0 | U147: 0 | V147: 0 | W147: 1.147745038 | X147: 189.834516 | Y147: 0.004040456185 | Z147: 0 | AA147: 0 | AB147: 0 | AC147: 0 | AD147: 0 | AE147: 0.004040456185
H148: 2042-04-01 | I148: 136 | J148: 78.24931507 | K148: 142.2520548 | L148: 0.999339108 | M148: 0.7343513224 | N148: 1 | O148: 189.1256615 | P148: 0.1494348714 | Q148: 0 | R148: 0 | S148: 0 | T148: 0 | U148: 0 | V148: 0 | W148: 1.147193348 | X148: 189.1256615 | Y148: 0.004038514048 | Z148: 0 | AA148: 0 | AB148: 0 | AC148: 0 | AD148: 0 | AE148: 0.004038514048
H149: 2042-05-01 | I149: 137 | J149: 78.33424658 | K149: 142.3369863 | L149: 0.999339108 | M149: 0.7343513224 | N149: 1 | O149: 188.415663 | P149: 0.1488738765 | Q149: 0 | R149: 0 | S149: 0 | T149: 0 | U149: 0 | V149: 0 | W149: 1.146640768 | X149: 188.415663 | Y149: 0.004036568777 | Z149: 0 | AA149: 0 | AB149: 0 | AC149: 0 | AD149: 0 | AE149: 0.004036568777
H150: 2042-06-01 | I150: 138 | J150: 78.41643836 | K150: 142.4191781 | L150: 0.999339108 | M150: 0.7343513224 | N150: 1 | O150: 187.7045186 | P150: 0.1483119762 | Q150: 0 | R150: 0 | S150: 0 | T150: 0 | U150: 0 | V150: 0 | W150: 1.146087297 | X150: 187.7045186 | Y150: 0.004034620367 | Z150: 0 | AA150: 0 | AB150: 0 | AC150: 0 | AD150: 0 | AE150: 0.004034620367
H151: 2042-07-01 | I151: 139 | J151: 78.50136986 | K151: 142.5041096 | L151: 0.999339108 | M151: 0.7343513224 | N151: 1 | O151: 186.9922265 | P151: 0.147749169 | Q151: 0 | R151: 0 | S151: 0 | T151: 0 | U151: 0 | V151: 0 | W151: 1.145532931 | X151: 186.9922265 | Y151: 0.004032668812 | Z151: 0 | AA151: 0 | AB151: 0 | AC151: 0 | AD151: 0 | AE151: 0.004032668812
H152: 2042-08-01 | I152: 140 | J152: 78.58356164 | K152: 142.5863014 | L152: 0.999339108 | M152: 0.7343513224 | N152: 1 | O152: 186.2787848 | P152: 0.1471854535 | Q152: 0 | R152: 0 | S152: 0 | T152: 0 | U152: 0 | V152: 0 | W152: 1.144977672 | X152: 186.2787848 | Y152: 0.004030714107 | Z152: 0 | AA152: 0 | AB152: 0 | AC152: 0 | AD152: 0 | AE152: 0.004030714107
H153: 2042-09-01 | I153: 141 | J153: 78.66575342 | K153: 142.6684932 | L153: 0.999339108 | M153: 0.7343513224 | N153: 1 | O153: 185.5641917 | P153: 0.1466208283 | Q153: 0 | R153: 0 | S153: 0 | T153: 0 | U153: 0 | V153: 0 | W153: 1.144421516 | X153: 185.5641917 | Y153: 0.004028756247 | Z153: 0 | AA153: 0 | AB153: 0 | AC153: 0 | AD153: 0 | AE153: 0.004028756247
H154: 2042-10-01 | I154: 142 | J154: 78.75068493 | K154: 142.7534247 | L154: 0.999339108 | M154: 0.7343513224 | N154: 1 | O154: 184.8484454 | P154: 0.1460552918 | Q154: 0 | R154: 0 | S154: 0 | T154: 0 | U154: 0 | V154: 0 | W154: 1.143864462 | X154: 184.8484454 | Y154: 0.004026795228 | Z154: 0 | AA154: 0 | AB154: 0 | AC154: 0 | AD154: 0 | AE154: 0.004026795228
H155: 2042-11-01 | I155: 143 | J155: 78.83287671 | K155: 142.8356164 | L155: 0.999339108 | M155: 0.7343513224 | N155: 1 | O155: 184.1315439 | P155: 0.1454888425 | Q155: 0 | R155: 0 | S155: 0 | T155: 0 | U155: 0 | V155: 0 | W155: 1.14330651 | X155: 184.1315439 | Y155: 0.004024831044 | Z155: 0 | AA155: 0 | AB155: 0 | AC155: 0 | AD155: 0 | AE155: 0.004024831044
H156: 2042-12-01 | I156: 144 | J156: 78.91780822 | K156: 142.9205479 | L156: 0.999339108 | M156: 0.7343513224 | N156: 1 | O156: 183.4134853 | P156: 0.1449214791 | Q156: 0 | R156: 0 | S156: 0 | T156: 0 | U156: 0 | V156: 0 | W156: 1.142747657 | X156: 183.4134853 | Y156: 0.00402286369 | Z156: 0 | AA156: 0 | AB156: 0 | AC156: 0 | AD156: 0 | AE156: 0.00402286369
H157: 2043-01-01 | I157: 145 | J157: 79 | K157: 143.0027397 | L157: 0.9992344626 | M157: 0.7343513224 | N157: 1 | O157: 182.6942679 | P157: 0.1443683175 | Q157: 0 | R157: 0 | S157: 0 | T157: 0 | U157: 0 | V157: 0 | W157: 1.142202793 | X157: 182.6942679 | Y157: 0.004020945581 | Z157: 0 | AA157: 0 | AB157: 0 | AC157: 0 | AD157: 0 | AE157: 0.004020945581
H158: 2043-02-01 | I158: 146 | J158: 79.08219178 | K158: 143.0849315 | L158: 0.9992344626 | M158: 0.7343513224 | N158: 1 | O158: 181.9930534 | P158: 0.1438142051 | Q158: 0 | R158: 0 | S158: 0 | T158: 0 | U158: 0 | V158: 0 | W158: 1.141656992 | X158: 181.9930534 | Y158: 0.004019024175 | Z158: 0 | AA158: 0 | AB158: 0 | AC158: 0 | AD158: 0 | AE158: 0.004019024175
H159: 2043-03-01 | I159: 147 | J159: 79.16712329 | K159: 143.169863 | L159: 0.9992344626 | M159: 0.7343513224 | N159: 1 | O159: 181.2906337 | P159: 0.1432591403 | Q159: 0 | R159: 0 | S159: 0 | T159: 0 | U159: 0 | V159: 0 | W159: 1.141110253 | X159: 181.2906337 | Y159: 0.004017099467 | Z159: 0 | AA159: 0 | AB159: 0 | AC159: 0 | AD159: 0 | AE159: 0.004017099467
H160: 2043-04-01 | I160: 148 | J160: 79.24931507 | K160: 143.2520548 | L160: 0.9992344626 | M160: 0.7343513224 | N160: 1 | O160: 180.5870066 | P160: 0.1427031214 | Q160: 0 | R160: 0 | S160: 0 | T160: 0 | U160: 0 | V160: 0 | W160: 1.140562575 | X160: 180.5870066 | Y160: 0.004015171451 | Z160: 0 | AA160: 0 | AB160: 0 | AC160: 0 | AD160: 0 | AE160: 0.004015171451
H161: 2043-05-01 | I161: 149 | J161: 79.33424658 | K161: 143.3369863 | L161: 0.9992344626 | M161: 0.7343513224 | N161: 1 | O161: 179.8821701 | P161: 0.1421461469 | Q161: 0 | R161: 0 | S161: 0 | T161: 0 | U161: 0 | V161: 0 | W161: 1.140013955 | X161: 179.8821701 | Y161: 0.00401324012 | Z161: 0 | AA161: 0 | AB161: 0 | AC161: 0 | AD161: 0 | AE161: 0.00401324012
H162: 2043-06-01 | I162: 150 | J162: 79.41643836 | K162: 143.4191781 | L162: 0.9992344626 | M162: 0.7343513224 | N162: 1 | O162: 179.1761222 | P162: 0.141588215 | Q162: 0 | R162: 0 | S162: 0 | T162: 0 | U162: 0 | V162: 0 | W162: 1.139464392 | X162: 179.1761222 | Y162: 0.004011305471 | Z162: 0 | AA162: 0 | AB162: 0 | AC162: 0 | AD162: 0 | AE162: 0.004011305471
H163: 2043-07-01 | I163: 151 | J163: 79.50136986 | K163: 143.5041096 | L163: 0.9992344626 | M163: 0.7343513224 | N163: 1 | O163: 178.4688607 | P163: 0.1410293242 | Q163: 0 | R163: 0 | S163: 0 | T163: 0 | U163: 0 | V163: 0 | W163: 1.138913884 | X163: 178.4688607 | Y163: 0.004009367495 | Z163: 0 | AA163: 0 | AB163: 0 | AC163: 0 | AD163: 0 | AE163: 0.004009367495
H164: 2043-08-01 | I164: 152 | J164: 79.58356164 | K164: 143.5863014 | L164: 0.9992344626 | M164: 0.7343513224 | N164: 1 | O164: 177.7603836 | P164: 0.1404694728 | Q164: 0 | R164: 0 | S164: 0 | T164: 0 | U164: 0 | V164: 0 | W164: 1.138362431 | X164: 177.7603836 | Y164: 0.004007426189 | Z164: 0 | AA164: 0 | AB164: 0 | AC164: 0 | AD164: 0 | AE164: 0.004007426189
H165: 2043-09-01 | I165: 153 | J165: 79.66575342 | K165: 143.6684932 | L165: 0.9992344626 | M165: 0.7343513224 | N165: 1 | O165: 177.0506888 | P165: 0.139908659 | Q165: 0 | R165: 0 | S165: 0 | T165: 0 | U165: 0 | V165: 0 | W165: 1.137810029 | X165: 177.0506888 | Y165: 0.004005481547 | Z165: 0 | AA165: 0 | AB165: 0 | AC165: 0 | AD165: 0 | AE165: 0.004005481547
H166: 2043-10-01 | I166: 154 | J166: 79.75068493 | K166: 143.7534247 | L166: 0.9992344626 | M166: 0.7343513224 | N166: 1 | O166: 176.3397741 | P166: 0.1393468814 | Q166: 0 | R166: 0 | S166: 0 | T166: 0 | U166: 0 | V166: 0 | W166: 1.137256678 | X166: 176.3397741 | Y166: 0.004003533561 | Z166: 0 | AA166: 0 | AB166: 0 | AC166: 0 | AD166: 0 | AE166: 0.004003533561
H167: 2043-11-01 | I167: 155 | J167: 79.83287671 | K167: 143.8356164 | L167: 0.9992344626 | M167: 0.7343513224 | N167: 1 | O167: 175.6276375 | P167: 0.1387841382 | Q167: 0 | R167: 0 | S167: 0 | T167: 0 | U167: 0 | V167: 0 | W167: 1.136702376 | X167: 175.6276375 | Y167: 0.004001582228 | Z167: 0 | AA167: 0 | AB167: 0 | AC167: 0 | AD167: 0 | AE167: 0.004001582228
H168: 2043-12-01 | I168: 156 | J168: 79.91780822 | K168: 143.9205479 | L168: 0.9992344626 | M168: 0.7343513224 | N168: 1 | O168: 174.9142769 | P168: 0.1382204277 | Q168: 0 | R168: 0 | S168: 0 | T168: 0 | U168: 0 | V168: 0 | W168: 1.136147121 | X168: 174.9142769 | Y168: 0.003999627541 | Z168: 0 | AA168: 0 | AB168: 0 | AC168: 0 | AD168: 0 | AE168: 0.003999627541
H169: 2044-01-01 | I169: 157 | J169: 80 | K169: 144.0027397 | L169: 0.9991111058 | M169: 0.7343513224 | N169: 1 | O169: 174.1996902 | P169: 0.1376727443 | Q169: 0 | R169: 0 | S169: 0 | T169: 0 | U169: 0 | V169: 0 | W169: 1.135607653 | X169: 174.1996902 | Y169: 0.003997728427 | Z169: 0 | AA169: 0 | AB169: 0 | AC169: 0 | AD169: 0 | AE169: 0.003997728427
H170: 2044-02-01 | I170: 158 | J170: 80.08219178 | K170: 144.0849315 | L170: 0.9991111058 | M170: 0.7343513224 | N170: 1 | O170: 173.50542 | P170: 0.1371240517 | Q170: 0 | R170: 0 | S170: 0 | T170: 0 | U170: 0 | V170: 0 | W170: 1.135067191 | X170: 173.50542 | Y170: 0.003995825815 | Z170: 0 | AA170: 0 | AB170: 0 | AC170: 0 | AD170: 0 | AE170: 0.003995825815
H171: 2044-03-01 | I171: 159 | J171: 80.16712329 | K171: 144.169863 | L171: 0.9991111058 | M171: 0.7343513224 | N171: 1 | O171: 172.8098707 | P171: 0.1365743482 | Q171: 0 | R171: 0 | S171: 0 | T171: 0 | U171: 0 | V171: 0 | W171: 1.134525733 | X171: 172.8098707 | Y171: 0.003993919697 | Z171: 0 | AA171: 0 | AB171: 0 | AC171: 0 | AD171: 0 | AE171: 0.003993919697
H172: 2044-04-01 | I172: 160 | J172: 80.24931507 | K172: 144.2520548 | L172: 0.9991111058 | M172: 0.7343513224 | N172: 1 | O172: 172.1130399 | P172: 0.1360236318 | Q172: 0 | R172: 0 | S172: 0 | T172: 0 | U172: 0 | V172: 0 | W172: 1.133983277 | X172: 172.1130399 | Y172: 0.003992010068 | Z172: 0 | AA172: 0 | AB172: 0 | AC172: 0 | AD172: 0 | AE172: 0.003992010068
H173: 2044-05-01 | I173: 161 | J173: 80.33424658 | K173: 144.3369863 | L173: 0.9991111058 | M173: 0.7343513224 | N173: 1 | O173: 171.4149251 | P173: 0.1354719008 | Q173: 0 | R173: 0 | S173: 0 | T173: 0 | U173: 0 | V173: 0 | W173: 1.133439822 | X173: 171.4149251 | Y173: 0.00399009692 | Z173: 0 | AA173: 0 | AB173: 0 | AC173: 0 | AD173: 0 | AE173: 0.00399009692
H174: 2044-06-01 | I174: 162 | J174: 80.41643836 | K174: 144.4191781 | L174: 0.9991111058 | M174: 0.7343513224 | N174: 1 | O174: 170.7155241 | P174: 0.1349191532 | Q174: 0 | R174: 0 | S174: 0 | T174: 0 | U174: 0 | V174: 0 | W174: 1.132895366 | X174: 170.7155241 | Y174: 0.003988180246 | Z174: 0 | AA174: 0 | AB174: 0 | AC174: 0 | AD174: 0 | AE174: 0.003988180246
H175: 2044-07-01 | I175: 163 | J175: 80.50136986 | K175: 144.5041096 | L175: 0.9991111058 | M175: 0.7343513224 | N175: 1 | O175: 170.0148345 | P175: 0.1343653872 | Q175: 0 | R175: 0 | S175: 0 | T175: 0 | U175: 0 | V175: 0 | W175: 1.132349906 | X175: 170.0148345 | Y175: 0.003986260042 | Z175: 0 | AA175: 0 | AB175: 0 | AC175: 0 | AD175: 0 | AE175: 0.003986260042
H176: 2044-08-01 | I176: 164 | J176: 80.58356164 | K176: 144.5863014 | L176: 0.9991111058 | M176: 0.7343513224 | N176: 1 | O176: 169.3128539 | P176: 0.133810601 | Q176: 0 | R176: 0 | S176: 0 | T176: 0 | U176: 0 | V176: 0 | W176: 1.131803442 | X176: 169.3128539 | Y176: 0.003984336299 | Z176: 0 | AA176: 0 | AB176: 0 | AC176: 0 | AD176: 0 | AE176: 0.003984336299
H177: 2044-09-01 | I177: 165 | J177: 80.66575342 | K177: 144.6684932 | L177: 0.9991111058 | M177: 0.7343513224 | N177: 1 | O177: 168.6095799 | P177: 0.1332547925 | Q177: 0 | R177: 0 | S177: 0 | T177: 0 | U177: 0 | V177: 0 | W177: 1.131255971 | X177: 168.6095799 | Y177: 0.003982409013 | Z177: 0 | AA177: 0 | AB177: 0 | AC177: 0 | AD177: 0 | AE177: 0.003982409013
H178: 2044-10-01 | I178: 166 | J178: 80.75068493 | K178: 144.7534247 | L178: 0.9991111058 | M178: 0.7343513224 | N178: 1 | O178: 167.9050101 | P178: 0.13269796 | Q178: 0 | R178: 0 | S178: 0 | T178: 0 | U178: 0 | V178: 0 | W178: 1.130707491 | X178: 167.9050101 | Y178: 0.003980478175 | Z178: 0 | AA178: 0 | AB178: 0 | AC178: 0 | AD178: 0 | AE178: 0.003980478175
H179: 2044-11-01 | I179: 167 | J179: 80.83287671 | K179: 144.8356164 | L179: 0.9991111058 | M179: 0.7343513224 | N179: 1 | O179: 167.1991422 | P179: 0.1321401015 | Q179: 0 | R179: 0 | S179: 0 | T179: 0 | U179: 0 | V179: 0 | W179: 1.130158 | X179: 167.1991422 | Y179: 0.003978543779 | Z179: 0 | AA179: 0 | AB179: 0 | AC179: 0 | AD179: 0 | AE179: 0.003978543779
H180: 2044-12-01 | I180: 168 | J180: 80.91780822 | K180: 144.9205479 | L180: 0.9991111058 | M180: 0.7343513224 | N180: 1 | O180: 166.4919737 | P180: 0.1315812152 | Q180: 0 | R180: 0 | S180: 0 | T180: 0 | U180: 0 | V180: 0 | W180: 1.129607497 | X180: 166.4919737 | Y180: 0.00397660582 | Z180: 0 | AA180: 0 | AB180: 0 | AC180: 0 | AD180: 0 | AE180: 0.00397660582
H181: 2045-01-01 | I181: 169 | J181: 81 | K181: 145.0027397 | L181: 0.99895748 | M181: 0.7343513224 | N181: 1 | O181: 165.7835023 | P181: 0.1310414484 | Q181: 0 | R181: 0 | S181: 0 | T181: 0 | U181: 0 | V181: 0 | W181: 1.129075827 | X181: 165.7835023 | Y181: 0.003974734158 | Z181: 0 | AA181: 0 | AB181: 0 | AC181: 0 | AD181: 0 | AE181: 0.003974734158
H182: 2045-02-01 | I182: 170 | J182: 81.08219178 | K182: 145.0849315 | L182: 0.99895748 | M182: 0.7343513224 | N182: 1 | O182: 165.0992677 | P182: 0.1305006039 | Q182: 0 | R182: 0 | S182: 0 | T182: 0 | U182: 0 | V182: 0 | W182: 1.128543095 | X182: 165.0992677 | Y182: 0.003972858759 | Z182: 0 | AA182: 0 | AB182: 0 | AC182: 0 | AD182: 0 | AE182: 0.003972858759
H183: 2045-03-01 | I183: 171 | J183: 81.16712329 | K183: 145.169863 | L183: 0.99895748 | M183: 0.7343513224 | N183: 1 | O183: 164.413667 | P183: 0.1299586796 | Q183: 0 | R183: 0 | S183: 0 | T183: 0 | U183: 0 | V183: 0 | W183: 1.128009299 | X183: 164.413667 | Y183: 0.003970979616 | Z183: 0 | AA183: 0 | AB183: 0 | AC183: 0 | AD183: 0 | AE183: 0.003970979616
H184: 2045-04-01 | I184: 172 | J184: 81.24931507 | K184: 145.2520548 | L184: 0.99895748 | M184: 0.7343513224 | N184: 1 | O184: 163.7266975 | P184: 0.1294156734 | Q184: 0 | R184: 0 | S184: 0 | T184: 0 | U184: 0 | V184: 0 | W184: 1.127474438 | X184: 163.7266975 | Y184: 0.003969096722 | Z184: 0 | AA184: 0 | AB184: 0 | AC184: 0 | AD184: 0 | AE184: 0.003969096722
H185: 2045-05-01 | I185: 173 | J185: 81.33424658 | K185: 145.3369863 | L185: 0.99895748 | M185: 0.7343513224 | N185: 1 | O185: 163.0383565 | P185: 0.128871583 | Q185: 0 | R185: 0 | S185: 0 | T185: 0 | U185: 0 | V185: 0 | W185: 1.126938509 | X185: 163.0383565 | Y185: 0.003967210068 | Z185: 0 | AA185: 0 | AB185: 0 | AC185: 0 | AD185: 0 | AE185: 0.003967210068
H186: 2045-06-01 | I186: 174 | J186: 81.41643836 | K186: 145.4191781 | L186: 0.99895748 | M186: 0.7343513224 | N186: 1 | O186: 162.3486411 | P186: 0.1283264063 | Q186: 0 | R186: 0 | S186: 0 | T186: 0 | U186: 0 | V186: 0 | W186: 1.12640151 | X186: 162.3486411 | Y186: 0.003965319647 | Z186: 0 | AA186: 0 | AB186: 0 | AC186: 0 | AD186: 0 | AE186: 0.003965319647
H187: 2045-07-01 | I187: 175 | J187: 81.50136986 | K187: 145.5041096 | L187: 0.99895748 | M187: 0.7343513224 | N187: 1 | O187: 161.6575487 | P187: 0.1277801411 | Q187: 0 | R187: 0 | S187: 0 | T187: 0 | U187: 0 | V187: 0 | W187: 1.125863439 | X187: 161.6575487 | Y187: 0.003963425452 | Z187: 0 | AA187: 0 | AB187: 0 | AC187: 0 | AD187: 0 | AE187: 0.003963425452
H188: 2045-08-01 | I188: 176 | J188: 81.58356164 | K188: 145.5863014 | L188: 0.99895748 | M188: 0.7343513224 | N188: 1 | O188: 160.9650765 | P188: 0.1272327853 | Q188: 0 | R188: 0 | S188: 0 | T188: 0 | U188: 0 | V188: 0 | W188: 1.125324294 | X188: 160.9650765 | Y188: 0.003961527475 | Z188: 0 | AA188: 0 | AB188: 0 | AC188: 0 | AD188: 0 | AE188: 0.003961527475
H189: 2045-09-01 | I189: 177 | J189: 81.66575342 | K189: 145.6684932 | L189: 0.99895748 | M189: 0.7343513224 | N189: 1 | O189: 160.2712217 | P189: 0.1266843367 | Q189: 0 | R189: 0 | S189: 0 | T189: 0 | U189: 0 | V189: 0 | W189: 1.124784072 | X189: 160.2712217 | Y189: 0.003959625709 | Z189: 0 | AA189: 0 | AB189: 0 | AC189: 0 | AD189: 0 | AE189: 0.003959625709
H190: 2045-10-01 | I190: 178 | J190: 81.75068493 | K190: 145.7534247 | L190: 0.99895748 | M190: 0.7343513224 | N190: 1 | O190: 159.5759816 | P190: 0.1261347931 | Q190: 0 | R190: 0 | S190: 0 | T190: 0 | U190: 0 | V190: 0 | W190: 1.124242771 | X190: 159.5759816 | Y190: 0.003957720145 | Z190: 0 | AA190: 0 | AB190: 0 | AC190: 0 | AD190: 0 | AE190: 0.003957720145
H191: 2045-11-01 | I191: 179 | J191: 81.83287671 | K191: 145.8356164 | L191: 0.99895748 | M191: 0.7343513224 | N191: 1 | O191: 158.8793535 | P191: 0.1255841523 | Q191: 0 | R191: 0 | S191: 0 | T191: 0 | U191: 0 | V191: 0 | W191: 1.12370039 | X191: 158.8793535 | Y191: 0.003955810777 | Z191: 0 | AA191: 0 | AB191: 0 | AC191: 0 | AD191: 0 | AE191: 0.003955810777
H192: 2045-12-01 | I192: 180 | J192: 81.91780822 | K192: 145.9205479 | L192: 0.99895748 | M192: 0.7343513224 | N192: 1 | O192: 158.1813345 | P192: 0.1250324121 | Q192: 0 | R192: 0 | S192: 0 | T192: 0 | U192: 0 | V192: 0 | W192: 1.123156926 | X192: 158.1813345 | Y192: 0.003953897597 | Z192: 0 | AA192: 0 | AB192: 0 | AC192: 0 | AD192: 0 | AE192: 0.003953897597
H193: 2046-01-01 | I193: 181 | J193: 82 | K193: 146.0027397 | L193: 0.9987797521 | M193: 0.7343513224 | N193: 1 | O193: 157.4819219 | P193: 0.1245017209 | Q193: 0 | R193: 0 | S193: 0 | T193: 0 | U193: 0 | V193: 0 | W193: 1.122634195 | X193: 157.4819219 | Y193: 0.003952057406 | Z193: 0 | AA193: 0 | AB193: 0 | AC193: 0 | AD193: 0 | AE193: 0.003952057406
H194: 2046-02-01 | I194: 182 | J194: 82.08219178 | K194: 146.0849315 | L194: 0.9987797521 | M194: 0.7343513224 | N194: 1 | O194: 156.8091919 | P194: 0.1239698754 | Q194: 0 | R194: 0 | S194: 0 | T194: 0 | U194: 0 | V194: 0 | W194: 1.122110327 | X194: 156.8091919 | Y194: 0.003950213211 | Z194: 0 | AA194: 0 | AB194: 0 | AC194: 0 | AD194: 0 | AE194: 0.003950213211
H195: 2046-03-01 | I195: 183 | J195: 82.16712329 | K195: 146.169863 | L195: 0.9987797521 | M195: 0.7343513224 | N195: 1 | O195: 156.1349989 | P195: 0.1234368734 | Q195: 0 | R195: 0 | S195: 0 | T195: 0 | U195: 0 | V195: 0 | W195: 1.12158532 | X195: 156.1349989 | Y195: 0.003948365007 | Z195: 0 | AA195: 0 | AB195: 0 | AC195: 0 | AD195: 0 | AE195: 0.003948365007
H196: 2046-04-01 | I196: 184 | J196: 82.24931507 | K196: 146.2520548 | L196: 0.9987797521 | M196: 0.7343513224 | N196: 1 | O196: 155.4593396 | P196: 0.1229027121 | Q196: 0 | R196: 0 | S196: 0 | T196: 0 | U196: 0 | V196: 0 | W196: 1.121059171 | X196: 155.4593396 | Y196: 0.003946512782 | Z196: 0 | AA196: 0 | AB196: 0 | AC196: 0 | AD196: 0 | AE196: 0.003946512782
H197: 2046-05-01 | I197: 185 | J197: 82.33424658 | K197: 146.3369863 | L197: 0.9987797521 | M197: 0.7343513224 | N197: 1 | O197: 154.7822108 | P197: 0.1223673891 | Q197: 0 | R197: 0 | S197: 0 | T197: 0 | U197: 0 | V197: 0 | W197: 1.120531878 | X197: 154.7822108 | Y197: 0.003944656529 | Z197: 0 | AA197: 0 | AB197: 0 | AC197: 0 | AD197: 0 | AE197: 0.003944656529
H198: 2046-06-01 | I198: 186 | J198: 82.41643836 | K198: 146.4191781 | L198: 0.9987797521 | M198: 0.7343513224 | N198: 1 | O198: 154.1036094 | P198: 0.1218309018 | Q198: 0 | R198: 0 | S198: 0 | T198: 0 | U198: 0 | V198: 0 | W198: 1.120003438 | X198: 154.1036094 | Y198: 0.003942796239 | Z198: 0 | AA198: 0 | AB198: 0 | AC198: 0 | AD198: 0 | AE198: 0.003942796239
H199: 2046-07-01 | I199: 187 | J199: 82.50136986 | K199: 146.5041096 | L199: 0.9987797521 | M199: 0.7343513224 | N199: 1 | O199: 153.4235322 | P199: 0.1212932478 | Q199: 0 | R199: 0 | S199: 0 | T199: 0 | U199: 0 | V199: 0 | W199: 1.119473849 | X199: 153.4235322 | Y199: 0.003940931904 | Z199: 0 | AA199: 0 | AB199: 0 | AC199: 0 | AD199: 0 | AE199: 0.003940931904
H200: 2046-08-01 | I200: 188 | J200: 82.58356164 | K200: 146.5863014 | L200: 0.9987797521 | M200: 0.7343513224 | N200: 1 | O200: 152.7419758 | P200: 0.1207544245 | Q200: 0 | R200: 0 | S200: 0 | T200: 0 | U200: 0 | V200: 0 | W200: 1.118943108 | X200: 152.7419758 | Y200: 0.003939063514 | Z200: 0 | AA200: 0 | AB200: 0 | AC200: 0 | AD200: 0 | AE200: 0.003939063514
H201: 2046-09-01 | I201: 189 | J201: 82.66575342 | K201: 146.6684932 | L201: 0.9987797521 | M201: 0.7343513224 | N201: 1 | O201: 152.0589372 | P201: 0.1202144293 | Q201: 0 | R201: 0 | S201: 0 | T201: 0 | U201: 0 | V201: 0 | W201: 1.118411213 | X201: 152.0589372 | Y201: 0.00393719106 | Z201: 0 | AA201: 0 | AB201: 0 | AC201: 0 | AD201: 0 | AE201: 0.00393719106
... 772 more rows

Sheet Solicitud
A3: CONFIRMACION DE RENTA
A5: TOMADOR
A7: PLAN DE PENSIONES NO EMPLEADOS DE TELEFONICA DE ESPAÑA
A9: BENEFICIARIO
A11: PLAN DE PENSIONES NO EMPLEADOS DE TELEFONICA DE ESPAÑA
A13: DATOS DEL ASEGURADO Y ASEGURADO DE LA REVERSION
B14: Asegurado | F14: Asegurado Reversion
A15: Nombre: | B15: =+IF(Calculo!C7="","",Calculo!C7) -> SALVADOR | F15: =+IF(Calculo!$F$17="","",Calculo!$F$17) -> 
A16: Apellidos: | B16: =+IF(Calculo!C6="","",Calculo!C6) -> MILLAN OUTEIRAL | F16: =+IF(Calculo!$F$16="","",Calculo!$F$16) -> 
A17: NIF: | B17: 36479790L
A18: Fecha de Nacimiento: | B18: =+Calculo!C10 -> 1964-01-01 | F18: =+IF(E23=0,"",Calculo!C11) -> 
A19: Sexo: | B19: =+IF(Calculo!C12=2,"Mujer","Hombre") -> Mujer | F19: =+IF(E23=0,"",IF(Calculo!F18=1,"Hombre","Mujer")) -> 
A21: RENTA ASEGURADA
A23: Periodicidad del Pago: | B23: Mensual | D23: Reversión: | E23: =+Calculo!C13 -> 0 | G23: Fecha de Primer pago: | H23: =+DATE(YEAR(Calculo!C9),MONTH(Calculo!C9)+1,1-1) -> 2031-01-31 | J23: =+IF(B24="Vitalicia","","Fecha Ultimo Pago:") ->  | L23: =+IF(B24<>"Vitalicia",Calculo!F19,"") -> 
A24: Duración: | B24: =+IF(Calculo!C19<960,Calculo!C19&" Meses","Vitalicia") -> Vitalicia | D24: Fecha de Efecto: | E24: =+DATE(YEAR(Calculo!C8),MONTH(Calculo!C8),1) -> 2031-01-01 | G24: Prima Unica: | H24: =+Calculo!C17 -> 1
A26: TABLA DE RENTA ASEGURADA
B27: 1 | C27: =+B27+1 -> 2 | D27: 3 | E27: 4 | F27: 5 | G27: 6 | H27: 7 | I27: 8 | J27: 9 | K27: 10 | L27: 11 | M27: 12
B28: Enero | C28: Febrero | D28: Marzo | E28: Abril | F28: Mayo | G28: Junio | H28: Julio | I28: Agosto | J28: Septiembre | K28: Octubre | L28: Noviembre | M28: Diciembre
A29: =+YEAR(E24) -> 2031 | B29: =+IF($A29="","",IF(OR(DATE($A29,Mes,1)<$E$24,DATE($A29,Mes,1)>$L$23),0,VLOOKUP(DATE($A29,Mes,1),Calculo!$H$13:$AE$1273,24,FALSE))) -> 0.004298310354 | C29: =+IF($A29="","",IF(OR(DATE($A29,Mes,1)<$E$24,DATE($A29,Mes,1)>$L$23),0,VLOOKUP(DATE($A29,Mes,1),Calculo!$H$13:$AE$1273,24,FALSE))) -> 0.004296469168 | D29: =+IF($A29="","",IF(OR(DATE($A29,Mes,1)<$E$24,DATE($A29,Mes,1)>$L$23),0,VLOOKUP(DATE($A29,Mes,1),Calculo!$H$13:$AE$1273,24,FALSE))) -> 0.004294625759 | E29: =+IF($A29="","",IF(OR(DATE($A29,Mes,1)<$E$24,DATE($A29,Mes,1)>$L$23),0,VLOOKUP(DATE($A29,Mes,1),Calculo!$H$13:$AE$1273,24,FALSE))) -> 0.004292780125 | F29: =+IF($A29="","",IF(OR(DATE($A29,Mes,1)<$E$24,DATE($A29,Mes,1)>$L$23),0,VLOOKUP(DATE($A29,Mes,1),Calculo!$H$13:$AE$1273,24,FALSE))) -> 0.004290932262 | G29: =+IF($A29="","",IF(OR(DATE($A29,Mes,1)<$E$24,DATE($A29,Mes,1)>$L$23),0,VLOOKUP(DATE($A29,Mes,1),Calculo!$H$13:$AE$1273,24,FALSE))) -> 0.004289082169 | H29: =+IF($A29="","",IF(OR(DATE($A29,Mes,1)<$E$24,DATE($A29,Mes,1)>$L$23),0,VLOOKUP(DATE($A29,Mes,1),Calculo!$H$13:$AE$1273,24,FALSE))) -> 0.004287229842 | I29: =+IF($A29="","",IF(OR(DATE($A29,Mes,1)<$E$24,DATE($A29,Mes,1)>$L$23),0,VLOOKUP(DATE($A29,Mes,1),Calculo!$H$13:$AE$1273,24,FALSE))) -> 0.004285375279 | J29: =+IF($A29="","",IF(OR(DATE($A29,Mes,1)<$E$24,DATE($A29,Mes,1)>$L$23),0,VLOOKUP(DATE($A29,Mes,1),Calculo!$H$13:$AE$1273,24,FALSE))) -> 0.004283518477 | K29: =+IF($A29="","",IF(OR(DATE($A29,Mes,1)<$E$24,DATE($A29,Mes,1)>$L$23),0,VLOOKUP(DATE($A29,Mes,1),Calculo!$H$13:$AE$1273,24,FALSE))) -> 0.004281659433 | L29: =+IF($A29="","",IF(OR(DATE($A29,Mes,1)<$E$24,DATE($A29,Mes,1)>$L$23),0,VLOOKUP(DATE($A29,Mes,1),Calculo!$H$13:$AE$1273,24,FALSE))) -> 0.004279798144 | M29: =+IF($A29="","",IF(OR(DATE($A29,Mes,1)<$E$24,DATE($A29,Mes,1)>$L$23),0,VLOOKUP(DATE($A29,Mes,1),Calculo!$H$13:$AE$1273,24,FALSE))) -> 0.004277934609
A30: =+IF(OR(A29="",A29=YEAR(Calculo!$F$19)),"",A29+1) -> 2032 | B30: =+IF($A30="","",IF(OR(DATE($A30,Mes,1)<$E$24,DATE($A30,Mes,1)>$L$23),0,VLOOKUP(DATE($A30,Mes,1),Calculo!$H$13:$AE$1273,24,FALSE))) -> 0.004276077012 | C30: =+IF($A30="","",IF(OR(DATE($A30,Mes,1)<$E$24,DATE($A30,Mes,1)>$L$23),0,VLOOKUP(DATE($A30,Mes,1),Calculo!$H$13:$AE$1273,24,FALSE))) -> 0.004274217153 | D30: =+IF($A30="","",IF(OR(DATE($A30,Mes,1)<$E$24,DATE($A30,Mes,1)>$L$23),0,VLOOKUP(DATE($A30,Mes,1),Calculo!$H$13:$AE$1273,24,FALSE))) -> 0.004272355028 | E30: =+IF($A30="","",IF(OR(DATE($A30,Mes,1)<$E$24,DATE($A30,Mes,1)>$L$23),0,VLOOKUP(DATE($A30,Mes,1),Calculo!$H$13:$AE$1273,24,FALSE))) -> 0.004270490634 | F30: =+IF($A30="","",IF(OR(DATE($A30,Mes,1)<$E$24,DATE($A30,Mes,1)>$L$23),0,VLOOKUP(DATE($A30,Mes,1),Calculo!$H$13:$AE$1273,24,FALSE))) -> 0.00426862397 | G30: =+IF($A30="","",IF(OR(DATE($A30,Mes,1)<$E$24,DATE($A30,Mes,1)>$L$23),0,VLOOKUP(DATE($A30,Mes,1),Calculo!$H$13:$AE$1273,24,FALSE))) -> 0.004266755031 | H30: =+IF($A30="","",IF(OR(DATE($A30,Mes,1)<$E$24,DATE($A30,Mes,1)>$L$23),0,VLOOKUP(DATE($A30,Mes,1),Calculo!$H$13:$AE$1273,24,FALSE))) -> 0.004264883816 | I30: =+IF($A30="","",IF(OR(DATE($A30,Mes,1)<$E$24,DATE($A30,Mes,1)>$L$23),0,VLOOKUP(DATE($A30,Mes,1),Calculo!$H$13:$AE$1273,24,FALSE))) -> 0.004263010322 | J30: =+IF($A30="","",IF(OR(DATE($A30,Mes,1)<$E$24,DATE($A30,Mes,1)>$L$23),0,VLOOKUP(DATE($A30,Mes,1),Calculo!$H$13:$AE$1273,24,FALSE))) -> 0.004261134545 | K30: =+IF($A30="","",IF(OR(DATE($A30,Mes,1)<$E$24,DATE($A30,Mes,1)>$L$23),0,VLOOKUP(DATE($A30,Mes,1),Calculo!$H$13:$AE$1273,24,FALSE))) -> 0.004259256484 | L30: =+IF($A30="","",IF(OR(DATE($A30,Mes,1)<$E$24,DATE($A30,Mes,1)>$L$23),0,VLOOKUP(DATE($A30,Mes,1),Calculo!$H$13:$AE$1273,24,FALSE))) -> 0.004257376135 | M30: =+IF($A30="","",IF(OR(DATE($A30,Mes,1)<$E$24,DATE($A30,Mes,1)>$L$23),0,VLOOKUP(DATE($A30,Mes,1),Calculo!$H$13:$AE$1273,24,FALSE))) -> 0.004255493495
A31: =+IF(OR(A30="",A30=YEAR(Calculo!$F$19)),"",A30+1) -> 2033 | B31: =+IF($A31="","",IF(OR(DATE($A31,Mes,1)<$E$24,DATE($A31,Mes,1)>$L$23),0,VLOOKUP(DATE($A31,Mes,1),Calculo!$H$13:$AE$1273,24,FALSE))) -> 0.004253618543 | C31: =+IF($A31="","",IF(OR(DATE($A31,Mes,1)<$E$24,DATE($A31,Mes,1)>$L$23),0,VLOOKUP(DATE($A31,Mes,1),Calculo!$H$13:$AE$1273,24,FALSE))) -> 0.004251741281 | D31: =+IF($A31="","",IF(OR(DATE($A31,Mes,1)<$E$24,DATE($A31,Mes,1)>$L$23),0,VLOOKUP(DATE($A31,Mes,1),Calculo!$H$13:$AE$1273,24,FALSE))) -> 0.004249861708 | E31: =+IF($A31="","",IF(OR(DATE($A31,Mes,1)<$E$24,DATE($A31,Mes,1)>$L$23),0,VLOOKUP(DATE($A31,Mes,1),Calculo!$H$13:$AE$1273,24,FALSE))) -> 0.004247979819 | F31: =+IF($A31="","",IF(OR(DATE($A31,Mes,1)<$E$24,DATE($A31,Mes,1)>$L$23),0,VLOOKUP(DATE($A31,Mes,1),Calculo!$H$13:$AE$1273,24,FALSE))) -> 0.004246095612 | G31: =+IF($A31="","",IF(OR(DATE($A31,Mes,1)<$E$24,DATE($A31,Mes,1)>$L$23),0,VLOOKUP(DATE($A31,Mes,1),Calculo!$H$13:$AE$1273,24,FALSE))) -> 0.004244209084 | H31: =+IF($A31="","",IF(OR(DATE($A31,Mes,1)<$E$24,DATE($A31,Mes,1)>$L$23),0,VLOOKUP(DATE($A31,Mes,1),Calculo!$H$13:$AE$1273,24,FALSE))) -> 0.004242320232 | I31: =+IF($A31="","",IF(OR(DATE($A31,Mes,1)<$E$24,DATE($A31,Mes,1)>$L$23),0,VLOOKUP(DATE($A31,Mes,1),Calculo!$H$13:$AE$1273,24,FALSE))) -> 0.004240429054 | J31: =+IF($A31="","",IF(OR(DATE($A31,Mes,1)<$E$24,DATE($A31,Mes,1)>$L$23),0,VLOOKUP(DATE($A31,Mes,1),Calculo!$H$13:$AE$1273,24,FALSE))) -> 0.004238535546 | K31: =+IF($A31="","",IF(OR(DATE($A31,Mes,1)<$E$24,DATE($A31,Mes,1)>$L$23),0,VLOOKUP(DATE($A31,Mes,1),Calculo!$H$13:$AE$1273,24,FALSE))) -> 0.004236639706 | L31: =+IF($A31="","",IF(OR(DATE($A31,Mes,1)<$E$24,DATE($A31,Mes,1)>$L$23),0,VLOOKUP(DATE($A31,Mes,1),Calculo!$H$13:$AE$1273,24,FALSE))) -> 0.004234741531 | M31: =+IF($A31="","",IF(OR(DATE($A31,Mes,1)<$E$24,DATE($A31,Mes,1)>$L$23),0,VLOOKUP(DATE($A31,Mes,1),Calculo!$H$13:$AE$1273,24,FALSE))) -> 0.004232841017
A32: =+IF(OR(A31="",A31=YEAR(Calculo!$F$19)),"",A31+1) -> 2034 | B32: =+IF($A32="","",IF(OR(DATE($A32,Mes,1)<$E$24,DATE($A32,Mes,1)>$L$23),0,VLOOKUP(DATE($A32,Mes,1),Calculo!$H$13:$AE$1273,24,FALSE))) -> 0.004230949019 | C32: =+IF($A32="","",IF(OR(DATE($A32,Mes,1)<$E$24,DATE($A32,Mes,1)>$L$23),0,VLOOKUP(DATE($A32,Mes,1),Calculo!$H$13:$AE$1273,24,FALSE))) -> 0.004229054661 | D32: =+IF($A32="","",IF(OR(DATE($A32,Mes,1)<$E$24,DATE($A32,Mes,1)>$L$23),0,VLOOKUP(DATE($A32,Mes,1),Calculo!$H$13:$AE$1273,24,FALSE))) -> 0.00422715794 | E32: =+IF($A32="","",IF(OR(DATE($A32,Mes,1)<$E$24,DATE($A32,Mes,1)>$L$23),0,VLOOKUP(DATE($A32,Mes,1),Calculo!$H$13:$AE$1273,24,FALSE))) -> 0.004225258854 | F32: =+IF($A32="","",IF(OR(DATE($A32,Mes,1)<$E$24,DATE($A32,Mes,1)>$L$23),0,VLOOKUP(DATE($A32,Mes,1),Calculo!$H$13:$AE$1273,24,FALSE))) -> 0.004223357401 | G32: =+IF($A32="","",IF(OR(DATE($A32,Mes,1)<$E$24,DATE($A32,Mes,1)>$L$23),0,VLOOKUP(DATE($A32,Mes,1),Calculo!$H$13:$AE$1273,24,FALSE))) -> 0.004221453575 | H32: =+IF($A32="","",IF(OR(DATE($A32,Mes,1)<$E$24,DATE($A32,Mes,1)>$L$23),0,VLOOKUP(DATE($A32,Mes,1),Calculo!$H$13:$AE$1273,24,FALSE))) -> 0.004219547376 | I32: =+IF($A32="","",IF(OR(DATE($A32,Mes,1)<$E$24,DATE($A32,Mes,1)>$L$23),0,VLOOKUP(DATE($A32,Mes,1),Calculo!$H$13:$AE$1273,24,FALSE))) -> 0.004217638799 | J32: =+IF($A32="","",IF(OR(DATE($A32,Mes,1)<$E$24,DATE($A32,Mes,1)>$L$23),0,VLOOKUP(DATE($A32,Mes,1),Calculo!$H$13:$AE$1273,24,FALSE))) -> 0.004215727843 | K32: =+IF($A32="","",IF(OR(DATE($A32,Mes,1)<$E$24,DATE($A32,Mes,1)>$L$23),0,VLOOKUP(DATE($A32,Mes,1),Calculo!$H$13:$AE$1273,24,FALSE))) -> 0.004213814503 | L32: =+IF($A32="","",IF(OR(DATE($A32,Mes,1)<$E$24,DATE($A32,Mes,1)>$L$23),0,VLOOKUP(DATE($A32,Mes,1),Calculo!$H$13:$AE$1273,24,FALSE))) -> 0.004211898777 | M32: =+IF($A32="","",IF(OR(DATE($A32,Mes,1)<$E$24,DATE($A32,Mes,1)>$L$23),0,VLOOKUP(DATE($A32,Mes,1),Calculo!$H$13:$AE$1273,24,FALSE))) -> 0.004209980662
A33: =+IF(OR(A32="",A32=YEAR(Calculo!$F$19)),"",A32+1) -> 2035 | B33: =+IF($A33="","",IF(OR(DATE($A33,Mes,1)<$E$24,DATE($A33,Mes,1)>$L$23),0,VLOOKUP(DATE($A33,Mes,1),Calculo!$H$13:$AE$1273,24,FALSE))) -> 0.00420807191 | C33: =+IF($A33="","",IF(OR(DATE($A33,Mes,1)<$E$24,DATE($A33,Mes,1)>$L$23),0,VLOOKUP(DATE($A33,Mes,1),Calculo!$H$13:$AE$1273,24,FALSE))) -> 0.004206160744 | D33: =+IF($A33="","",IF(OR(DATE($A33,Mes,1)<$E$24,DATE($A33,Mes,1)>$L$23),0,VLOOKUP(DATE($A33,Mes,1),Calculo!$H$13:$AE$1273,24,FALSE))) -> 0.004204247162 | E33: =+IF($A33="","",IF(OR(DATE($A33,Mes,1)<$E$24,DATE($A33,Mes,1)>$L$23),0,VLOOKUP(DATE($A33,Mes,1),Calculo!$H$13:$AE$1273,24,FALSE))) -> 0.004202331161 | F33: =+IF($A33="","",IF(OR(DATE($A33,Mes,1)<$E$24,DATE($A33,Mes,1)>$L$23),0,VLOOKUP(DATE($A33,Mes,1),Calculo!$H$13:$AE$1273,24,FALSE))) -> 0.004200412737 | G33: =+IF($A33="","",IF(OR(DATE($A33,Mes,1)<$E$24,DATE($A33,Mes,1)>$L$23),0,VLOOKUP(DATE($A33,Mes,1),Calculo!$H$13:$AE$1273,24,FALSE))) -> 0.004198491889 | H33: =+IF($A33="","",IF(OR(DATE($A33,Mes,1)<$E$24,DATE($A33,Mes,1)>$L$23),0,VLOOKUP(DATE($A33,Mes,1),Calculo!$H$13:$AE$1273,24,FALSE))) -> 0.004196568612 | I33: =+IF($A33="","",IF(OR(DATE($A33,Mes,1)<$E$24,DATE($A33,Mes,1)>$L$23),0,VLOOKUP(DATE($A33,Mes,1),Calculo!$H$13:$AE$1273,24,FALSE))) -> 0.004194642904 | J33: =+IF($A33="","",IF(OR(DATE($A33,Mes,1)<$E$24,DATE($A33,Mes,1)>$L$23),0,VLOOKUP(DATE($A33,Mes,1),Calculo!$H$13:$AE$1273,24,FALSE))) -> 0.004192714762 | K33: =+IF($A33="","",IF(OR(DATE($A33,Mes,1)<$E$24,DATE($A33,Mes,1)>$L$23),0,VLOOKUP(DATE($A33,Mes,1),Calculo!$H$13:$AE$1273,24,FALSE))) -> 0.004190784182 | L33: =+IF($A33="","",IF(OR(DATE($A33,Mes,1)<$E$24,DATE($A33,Mes,1)>$L$23),0,VLOOKUP(DATE($A33,Mes,1),Calculo!$H$13:$AE$1273,24,FALSE))) -> 0.004188851161 | M33: =+IF($A33="","",IF(OR(DATE($A33,Mes,1)<$E$24,DATE($A33,Mes,1)>$L$23),0,VLOOKUP(DATE($A33,Mes,1),Calculo!$H$13:$AE$1273,24,FALSE))) -> 0.004186915697
A34: =+IF(OR(A33="",A33=YEAR(Calculo!$F$19)),"",A33+1) -> 2036 | B34: =+IF($A34="","",IF(OR(DATE($A34,Mes,1)<$E$24,DATE($A34,Mes,1)>$L$23),0,VLOOKUP(DATE($A34,Mes,1),Calculo!$H$13:$AE$1273,24,FALSE))) -> 0.004184993486 | C34: =+IF($A34="","",IF(OR(DATE($A34,Mes,1)<$E$24,DATE($A34,Mes,1)>$L$23),0,VLOOKUP(DATE($A34,Mes,1),Calculo!$H$13:$AE$1273,24,FALSE))) -> 0.004183068799 | D34: =+IF($A34="","",IF(OR(DATE($A34,Mes,1)<$E$24,DATE($A34,Mes,1)>$L$23),0,VLOOKUP(DATE($A34,Mes,1),Calculo!$H$13:$AE$1273,24,FALSE))) -> 0.004181141633 | E34: =+IF($A34="","",IF(OR(DATE($A34,Mes,1)<$E$24,DATE($A34,Mes,1)>$L$23),0,VLOOKUP(DATE($A34,Mes,1),Calculo!$H$13:$AE$1273,24,FALSE))) -> 0.004179211986 | F34: =+IF($A34="","",IF(OR(DATE($A34,Mes,1)<$E$24,DATE($A34,Mes,1)>$L$23),0,VLOOKUP(DATE($A34,Mes,1),Calculo!$H$13:$AE$1273,24,FALSE))) -> 0.004177279853 | G34: =+IF($A34="","",IF(OR(DATE($A34,Mes,1)<$E$24,DATE($A34,Mes,1)>$L$23),0,VLOOKUP(DATE($A34,Mes,1),Calculo!$H$13:$AE$1273,24,FALSE))) -> 0.004175345233 | H34: =+IF($A34="","",IF(OR(DATE($A34,Mes,1)<$E$24,DATE($A34,Mes,1)>$L$23),0,VLOOKUP(DATE($A34,Mes,1),Calculo!$H$13:$AE$1273,24,FALSE))) -> 0.004173408121 | I34: =+IF($A34="","",IF(OR(DATE($A34,Mes,1)<$E$24,DATE($A34,Mes,1)>$L$23),0,VLOOKUP(DATE($A34,Mes,1),Calculo!$H$13:$AE$1273,24,FALSE))) -> 0.004171468514 | J34: =+IF($A34="","",IF(OR(DATE($A34,Mes,1)<$E$24,DATE($A34,Mes,1)>$L$23),0,VLOOKUP(DATE($A34,Mes,1),Calculo!$H$13:$AE$1273,24,FALSE))) -> 0.004169526409 | K34: =+IF($A34="","",IF(OR(DATE($A34,Mes,1)<$E$24,DATE($A34,Mes,1)>$L$23),0,VLOOKUP(DATE($A34,Mes,1),Calculo!$H$13:$AE$1273,24,FALSE))) -> 0.004167581803 | L34: =+IF($A34="","",IF(OR(DATE($A34,Mes,1)<$E$24,DATE($A34,Mes,1)>$L$23),0,VLOOKUP(DATE($A34,Mes,1),Calculo!$H$13:$AE$1273,24,FALSE))) -> 0.004165634693 | M34: =+IF($A34="","",IF(OR(DATE($A34,Mes,1)<$E$24,DATE($A34,Mes,1)>$L$23),0,VLOOKUP(DATE($A34,Mes,1),Calculo!$H$13:$AE$1273,24,FALSE))) -> 0.004163685076
A35: =+IF(OR(A34="",A34=YEAR(Calculo!$F$19)),"",A34+1) -> 2037 | B35: =+IF($A35="","",IF(OR(DATE($A35,Mes,1)<$E$24,DATE($A35,Mes,1)>$L$23),0,VLOOKUP(DATE($A35,Mes,1),Calculo!$H$13:$AE$1273,24,FALSE))) -> 0.004161751725 | C35: =+IF($A35="","",IF(OR(DATE($A35,Mes,1)<$E$24,DATE($A35,Mes,1)>$L$23),0,VLOOKUP(DATE($A35,Mes,1),Calculo!$H$13:$AE$1273,24,FALSE))) -> 0.004159815828 | D35: =+IF($A35="","",IF(OR(DATE($A35,Mes,1)<$E$24,DATE($A35,Mes,1)>$L$23),0,VLOOKUP(DATE($A35,Mes,1),Calculo!$H$13:$AE$1273,24,FALSE))) -> 0.00415787738 | E35: =+IF($A35="","",IF(OR(DATE($A35,Mes,1)<$E$24,DATE($A35,Mes,1)>$L$23),0,VLOOKUP(DATE($A35,Mes,1),Calculo!$H$13:$AE$1273,24,FALSE))) -> 0.00415593638 | F35: =+IF($A35="","",IF(OR(DATE($A35,Mes,1)<$E$24,DATE($A35,Mes,1)>$L$23),0,VLOOKUP(DATE($A35,Mes,1),Calculo!$H$13:$AE$1273,24,FALSE))) -> 0.004153992823 | G35: =+IF($A35="","",IF(OR(DATE($A35,Mes,1)<$E$24,DATE($A35,Mes,1)>$L$23),0,VLOOKUP(DATE($A35,Mes,1),Calculo!$H$13:$AE$1273,24,FALSE))) -> 0.004152046706 | H35: =+IF($A35="","",IF(OR(DATE($A35,Mes,1)<$E$24,DATE($A35,Mes,1)>$L$23),0,VLOOKUP(DATE($A35,Mes,1),Calculo!$H$13:$AE$1273,24,FALSE))) -> 0.004150098026 | I35: =+IF($A35="","",IF(OR(DATE($A35,Mes,1)<$E$24,DATE($A35,Mes,1)>$L$23),0,VLOOKUP(DATE($A35,Mes,1),Calculo!$H$13:$AE$1273,24,FALSE))) -> 0.004148146779 | J35: =+IF($A35="","",IF(OR(DATE($A35,Mes,1)<$E$24,DATE($A35,Mes,1)>$L$23),0,VLOOKUP(DATE($A35,Mes,1),Calculo!$H$13:$AE$1273,24,FALSE))) -> 0.004146192962 | K35: =+IF($A35="","",IF(OR(DATE($A35,Mes,1)<$E$24,DATE($A35,Mes,1)>$L$23),0,VLOOKUP(DATE($A35,Mes,1),Calculo!$H$13:$AE$1273,24,FALSE))) -> 0.004144236572 | L35: =+IF($A35="","",IF(OR(DATE($A35,Mes,1)<$E$24,DATE($A35,Mes,1)>$L$23),0,VLOOKUP(DATE($A35,Mes,1),Calculo!$H$13:$AE$1273,24,FALSE))) -> 0.004142277605 | M35: =+IF($A35="","",IF(OR(DATE($A35,Mes,1)<$E$24,DATE($A35,Mes,1)>$L$23),0,VLOOKUP(DATE($A35,Mes,1),Calculo!$H$13:$AE$1273,24,FALSE))) -> 0.004140316057
A36: =+IF(OR(A35="",A35=YEAR(Calculo!$F$19)),"",A35+1) -> 2038 | B36: =+IF($A36="","",IF(OR(DATE($A36,Mes,1)<$E$24,DATE($A36,Mes,1)>$L$23),0,VLOOKUP(DATE($A36,Mes,1),Calculo!$H$13:$AE$1273,24,FALSE))) -> 0.00413837441 | C36: =+IF($A36="","",IF(OR(DATE($A36,Mes,1)<$E$24,DATE($A36,Mes,1)>$L$23),0,VLOOKUP(DATE($A36,Mes,1),Calculo!$H$13:$AE$1273,24,FALSE))) -> 0.004136430134 | D36: =+IF($A36="","",IF(OR(DATE($A36,Mes,1)<$E$24,DATE($A36,Mes,1)>$L$23),0,VLOOKUP(DATE($A36,Mes,1),Calculo!$H$13:$AE$1273,24,FALSE))) -> 0.004134483227 | E36: =+IF($A36="","",IF(OR(DATE($A36,Mes,1)<$E$24,DATE($A36,Mes,1)>$L$23),0,VLOOKUP(DATE($A36,Mes,1),Calculo!$H$13:$AE$1273,24,FALSE))) -> 0.004132533684 | F36: =+IF($A36="","",IF(OR(DATE($A36,Mes,1)<$E$24,DATE($A36,Mes,1)>$L$23),0,VLOOKUP(DATE($A36,Mes,1),Calculo!$H$13:$AE$1273,24,FALSE))) -> 0.004130581503 | G36: =+IF($A36="","",IF(OR(DATE($A36,Mes,1)<$E$24,DATE($A36,Mes,1)>$L$23),0,VLOOKUP(DATE($A36,Mes,1),Calculo!$H$13:$AE$1273,24,FALSE))) -> 0.004128626679 | H36: =+IF($A36="","",IF(OR(DATE($A36,Mes,1)<$E$24,DATE($A36,Mes,1)>$L$23),0,VLOOKUP(DATE($A36,Mes,1),Calculo!$H$13:$AE$1273,24,FALSE))) -> 0.004126669209 | I36: =+IF($A36="","",IF(OR(DATE($A36,Mes,1)<$E$24,DATE($A36,Mes,1)>$L$23),0,VLOOKUP(DATE($A36,Mes,1),Calculo!$H$13:$AE$1273,24,FALSE))) -> 0.004124709089 | J36: =+IF($A36="","",IF(OR(DATE($A36,Mes,1)<$E$24,DATE($A36,Mes,1)>$L$23),0,VLOOKUP(DATE($A36,Mes,1),Calculo!$H$13:$AE$1273,24,FALSE))) -> 0.004122746317 | K36: =+IF($A36="","",IF(OR(DATE($A36,Mes,1)<$E$24,DATE($A36,Mes,1)>$L$23),0,VLOOKUP(DATE($A36,Mes,1),Calculo!$H$13:$AE$1273,24,FALSE))) -> 0.004120780887 | L36: =+IF($A36="","",IF(OR(DATE($A36,Mes,1)<$E$24,DATE($A36,Mes,1)>$L$23),0,VLOOKUP(DATE($A36,Mes,1),Calculo!$H$13:$AE$1273,24,FALSE))) -> 0.004118812798 | M36: =+IF($A36="","",IF(OR(DATE($A36,Mes,1)<$E$24,DATE($A36,Mes,1)>$L$23),0,VLOOKUP(DATE($A36,Mes,1),Calculo!$H$13:$AE$1273,24,FALSE))) -> 0.004116842044
A37: =+IF(OR(A36="",A36=YEAR(Calculo!$F$19)),"",A36+1) -> 2039 | B37: =+IF($A37="","",IF(OR(DATE($A37,Mes,1)<$E$24,DATE($A37,Mes,1)>$L$23),0,VLOOKUP(DATE($A37,Mes,1),Calculo!$H$13:$AE$1273,24,FALSE))) -> 0.004114895594 | C37: =+IF($A37="","",IF(OR(DATE($A37,Mes,1)<$E$24,DATE($A37,Mes,1)>$L$23),0,VLOOKUP(DATE($A37,Mes,1),Calculo!$H$13:$AE$1273,24,FALSE))) -> 0.004112946421 | D37: =+IF($A37="","",IF(OR(DATE($A37,Mes,1)<$E$24,DATE($A37,Mes,1)>$L$23),0,VLOOKUP(DATE($A37,Mes,1),Calculo!$H$13:$AE$1273,24,FALSE))) -> 0.004110994521 | E37: =+IF($A37="","",IF(OR(DATE($A37,Mes,1)<$E$24,DATE($A37,Mes,1)>$L$23),0,VLOOKUP(DATE($A37,Mes,1),Calculo!$H$13:$AE$1273,24,FALSE))) -> 0.00410903989 | F37: =+IF($A37="","",IF(OR(DATE($A37,Mes,1)<$E$24,DATE($A37,Mes,1)>$L$23),0,VLOOKUP(DATE($A37,Mes,1),Calculo!$H$13:$AE$1273,24,FALSE))) -> 0.004107082525 | G37: =+IF($A37="","",IF(OR(DATE($A37,Mes,1)<$E$24,DATE($A37,Mes,1)>$L$23),0,VLOOKUP(DATE($A37,Mes,1),Calculo!$H$13:$AE$1273,24,FALSE))) -> 0.004105122422 | H37: =+IF($A37="","",IF(OR(DATE($A37,Mes,1)<$E$24,DATE($A37,Mes,1)>$L$23),0,VLOOKUP(DATE($A37,Mes,1),Calculo!$H$13:$AE$1273,24,FALSE))) -> 0.004103159576 | I37: =+IF($A37="","",IF(OR(DATE($A37,Mes,1)<$E$24,DATE($A37,Mes,1)>$L$23),0,VLOOKUP(DATE($A37,Mes,1),Calculo!$H$13:$AE$1273,24,FALSE))) -> 0.004101193984 | J37: =+IF($A37="","",IF(OR(DATE($A37,Mes,1)<$E$24,DATE($A37,Mes,1)>$L$23),0,VLOOKUP(DATE($A37,Mes,1),Calculo!$H$13:$AE$1273,24,FALSE))) -> 0.004099225643 | K37: =+IF($A37="","",IF(OR(DATE($A37,Mes,1)<$E$24,DATE($A37,Mes,1)>$L$23),0,VLOOKUP(DATE($A37,Mes,1),Calculo!$H$13:$AE$1273,24,FALSE))) -> 0.004097254547 | L37: =+IF($A37="","",IF(OR(DATE($A37,Mes,1)<$E$24,DATE($A37,Mes,1)>$L$23),0,VLOOKUP(DATE($A37,Mes,1),Calculo!$H$13:$AE$1273,24,FALSE))) -> 0.004095280694 | M37: =+IF($A37="","",IF(OR(DATE($A37,Mes,1)<$E$24,DATE($A37,Mes,1)>$L$23),0,VLOOKUP(DATE($A37,Mes,1),Calculo!$H$13:$AE$1273,24,FALSE))) -> 0.00409330408
A38: =+IF(OR(A37="",A37=YEAR(Calculo!$F$19)),"",A37+1) -> 2040 | B38: =+IF($A38="","",IF(OR(DATE($A38,Mes,1)<$E$24,DATE($A38,Mes,1)>$L$23),0,VLOOKUP(DATE($A38,Mes,1),Calculo!$H$13:$AE$1273,24,FALSE))) -> 0.004091357941 | C38: =+IF($A38="","",IF(OR(DATE($A38,Mes,1)<$E$24,DATE($A38,Mes,1)>$L$23),0,VLOOKUP(DATE($A38,Mes,1),Calculo!$H$13:$AE$1273,24,FALSE))) -> 0.004089408966 | D38: =+IF($A38="","",IF(OR(DATE($A38,Mes,1)<$E$24,DATE($A38,Mes,1)>$L$23),0,VLOOKUP(DATE($A38,Mes,1),Calculo!$H$13:$AE$1273,24,FALSE))) -> 0.004087457151 | E38: =+IF($A38="","",IF(OR(DATE($A38,Mes,1)<$E$24,DATE($A38,Mes,1)>$L$23),0,VLOOKUP(DATE($A38,Mes,1),Calculo!$H$13:$AE$1273,24,FALSE))) -> 0.004085502492 | F38: =+IF($A38="","",IF(OR(DATE($A38,Mes,1)<$E$24,DATE($A38,Mes,1)>$L$23),0,VLOOKUP(DATE($A38,Mes,1),Calculo!$H$13:$AE$1273,24,FALSE))) -> 0.004083544984 | G38: =+IF($A38="","",IF(OR(DATE($A38,Mes,1)<$E$24,DATE($A38,Mes,1)>$L$23),0,VLOOKUP(DATE($A38,Mes,1),Calculo!$H$13:$AE$1273,24,FALSE))) -> 0.004081584623 | H38: =+IF($A38="","",IF(OR(DATE($A38,Mes,1)<$E$24,DATE($A38,Mes,1)>$L$23),0,VLOOKUP(DATE($A38,Mes,1),Calculo!$H$13:$AE$1273,24,FALSE))) -> 0.004079621405 | I38: =+IF($A38="","",IF(OR(DATE($A38,Mes,1)<$E$24,DATE($A38,Mes,1)>$L$23),0,VLOOKUP(DATE($A38,Mes,1),Calculo!$H$13:$AE$1273,24,FALSE))) -> 0.004077655327 | J38: =+IF($A38="","",IF(OR(DATE($A38,Mes,1)<$E$24,DATE($A38,Mes,1)>$L$23),0,VLOOKUP(DATE($A38,Mes,1),Calculo!$H$13:$AE$1273,24,FALSE))) -> 0.004075686383 | K38: =+IF($A38="","",IF(OR(DATE($A38,Mes,1)<$E$24,DATE($A38,Mes,1)>$L$23),0,VLOOKUP(DATE($A38,Mes,1),Calculo!$H$13:$AE$1273,24,FALSE))) -> 0.00407371457 | L38: =+IF($A38="","",IF(OR(DATE($A38,Mes,1)<$E$24,DATE($A38,Mes,1)>$L$23),0,VLOOKUP(DATE($A38,Mes,1),Calculo!$H$13:$AE$1273,24,FALSE))) -> 0.004071739883 | M38: =+IF($A38="","",IF(OR(DATE($A38,Mes,1)<$E$24,DATE($A38,Mes,1)>$L$23),0,VLOOKUP(DATE($A38,Mes,1),Calculo!$H$13:$AE$1273,24,FALSE))) -> 0.004069762319
A39: =+IF(OR(A38="",A38=YEAR(Calculo!$F$19)),"",A38+1) -> 2041 | B39: =+IF($A39="","",IF(OR(DATE($A39,Mes,1)<$E$24,DATE($A39,Mes,1)>$L$23),0,VLOOKUP(DATE($A39,Mes,1),Calculo!$H$13:$AE$1273,24,FALSE))) -> 0.004067820514 | C39: =+IF($A39="","",IF(OR(DATE($A39,Mes,1)<$E$24,DATE($A39,Mes,1)>$L$23),0,VLOOKUP(DATE($A39,Mes,1),Calculo!$H$13:$AE$1273,24,FALSE))) -> 0.004065875743 | D39: =+IF($A39="","",IF(OR(DATE($A39,Mes,1)<$E$24,DATE($A39,Mes,1)>$L$23),0,VLOOKUP(DATE($A39,Mes,1),Calculo!$H$13:$AE$1273,24,FALSE))) -> 0.004063928 | E39: =+IF($A39="","",IF(OR(DATE($A39,Mes,1)<$E$24,DATE($A39,Mes,1)>$L$23),0,VLOOKUP(DATE($A39,Mes,1),Calculo!$H$13:$AE$1273,24,FALSE))) -> 0.004061977281 | F39: =+IF($A39="","",IF(OR(DATE($A39,Mes,1)<$E$24,DATE($A39,Mes,1)>$L$23),0,VLOOKUP(DATE($A39,Mes,1),Calculo!$H$13:$AE$1273,24,FALSE))) -> 0.004060023581 | G39: =+IF($A39="","",IF(OR(DATE($A39,Mes,1)<$E$24,DATE($A39,Mes,1)>$L$23),0,VLOOKUP(DATE($A39,Mes,1),Calculo!$H$13:$AE$1273,24,FALSE))) -> 0.004058066896 | H39: =+IF($A39="","",IF(OR(DATE($A39,Mes,1)<$E$24,DATE($A39,Mes,1)>$L$23),0,VLOOKUP(DATE($A39,Mes,1),Calculo!$H$13:$AE$1273,24,FALSE))) -> 0.004056107221 | I39: =+IF($A39="","",IF(OR(DATE($A39,Mes,1)<$E$24,DATE($A39,Mes,1)>$L$23),0,VLOOKUP(DATE($A39,Mes,1),Calculo!$H$13:$AE$1273,24,FALSE))) -> 0.004054144551 | J39: =+IF($A39="","",IF(OR(DATE($A39,Mes,1)<$E$24,DATE($A39,Mes,1)>$L$23),0,VLOOKUP(DATE($A39,Mes,1),Calculo!$H$13:$AE$1273,24,FALSE))) -> 0.004052178883 | K39: =+IF($A39="","",IF(OR(DATE($A39,Mes,1)<$E$24,DATE($A39,Mes,1)>$L$23),0,VLOOKUP(DATE($A39,Mes,1),Calculo!$H$13:$AE$1273,24,FALSE))) -> 0.004050210212 | L39: =+IF($A39="","",IF(OR(DATE($A39,Mes,1)<$E$24,DATE($A39,Mes,1)>$L$23),0,VLOOKUP(DATE($A39,Mes,1),Calculo!$H$13:$AE$1273,24,FALSE))) -> 0.004048238532 | M39: =+IF($A39="","",IF(OR(DATE($A39,Mes,1)<$E$24,DATE($A39,Mes,1)>$L$23),0,VLOOKUP(DATE($A39,Mes,1),Calculo!$H$13:$AE$1273,24,FALSE))) -> 0.004046263839
A40: =+IF(OR(A39="",A39=YEAR(Calculo!$F$19)),"",A39+1) -> 2042 | B40: =+IF($A40="","",IF(OR(DATE($A40,Mes,1)<$E$24,DATE($A40,Mes,1)>$L$23),0,VLOOKUP(DATE($A40,Mes,1),Calculo!$H$13:$AE$1273,24,FALSE))) -> 0.004044331076 | C40: =+IF($A40="","",IF(OR(DATE($A40,Mes,1)<$E$24,DATE($A40,Mes,1)>$L$23),0,VLOOKUP(DATE($A40,Mes,1),Calculo!$H$13:$AE$1273,24,FALSE))) -> 0.004042395192 | D40: =+IF($A40="","",IF(OR(DATE($A40,Mes,1)<$E$24,DATE($A40,Mes,1)>$L$23),0,VLOOKUP(DATE($A40,Mes,1),Calculo!$H$13:$AE$1273,24,FALSE))) -> 0.004040456185 | E40: =+IF($A40="","",IF(OR(DATE($A40,Mes,1)<$E$24,DATE($A40,Mes,1)>$L$23),0,VLOOKUP(DATE($A40,Mes,1),Calculo!$H$13:$AE$1273,24,FALSE))) -> 0.004038514048 | F40: =+IF($A40="","",IF(OR(DATE($A40,Mes,1)<$E$24,DATE($A40,Mes,1)>$L$23),0,VLOOKUP(DATE($A40,Mes,1),Calculo!$H$13:$AE$1273,24,FALSE))) -> 0.004036568777 | G40: =+IF($A40="","",IF(OR(DATE($A40,Mes,1)<$E$24,DATE($A40,Mes,1)>$L$23),0,VLOOKUP(DATE($A40,Mes,1),Calculo!$H$13:$AE$1273,24,FALSE))) -> 0.004034620367 | H40: =+IF($A40="","",IF(OR(DATE($A40,Mes,1)<$E$24,DATE($A40,Mes,1)>$L$23),0,VLOOKUP(DATE($A40,Mes,1),Calculo!$H$13:$AE$1273,24,FALSE))) -> 0.004032668812 | I40: =+IF($A40="","",IF(OR(DATE($A40,Mes,1)<$E$24,DATE($A40,Mes,1)>$L$23),0,VLOOKUP(DATE($A40,Mes,1),Calculo!$H$13:$AE$1273,24,FALSE))) -> 0.004030714107 | J40: =+IF($A40="","",IF(OR(DATE($A40,Mes,1)<$E$24,DATE($A40,Mes,1)>$L$23),0,VLOOKUP(DATE($A40,Mes,1),Calculo!$H$13:$AE$1273,24,FALSE))) -> 0.004028756247 | K40: =+IF($A40="","",IF(OR(DATE($A40,Mes,1)<$E$24,DATE($A40,Mes,1)>$L$23),0,VLOOKUP(DATE($A40,Mes,1),Calculo!$H$13:$AE$1273,24,FALSE))) -> 0.004026795228 | L40: =+IF($A40="","",IF(OR(DATE($A40,Mes,1)<$E$24,DATE($A40,Mes,1)>$L$23),0,VLOOKUP(DATE($A40,Mes,1),Calculo!$H$13:$AE$1273,24,FALSE))) -> 0.004024831044 | M40: =+IF($A40="","",IF(OR(DATE($A40,Mes,1)<$E$24,DATE($A40,Mes,1)>$L$23),0,VLOOKUP(DATE($A40,Mes,1),Calculo!$H$13:$AE$1273,24,FALSE))) -> 0.00402286369
A41: =+IF(OR(A40="",A40=YEAR(Calculo!$F$19)),"",A40+1) -> 2043 | B41: =+IF($A41="","",IF(OR(DATE($A41,Mes,1)<$E$24,DATE($A41,Mes,1)>$L$23),0,VLOOKUP(DATE($A41,Mes,1),Calculo!$H$13:$AE$1273,24,FALSE))) -> 0.004020945581 | C41: =+IF($A41="","",IF(OR(DATE($A41,Mes,1)<$E$24,DATE($A41,Mes,1)>$L$23),0,VLOOKUP(DATE($A41,Mes,1),Calculo!$H$13:$AE$1273,24,FALSE))) -> 0.004019024175 | D41: =+IF($A41="","",IF(OR(DATE($A41,Mes,1)<$E$24,DATE($A41,Mes,1)>$L$23),0,VLOOKUP(DATE($A41,Mes,1),Calculo!$H$13:$AE$1273,24,FALSE))) -> 0.004017099467 | E41: =+IF($A41="","",IF(OR(DATE($A41,Mes,1)<$E$24,DATE($A41,Mes,1)>$L$23),0,VLOOKUP(DATE($A41,Mes,1),Calculo!$H$13:$AE$1273,24,FALSE))) -> 0.004015171451 | F41: =+IF($A41="","",IF(OR(DATE($A41,Mes,1)<$E$24,DATE($A41,Mes,1)>$L$23),0,VLOOKUP(DATE($A41,Mes,1),Calculo!$H$13:$AE$1273,24,FALSE))) -> 0.00401324012 | G41: =+IF($A41="","",IF(OR(DATE($A41,Mes,1)<$E$24,DATE($A41,Mes,1)>$L$23),0,VLOOKUP(DATE($A41,Mes,1),Calculo!$H$13:$AE$1273,24,FALSE))) -> 0.004011305471 | H41: =+IF($A41="","",IF(OR(DATE($A41,Mes,1)<$E$24,DATE($A41,Mes,1)>$L$23),0,VLOOKUP(DATE($A41,Mes,1),Calculo!$H$13:$AE$1273,24,FALSE))) -> 0.004009367495 | I41: =+IF($A41="","",IF(OR(DATE($A41,Mes,1)<$E$24,DATE($A41,Mes,1)>$L$23),0,VLOOKUP(DATE($A41,Mes,1),Calculo!$H$13:$AE$1273,24,FALSE))) -> 0.004007426189 | J41: =+IF($A41="","",IF(OR(DATE($A41,Mes,1)<$E$24,DATE($A41,Mes,1)>$L$23),0,VLOOKUP(DATE($A41,Mes,1),Calculo!$H$13:$AE$1273,24,FALSE))) -> 0.004005481547 | K41: =+IF($A41="","",IF(OR(DATE($A41,Mes,1)<$E$24,DATE($A41,Mes,1)>$L$23),0,VLOOKUP(DATE($A41,Mes,1),Calculo!$H$13:$AE$1273,24,FALSE))) -> 0.004003533561 | L41: =+IF($A41="","",IF(OR(DATE($A41,Mes,1)<$E$24,DATE($A41,Mes,1)>$L$23),0,VLOOKUP(DATE($A41,Mes,1),Calculo!$H$13:$AE$1273,24,FALSE))) -> 0.004001582228 | M41: =+IF($A41="","",IF(OR(DATE($A41,Mes,1)<$E$24,DATE($A41,Mes,1)>$L$23),0,VLOOKUP(DATE($A41,Mes,1),Calculo!$H$13:$AE$1273,24,FALSE))) -> 0.003999627541
A42: =+IF(OR(A41="",A41=YEAR(Calculo!$F$19)),"",A41+1) -> 2044 | B42: =+IF($A42="","",IF(OR(DATE($A42,Mes,1)<$E$24,DATE($A42,Mes,1)>$L$23),0,VLOOKUP(DATE($A42,Mes,1),Calculo!$H$13:$AE$1273,24,FALSE))) -> 0.003997728427 | C42: =+IF($A42="","",IF(OR(DATE($A42,Mes,1)<$E$24,DATE($A42,Mes,1)>$L$23),0,VLOOKUP(DATE($A42,Mes,1),Calculo!$H$13:$AE$1273,24,FALSE))) -> 0.003995825815 | D42: =+IF($A42="","",IF(OR(DATE($A42,Mes,1)<$E$24,DATE($A42,Mes,1)>$L$23),0,VLOOKUP(DATE($A42,Mes,1),Calculo!$H$13:$AE$1273,24,FALSE))) -> 0.003993919697 | E42: =+IF($A42="","",IF(OR(DATE($A42,Mes,1)<$E$24,DATE($A42,Mes,1)>$L$23),0,VLOOKUP(DATE($A42,Mes,1),Calculo!$H$13:$AE$1273,24,FALSE))) -> 0.003992010068 | F42: =+IF($A42="","",IF(OR(DATE($A42,Mes,1)<$E$24,DATE($A42,Mes,1)>$L$23),0,VLOOKUP(DATE($A42,Mes,1),Calculo!$H$13:$AE$1273,24,FALSE))) -> 0.00399009692 | G42: =+IF($A42="","",IF(OR(DATE($A42,Mes,1)<$E$24,DATE($A42,Mes,1)>$L$23),0,VLOOKUP(DATE($A42,Mes,1),Calculo!$H$13:$AE$1273,24,FALSE))) -> 0.003988180246 | H42: =+IF($A42="","",IF(OR(DATE($A42,Mes,1)<$E$24,DATE($A42,Mes,1)>$L$23),0,VLOOKUP(DATE($A42,Mes,1),Calculo!$H$13:$AE$1273,24,FALSE))) -> 0.003986260042 | I42: =+IF($A42="","",IF(OR(DATE($A42,Mes,1)<$E$24,DATE($A42,Mes,1)>$L$23),0,VLOOKUP(DATE($A42,Mes,1),Calculo!$H$13:$AE$1273,24,FALSE))) -> 0.003984336299 | J42: =+IF($A42="","",IF(OR(DATE($A42,Mes,1)<$E$24,DATE($A42,Mes,1)>$L$23),0,VLOOKUP(DATE($A42,Mes,1),Calculo!$H$13:$AE$1273,24,FALSE))) -> 0.003982409013 | K42: =+IF($A42="","",IF(OR(DATE($A42,Mes,1)<$E$24,DATE($A42,Mes,1)>$L$23),0,VLOOKUP(DATE($A42,Mes,1),Calculo!$H$13:$AE$1273,24,FALSE))) -> 0.003980478175 | L42: =+IF($A42="","",IF(OR(DATE($A42,Mes,1)<$E$24,DATE($A42,Mes,1)>$L$23),0,VLOOKUP(DATE($A42,Mes,1),Calculo!$H$13:$AE$1273,24,FALSE))) -> 0.003978543779 | M42: =+IF($A42="","",IF(OR(DATE($A42,Mes,1)<$E$24,DATE($A42,Mes,1)>$L$23),0,VLOOKUP(DATE($A42,Mes,1),Calculo!$H$13:$AE$1273,24,FALSE))) -> 0.00397660582
A43: =+IF(OR(A42="",A42=YEAR(Calculo!$F$19)),"",A42+1) -> 2045 | B43: =+IF($A43="","",IF(OR(DATE($A43,Mes,1)<$E$24,DATE($A43,Mes,1)>$L$23),0,VLOOKUP(DATE($A43,Mes,1),Calculo!$H$13:$AE$1273,24,FALSE))) -> 0.003974734158 | C43: =+IF($A43="","",IF(OR(DATE($A43,Mes,1)<$E$24,DATE($A43,Mes,1)>$L$23),0,VLOOKUP(DATE($A43,Mes,1),Calculo!$H$13:$AE$1273,24,FALSE))) -> 0.003972858759 | D43: =+IF($A43="","",IF(OR(DATE($A43,Mes,1)<$E$24,DATE($A43,Mes,1)>$L$23),0,VLOOKUP(DATE($A43,Mes,1),Calculo!$H$13:$AE$1273,24,FALSE))) -> 0.003970979616 | E43: =+IF($A43="","",IF(OR(DATE($A43,Mes,1)<$E$24,DATE($A43,Mes,1)>$L$23),0,VLOOKUP(DATE($A43,Mes,1),Calculo!$H$13:$AE$1273,24,FALSE))) -> 0.003969096722 | F43: =+IF($A43="","",IF(OR(DATE($A43,Mes,1)<$E$24,DATE($A43,Mes,1)>$L$23),0,VLOOKUP(DATE($A43,Mes,1),Calculo!$H$13:$AE$1273,24,FALSE))) -> 0.003967210068 | G43: =+IF($A43="","",IF(OR(DATE($A43,Mes,1)<$E$24,DATE($A43,Mes,1)>$L$23),0,VLOOKUP(DATE($A43,Mes,1),Calculo!$H$13:$AE$1273,24,FALSE))) -> 0.003965319647 | H43: =+IF($A43="","",IF(OR(DATE($A43,Mes,1)<$E$24,DATE($A43,Mes,1)>$L$23),0,VLOOKUP(DATE($A43,Mes,1),Calculo!$H$13:$AE$1273,24,FALSE))) -> 0.003963425452 | I43: =+IF($A43="","",IF(OR(DATE($A43,Mes,1)<$E$24,DATE($A43,Mes,1)>$L$23),0,VLOOKUP(DATE($A43,Mes,1),Calculo!$H$13:$AE$1273,24,FALSE))) -> 0.003961527475 | J43: =+IF($A43="","",IF(OR(DATE($A43,Mes,1)<$E$24,DATE($A43,Mes,1)>$L$23),0,VLOOKUP(DATE($A43,Mes,1),Calculo!$H$13:$AE$1273,24,FALSE))) -> 0.003959625709 | K43: =+IF($A43="","",IF(OR(DATE($A43,Mes,1)<$E$24,DATE($A43,Mes,1)>$L$23),0,VLOOKUP(DATE($A43,Mes,1),Calculo!$H$13:$AE$1273,24,FALSE))) -> 0.003957720145 | L43: =+IF($A43="","",IF(OR(DATE($A43,Mes,1)<$E$24,DATE($A43,Mes,1)>$L$23),0,VLOOKUP(DATE($A43,Mes,1),Calculo!$H$13:$AE$1273,24,FALSE))) -> 0.003955810777 | M43: =+IF($A43="","",IF(OR(DATE($A43,Mes,1)<$E$24,DATE($A43,Mes,1)>$L$23),0,VLOOKUP(DATE($A43,Mes,1),Calculo!$H$13:$AE$1273,24,FALSE))) -> 0.003953897597
A44: =+IF(OR(A43="",A43=YEAR(Calculo!$F$19)),"",A43+1) -> 2046 | B44: =+IF($A44="","",IF(OR(DATE($A44,Mes,1)<$E$24,DATE($A44,Mes,1)>$L$23),0,VLOOKUP(DATE($A44,Mes,1),Calculo!$H$13:$AE$1273,24,FALSE))) -> 0.003952057406 | C44: =+IF($A44="","",IF(OR(DATE($A44,Mes,1)<$E$24,DATE($A44,Mes,1)>$L$23),0,VLOOKUP(DATE($A44,Mes,1),Calculo!$H$13:$AE$1273,24,FALSE))) -> 0.003950213211 | D44: =+IF($A44="","",IF(OR(DATE($A44,Mes,1)<$E$24,DATE($A44,Mes,1)>$L$23),0,VLOOKUP(DATE($A44,Mes,1),Calculo!$H$13:$AE$1273,24,FALSE))) -> 0.003948365007 | E44: =+IF($A44="","",IF(OR(DATE($A44,Mes,1)<$E$24,DATE($A44,Mes,1)>$L$23),0,VLOOKUP(DATE($A44,Mes,1),Calculo!$H$13:$AE$1273,24,FALSE))) -> 0.003946512782 | F44: =+IF($A44="","",IF(OR(DATE($A44,Mes,1)<$E$24,DATE($A44,Mes,1)>$L$23),0,VLOOKUP(DATE($A44,Mes,1),Calculo!$H$13:$AE$1273,24,FALSE))) -> 0.003944656529 | G44: =+IF($A44="","",IF(OR(DATE($A44,Mes,1)<$E$24,DATE($A44,Mes,1)>$L$23),0,VLOOKUP(DATE($A44,Mes,1),Calculo!$H$13:$AE$1273,24,FALSE))) -> 0.003942796239 | H44: =+IF($A44="","",IF(OR(DATE($A44,Mes,1)<$E$24,DATE($A44,Mes,1)>$L$23),0,VLOOKUP(DATE($A44,Mes,1),Calculo!$H$13:$AE$1273,24,FALSE))) -> 0.003940931904 | I44: =+IF($A44="","",IF(OR(DATE($A44,Mes,1)<$E$24,DATE($A44,Mes,1)>$L$23),0,VLOOKUP(DATE($A44,Mes,1),Calculo!$H$13:$AE$1273,24,FALSE))) -> 0.003939063514 | J44: =+IF($A44="","",IF(OR(DATE($A44,Mes,1)<$E$24,DATE($A44,Mes,1)>$L$23),0,VLOOKUP(DATE($A44,Mes,1),Calculo!$H$13:$AE$1273,24,FALSE))) -> 0.00393719106 | K44: =+IF($A44="","",IF(OR(DATE($A44,Mes,1)<$E$24,DATE($A44,Mes,1)>$L$23),0,VLOOKUP(DATE($A44,Mes,1),Calculo!$H$13:$AE$1273,24,FALSE))) -> 0.003935314534 | L44: =+IF($A44="","",IF(OR(DATE($A44,Mes,1)<$E$24,DATE($A44,Mes,1)>$L$23),0,VLOOKUP(DATE($A44,Mes,1),Calculo!$H$13:$AE$1273,24,FALSE))) -> 0.003933433926 | M44: =+IF($A44="","",IF(OR(DATE($A44,Mes,1)<$E$24,DATE($A44,Mes,1)>$L$23),0,VLOOKUP(DATE($A44,Mes,1),Calculo!$H$13:$AE$1273,24,FALSE))) -> 0.003931549229
A45: =+IF(OR(A44="",A44=YEAR(Calculo!$F$19)),"",A44+1) -> 2047 | B45: =+IF($A45="","",IF(OR(DATE($A45,Mes,1)<$E$24,DATE($A45,Mes,1)>$L$23),0,VLOOKUP(DATE($A45,Mes,1),Calculo!$H$13:$AE$1273,24,FALSE))) -> 0.003929750822 | C45: =+IF($A45="","",IF(OR(DATE($A45,Mes,1)<$E$24,DATE($A45,Mes,1)>$L$23),0,VLOOKUP(DATE($A45,Mes,1),Calculo!$H$13:$AE$1273,24,FALSE))) -> 0.003927948105 | D45: =+IF($A45="","",IF(OR(DATE($A45,Mes,1)<$E$24,DATE($A45,Mes,1)>$L$23),0,VLOOKUP(DATE($A45,Mes,1),Calculo!$H$13:$AE$1273,24,FALSE))) -> 0.003926141068 | E45: =+IF($A45="","",IF(OR(DATE($A45,Mes,1)<$E$24,DATE($A45,Mes,1)>$L$23),0,VLOOKUP(DATE($A45,Mes,1),Calculo!$H$13:$AE$1273,24,FALSE))) -> 0.003924329701 | F45: =+IF($A45="","",IF(OR(DATE($A45,Mes,1)<$E$24,DATE($A45,Mes,1)>$L$23),0,VLOOKUP(DATE($A45,Mes,1),Calculo!$H$13:$AE$1273,24,FALSE))) -> 0.003922513995 | G45: =+IF($A45="","",IF(OR(DATE($A45,Mes,1)<$E$24,DATE($A45,Mes,1)>$L$23),0,VLOOKUP(DATE($A45,Mes,1),Calculo!$H$13:$AE$1273,24,FALSE))) -> 0.003920693937 | H45: =+IF($A45="","",IF(OR(DATE($A45,Mes,1)<$E$24,DATE($A45,Mes,1)>$L$23),0,VLOOKUP(DATE($A45,Mes,1),Calculo!$H$13:$AE$1273,24,FALSE))) -> 0.003918869518 | I45: =+IF($A45="","",IF(OR(DATE($A45,Mes,1)<$E$24,DATE($A45,Mes,1)>$L$23),0,VLOOKUP(DATE($A45,Mes,1),Calculo!$H$13:$AE$1273,24,FALSE))) -> 0.003917040728 | J45: =+IF($A45="","",IF(OR(DATE($A45,Mes,1)<$E$24,DATE($A45,Mes,1)>$L$23),0,VLOOKUP(DATE($A45,Mes,1),Calculo!$H$13:$AE$1273,24,FALSE))) -> 0.003915207556 | K45: =+IF($A45="","",IF(OR(DATE($A45,Mes,1)<$E$24,DATE($A45,Mes,1)>$L$23),0,VLOOKUP(DATE($A45,Mes,1),Calculo!$H$13:$AE$1273,24,FALSE))) -> 0.003913369991 | L45: =+IF($A45="","",IF(OR(DATE($A45,Mes,1)<$E$24,DATE($A45,Mes,1)>$L$23),0,VLOOKUP(DATE($A45,Mes,1),Calculo!$H$13:$AE$1273,24,FALSE))) -> 0.003911528023 | M45: =+IF($A45="","",IF(OR(DATE($A45,Mes,1)<$E$24,DATE($A45,Mes,1)>$L$23),0,VLOOKUP(DATE($A45,Mes,1),Calculo!$H$13:$AE$1273,24,FALSE))) -> 0.003909681642
A46: =+IF(OR(A45="",A45=YEAR(Calculo!$F$19)),"",A45+1) -> 2048 | B46: =+IF($A46="","",IF(OR(DATE($A46,Mes,1)<$E$24,DATE($A46,Mes,1)>$L$23),0,VLOOKUP(DATE($A46,Mes,1),Calculo!$H$13:$AE$1273,24,FALSE))) -> 0.003907930143 | C46: =+IF($A46="","",IF(OR(DATE($A46,Mes,1)<$E$24,DATE($A46,Mes,1)>$L$23),0,VLOOKUP(DATE($A46,Mes,1),Calculo!$H$13:$AE$1273,24,FALSE))) -> 0.003906173998 | D46: =+IF($A46="","",IF(OR(DATE($A46,Mes,1)<$E$24,DATE($A46,Mes,1)>$L$23),0,VLOOKUP(DATE($A46,Mes,1),Calculo!$H$13:$AE$1273,24,FALSE))) -> 0.003904413194 | E46: =+IF($A46="","",IF(OR(DATE($A46,Mes,1)<$E$24,DATE($A46,Mes,1)>$L$23),0,VLOOKUP(DATE($A46,Mes,1),Calculo!$H$13:$AE$1273,24,FALSE))) -> 0.003902647718 | F46: =+IF($A46="","",IF(OR(DATE($A46,Mes,1)<$E$24,DATE($A46,Mes,1)>$L$23),0,VLOOKUP(DATE($A46,Mes,1),Calculo!$H$13:$AE$1273,24,FALSE))) -> 0.003900877558 | G46: =+IF($A46="","",IF(OR(DATE($A46,Mes,1)<$E$24,DATE($A46,Mes,1)>$L$23),0,VLOOKUP(DATE($A46,Mes,1),Calculo!$H$13:$AE$1273,24,FALSE))) -> 0.003899102702 | H46: =+IF($A46="","",IF(OR(DATE($A46,Mes,1)<$E$24,DATE($A46,Mes,1)>$L$23),0,VLOOKUP(DATE($A46,Mes,1),Calculo!$H$13:$AE$1273,24,FALSE))) -> 0.003897323137 | I46: =+IF($A46="","",IF(OR(DATE($A46,Mes,1)<$E$24,DATE($A46,Mes,1)>$L$23),0,VLOOKUP(DATE($A46,Mes,1),Calculo!$H$13:$AE$1273,24,FALSE))) -> 0.003895538851 | J46: =+IF($A46="","",IF(OR(DATE($A46,Mes,1)<$E$24,DATE($A46,Mes,1)>$L$23),0,VLOOKUP(DATE($A46,Mes,1),Calculo!$H$13:$AE$1273,24,FALSE))) -> 0.003893749831 | K46: =+IF($A46="","",IF(OR(DATE($A46,Mes,1)<$E$24,DATE($A46,Mes,1)>$L$23),0,VLOOKUP(DATE($A46,Mes,1),Calculo!$H$13:$AE$1273,24,FALSE))) -> 0.003891956065 | L46: =+IF($A46="","",IF(OR(DATE($A46,Mes,1)<$E$24,DATE($A46,Mes,1)>$L$23),0,VLOOKUP(DATE($A46,Mes,1),Calculo!$H$13:$AE$1273,24,FALSE))) -> 0.00389015754 | M46: =+IF($A46="","",IF(OR(DATE($A46,Mes,1)<$E$24,DATE($A46,Mes,1)>$L$23),0,VLOOKUP(DATE($A46,Mes,1),Calculo!$H$13:$AE$1273,24,FALSE))) -> 0.003888354243
A47: =+IF(OR(A46="",A46=YEAR(Calculo!$F$19)),"",A46+1) -> 2049 | B47: =+IF($A47="","",IF(OR(DATE($A47,Mes,1)<$E$24,DATE($A47,Mes,1)>$L$23),0,VLOOKUP(DATE($A47,Mes,1),Calculo!$H$13:$AE$1273,24,FALSE))) -> 0.003886656361 | C47: =+IF($A47="","",IF(OR(DATE($A47,Mes,1)<$E$24,DATE($A47,Mes,1)>$L$23),0,VLOOKUP(DATE($A47,Mes,1),Calculo!$H$13:$AE$1273,24,FALSE))) -> 0.003884953461 | D47: =+IF($A47="","",IF(OR(DATE($A47,Mes,1)<$E$24,DATE($A47,Mes,1)>$L$23),0,VLOOKUP(DATE($A47,Mes,1),Calculo!$H$13:$AE$1273,24,FALSE))) -> 0.00388324553 | E47: =+IF($A47="","",IF(OR(DATE($A47,Mes,1)<$E$24,DATE($A47,Mes,1)>$L$23),0,VLOOKUP(DATE($A47,Mes,1),Calculo!$H$13:$AE$1273,24,FALSE))) -> 0.003881532552 | F47: =+IF($A47="","",IF(OR(DATE($A47,Mes,1)<$E$24,DATE($A47,Mes,1)>$L$23),0,VLOOKUP(DATE($A47,Mes,1),Calculo!$H$13:$AE$1273,24,FALSE))) -> 0.003879814513 | G47: =+IF($A47="","",IF(OR(DATE($A47,Mes,1)<$E$24,DATE($A47,Mes,1)>$L$23),0,VLOOKUP(DATE($A47,Mes,1),Calculo!$H$13:$AE$1273,24,FALSE))) -> 0.003878091398 | H47: =+IF($A47="","",IF(OR(DATE($A47,Mes,1)<$E$24,DATE($A47,Mes,1)>$L$23),0,VLOOKUP(DATE($A47,Mes,1),Calculo!$H$13:$AE$1273,24,FALSE))) -> 0.003876363191 | I47: =+IF($A47="","",IF(OR(DATE($A47,Mes,1)<$E$24,DATE($A47,Mes,1)>$L$23),0,VLOOKUP(DATE($A47,Mes,1),Calculo!$H$13:$AE$1273,24,FALSE))) -> 0.003874629878 | J47: =+IF($A47="","",IF(OR(DATE($A47,Mes,1)<$E$24,DATE($A47,Mes,1)>$L$23),0,VLOOKUP(DATE($A47,Mes,1),Calculo!$H$13:$AE$1273,24,FALSE))) -> 0.003872891443 | K47: =+IF($A47="","",IF(OR(DATE($A47,Mes,1)<$E$24,DATE($A47,Mes,1)>$L$23),0,VLOOKUP(DATE($A47,Mes,1),Calculo!$H$13:$AE$1273,24,FALSE))) -> 0.003871147871 | L47: =+IF($A47="","",IF(OR(DATE($A47,Mes,1)<$E$24,DATE($A47,Mes,1)>$L$23),0,VLOOKUP(DATE($A47,Mes,1),Calculo!$H$13:$AE$1273,24,FALSE))) -> 0.003869399148 | M47: =+IF($A47="","",IF(OR(DATE($A47,Mes,1)<$E$24,DATE($A47,Mes,1)>$L$23),0,VLOOKUP(DATE($A47,Mes,1),Calculo!$H$13:$AE$1273,24,FALSE))) -> 0.003867645257
A48: =+IF(OR(A47="",A47=YEAR(Calculo!$F$19)),"",A47+1) -> 2050 | B48: =+IF($A48="","",IF(OR(DATE($A48,Mes,1)<$E$24,DATE($A48,Mes,1)>$L$23),0,VLOOKUP(DATE($A48,Mes,1),Calculo!$H$13:$AE$1273,24,FALSE))) -> 0.003866005773 | C48: =+IF($A48="","",IF(OR(DATE($A48,Mes,1)<$E$24,DATE($A48,Mes,1)>$L$23),0,VLOOKUP(DATE($A48,Mes,1),Calculo!$H$13:$AE$1273,24,FALSE))) -> 0.003864360876 | D48: =+IF($A48="","",IF(OR(DATE($A48,Mes,1)<$E$24,DATE($A48,Mes,1)>$L$23),0,VLOOKUP(DATE($A48,Mes,1),Calculo!$H$13:$AE$1273,24,FALSE))) -> 0.003862710547 | E48: =+IF($A48="","",IF(OR(DATE($A48,Mes,1)<$E$24,DATE($A48,Mes,1)>$L$23),0,VLOOKUP(DATE($A48,Mes,1),Calculo!$H$13:$AE$1273,24,FALSE))) -> 0.003861054769 | F48: =+IF($A48="","",IF(OR(DATE($A48,Mes,1)<$E$24,DATE($A48,Mes,1)>$L$23),0,VLOOKUP(DATE($A48,Mes,1),Calculo!$H$13:$AE$1273,24,FALSE))) -> 0.003859393524 | G48: =+IF($A48="","",IF(OR(DATE($A48,Mes,1)<$E$24,DATE($A48,Mes,1)>$L$23),0,VLOOKUP(DATE($A48,Mes,1),Calculo!$H$13:$AE$1273,24,FALSE))) -> 0.003857726793 | H48: =+IF($A48="","",IF(OR(DATE($A48,Mes,1)<$E$24,DATE($A48,Mes,1)>$L$23),0,VLOOKUP(DATE($A48,Mes,1),Calculo!$H$13:$AE$1273,24,FALSE))) -> 0.00385605456 | I48: =+IF($A48="","",IF(OR(DATE($A48,Mes,1)<$E$24,DATE($A48,Mes,1)>$L$23),0,VLOOKUP(DATE($A48,Mes,1),Calculo!$H$13:$AE$1273,24,FALSE))) -> 0.003854376804 | J48: =+IF($A48="","",IF(OR(DATE($A48,Mes,1)<$E$24,DATE($A48,Mes,1)>$L$23),0,VLOOKUP(DATE($A48,Mes,1),Calculo!$H$13:$AE$1273,24,FALSE))) -> 0.003852693509 | K48: =+IF($A48="","",IF(OR(DATE($A48,Mes,1)<$E$24,DATE($A48,Mes,1)>$L$23),0,VLOOKUP(DATE($A48,Mes,1),Calculo!$H$13:$AE$1273,24,FALSE))) -> 0.003851004656 | L48: =+IF($A48="","",IF(OR(DATE($A48,Mes,1)<$E$24,DATE($A48,Mes,1)>$L$23),0,VLOOKUP(DATE($A48,Mes,1),Calculo!$H$13:$AE$1273,24,FALSE))) -> 0.003849310227 | M48: =+IF($A48="","",IF(OR(DATE($A48,Mes,1)<$E$24,DATE($A48,Mes,1)>$L$23),0,VLOOKUP(DATE($A48,Mes,1),Calculo!$H$13:$AE$1273,24,FALSE))) -> 0.003847610203
A49: =+IF(OR(A48="",A48=YEAR(Calculo!$F$19)),"",A48+1) -> 2051 | B49: =+IF($A49="","",IF(OR(DATE($A49,Mes,1)<$E$24,DATE($A49,Mes,1)>$L$23),0,VLOOKUP(DATE($A49,Mes,1),Calculo!$H$13:$AE$1273,24,FALSE))) -> 0.003846030051 | C49: =+IF($A49="","",IF(OR(DATE($A49,Mes,1)<$E$24,DATE($A49,Mes,1)>$L$23),0,VLOOKUP(DATE($A49,Mes,1),Calculo!$H$13:$AE$1273,24,FALSE))) -> 0.003844444072 | D49: =+IF($A49="","",IF(OR(DATE($A49,Mes,1)<$E$24,DATE($A49,Mes,1)>$L$23),0,VLOOKUP(DATE($A49,Mes,1),Calculo!$H$13:$AE$1273,24,FALSE))) -> 0.003842852242 | E49: =+IF($A49="","",IF(OR(DATE($A49,Mes,1)<$E$24,DATE($A49,Mes,1)>$L$23),0,VLOOKUP(DATE($A49,Mes,1),Calculo!$H$13:$AE$1273,24,FALSE))) -> 0.00384125454 | F49: =+IF($A49="","",IF(OR(DATE($A49,Mes,1)<$E$24,DATE($A49,Mes,1)>$L$23),0,VLOOKUP(DATE($A49,Mes,1),Calculo!$H$13:$AE$1273,24,FALSE))) -> 0.003839650946 | G49: =+IF($A49="","",IF(OR(DATE($A49,Mes,1)<$E$24,DATE($A49,Mes,1)>$L$23),0,VLOOKUP(DATE($A49,Mes,1),Calculo!$H$13:$AE$1273,24,FALSE))) -> 0.003838041436 | H49: =+IF($A49="","",IF(OR(DATE($A49,Mes,1)<$E$24,DATE($A49,Mes,1)>$L$23),0,VLOOKUP(DATE($A49,Mes,1),Calculo!$H$13:$AE$1273,24,FALSE))) -> 0.003836425989 | I49: =+IF($A49="","",IF(OR(DATE($A49,Mes,1)<$E$24,DATE($A49,Mes,1)>$L$23),0,VLOOKUP(DATE($A49,Mes,1),Calculo!$H$13:$AE$1273,24,FALSE))) -> 0.003834804584 | J49: =+IF($A49="","",IF(OR(DATE($A49,Mes,1)<$E$24,DATE($A49,Mes,1)>$L$23),0,VLOOKUP(DATE($A49,Mes,1),Calculo!$H$13:$AE$1273,24,FALSE))) -> 0.003833177198 | K49: =+IF($A49="","",IF(OR(DATE($A49,Mes,1)<$E$24,DATE($A49,Mes,1)>$L$23),0,VLOOKUP(DATE($A49,Mes,1),Calculo!$H$13:$AE$1273,24,FALSE))) -> 0.003831543809 | L49: =+IF($A49="","",IF(OR(DATE($A49,Mes,1)<$E$24,DATE($A49,Mes,1)>$L$23),0,VLOOKUP(DATE($A49,Mes,1),Calculo!$H$13:$AE$1273,24,FALSE))) -> 0.003829904396 | M49: =+IF($A49="","",IF(OR(DATE($A49,Mes,1)<$E$24,DATE($A49,Mes,1)>$L$23),0,VLOOKUP(DATE($A49,Mes,1),Calculo!$H$13:$AE$1273,24,FALSE))) -> 0.003828258935
A50: =+IF(OR(A49="",A49=YEAR(Calculo!$F$19)),"",A49+1) -> 2052 | B50: =+IF($A50="","",IF(OR(DATE($A50,Mes,1)<$E$24,DATE($A50,Mes,1)>$L$23),0,VLOOKUP(DATE($A50,Mes,1),Calculo!$H$13:$AE$1273,24,FALSE))) -> 0.00382673733 | C50: =+IF($A50="","",IF(OR(DATE($A50,Mes,1)<$E$24,DATE($A50,Mes,1)>$L$23),0,VLOOKUP(DATE($A50,Mes,1),Calculo!$H$13:$AE$1273,24,FALSE))) -> 0.003825209465 | D50: =+IF($A50="","",IF(OR(DATE($A50,Mes,1)<$E$24,DATE($A50,Mes,1)>$L$23),0,VLOOKUP(DATE($A50,Mes,1),Calculo!$H$13:$AE$1273,24,FALSE))) -> 0.003823675314 | E50: =+IF($A50="","",IF(OR(DATE($A50,Mes,1)<$E$24,DATE($A50,Mes,1)>$L$23),0,VLOOKUP(DATE($A50,Mes,1),Calculo!$H$13:$AE$1273,24,FALSE))) -> 0.003822134851 | F50: =+IF($A50="","",IF(OR(DATE($A50,Mes,1)<$E$24,DATE($A50,Mes,1)>$L$23),0,VLOOKUP(DATE($A50,Mes,1),Calculo!$H$13:$AE$1273,24,FALSE))) -> 0.003820588049 | G50: =+IF($A50="","",IF(OR(DATE($A50,Mes,1)<$E$24,DATE($A50,Mes,1)>$L$23),0,VLOOKUP(DATE($A50,Mes,1),Calculo!$H$13:$AE$1273,24,FALSE))) -> 0.003819034884 | H50: =+IF($A50="","",IF(OR(DATE($A50,Mes,1)<$E$24,DATE($A50,Mes,1)>$L$23),0,VLOOKUP(DATE($A50,Mes,1),Calculo!$H$13:$AE$1273,24,FALSE))) -> 0.003817475328 | I50: =+IF($A50="","",IF(OR(DATE($A50,Mes,1)<$E$24,DATE($A50,Mes,1)>$L$23),0,VLOOKUP(DATE($A50,Mes,1),Calculo!$H$13:$AE$1273,24,FALSE))) -> 0.003815909355 | J50: =+IF($A50="","",IF(OR(DATE($A50,Mes,1)<$E$24,DATE($A50,Mes,1)>$L$23),0,VLOOKUP(DATE($A50,Mes,1),Calculo!$H$13:$AE$1273,24,FALSE))) -> 0.00381433694 | K50: =+IF($A50="","",IF(OR(DATE($A50,Mes,1)<$E$24,DATE($A50,Mes,1)>$L$23),0,VLOOKUP(DATE($A50,Mes,1),Calculo!$H$13:$AE$1273,24,FALSE))) -> 0.003812758055 | L50: =+IF($A50="","",IF(OR(DATE($A50,Mes,1)<$E$24,DATE($A50,Mes,1)>$L$23),0,VLOOKUP(DATE($A50,Mes,1),Calculo!$H$13:$AE$1273,24,FALSE))) -> 0.003811172674 | M50: =+IF($A50="","",IF(OR(DATE($A50,Mes,1)<$E$24,DATE($A50,Mes,1)>$L$23),0,VLOOKUP(DATE($A50,Mes,1),Calculo!$H$13:$AE$1273,24,FALSE))) -> 0.003809580769
A51: =+IF(OR(A50="",A50=YEAR(Calculo!$F$19)),"",A50+1) -> 2053 | B51: =+IF($A51="","",IF(OR(DATE($A51,Mes,1)<$E$24,DATE($A51,Mes,1)>$L$23),0,VLOOKUP(DATE($A51,Mes,1),Calculo!$H$13:$AE$1273,24,FALSE))) -> 0.003808116606 | C51: =+IF($A51="","",IF(OR(DATE($A51,Mes,1)<$E$24,DATE($A51,Mes,1)>$L$23),0,VLOOKUP(DATE($A51,Mes,1),Calculo!$H$13:$AE$1273,24,FALSE))) -> 0.003806645733 | D51: =+IF($A51="","",IF(OR(DATE($A51,Mes,1)<$E$24,DATE($A51,Mes,1)>$L$23),0,VLOOKUP(DATE($A51,Mes,1),Calculo!$H$13:$AE$1273,24,FALSE))) -> 0.003805168118 | E51: =+IF($A51="","",IF(OR(DATE($A51,Mes,1)<$E$24,DATE($A51,Mes,1)>$L$23),0,VLOOKUP(DATE($A51,Mes,1),Calculo!$H$13:$AE$1273,24,FALSE))) -> 0.00380368373 | F51: =+IF($A51="","",IF(OR(DATE($A51,Mes,1)<$E$24,DATE($A51,Mes,1)>$L$23),0,VLOOKUP(DATE($A51,Mes,1),Calculo!$H$13:$AE$1273,24,FALSE))) -> 0.00380219254 | G51: =+IF($A51="","",IF(OR(DATE($A51,Mes,1)<$E$24,DATE($A51,Mes,1)>$L$23),0,VLOOKUP(DATE($A51,Mes,1),Calculo!$H$13:$AE$1273,24,FALSE))) -> 0.003800694515 | H51: =+IF($A51="","",IF(OR(DATE($A51,Mes,1)<$E$24,DATE($A51,Mes,1)>$L$23),0,VLOOKUP(DATE($A51,Mes,1),Calculo!$H$13:$AE$1273,24,FALSE))) -> 0.003799189625 | I51: =+IF($A51="","",IF(OR(DATE($A51,Mes,1)<$E$24,DATE($A51,Mes,1)>$L$23),0,VLOOKUP(DATE($A51,Mes,1),Calculo!$H$13:$AE$1273,24,FALSE))) -> 0.003797677837 | J51: =+IF($A51="","",IF(OR(DATE($A51,Mes,1)<$E$24,DATE($A51,Mes,1)>$L$23),0,VLOOKUP(DATE($A51,Mes,1),Calculo!$H$13:$AE$1273,24,FALSE))) -> 0.003796159121 | K51: =+IF($A51="","",IF(OR(DATE($A51,Mes,1)<$E$24,DATE($A51,Mes,1)>$L$23),0,VLOOKUP(DATE($A51,Mes,1),Calculo!$H$13:$AE$1273,24,FALSE))) -> 0.003794633444 | L51: =+IF($A51="","",IF(OR(DATE($A51,Mes,1)<$E$24,DATE($A51,Mes,1)>$L$23),0,VLOOKUP(DATE($A51,Mes,1),Calculo!$H$13:$AE$1273,24,FALSE))) -> 0.003793100774 | M51: =+IF($A51="","",IF(OR(DATE($A51,Mes,1)<$E$24,DATE($A51,Mes,1)>$L$23),0,VLOOKUP(DATE($A51,Mes,1),Calculo!$H$13:$AE$1273,24,FALSE))) -> 0.00379156108
A52: =+IF(OR(A51="",A51=YEAR(Calculo!$F$19)),"",A51+1) -> 2054 | B52: =+IF($A52="","",IF(OR(DATE($A52,Mes,1)<$E$24,DATE($A52,Mes,1)>$L$23),0,VLOOKUP(DATE($A52,Mes,1),Calculo!$H$13:$AE$1273,24,FALSE))) -> 0.003790151872 | C52: =+IF($A52="","",IF(OR(DATE($A52,Mes,1)<$E$24,DATE($A52,Mes,1)>$L$23),0,VLOOKUP(DATE($A52,Mes,1),Calculo!$H$13:$AE$1273,24,FALSE))) -> 0.003788735484 | D52: =+IF($A52="","",IF(OR(DATE($A52,Mes,1)<$E$24,DATE($A52,Mes,1)>$L$23),0,VLOOKUP(DATE($A52,Mes,1),Calculo!$H$13:$AE$1273,24,FALSE))) -> 0.003787311878 | E52: =+IF($A52="","",IF(OR(DATE($A52,Mes,1)<$E$24,DATE($A52,Mes,1)>$L$23),0,VLOOKUP(DATE($A52,Mes,1),Calculo!$H$13:$AE$1273,24,FALSE))) -> 0.003785881019 | F52: =+IF($A52="","",IF(OR(DATE($A52,Mes,1)<$E$24,DATE($A52,Mes,1)>$L$23),0,VLOOKUP(DATE($A52,Mes,1),Calculo!$H$13:$AE$1273,24,FALSE))) -> 0.003784442868 | G52: =+IF($A52="","",IF(OR(DATE($A52,Mes,1)<$E$24,DATE($A52,Mes,1)>$L$23),0,VLOOKUP(DATE($A52,Mes,1),Calculo!$H$13:$AE$1273,24,FALSE))) -> 0.003782997389 | H52: =+IF($A52="","",IF(OR(DATE($A52,Mes,1)<$E$24,DATE($A52,Mes,1)>$L$23),0,VLOOKUP(DATE($A52,Mes,1),Calculo!$H$13:$AE$1273,24,FALSE))) -> 0.003781544544 | I52: =+IF($A52="","",IF(OR(DATE($A52,Mes,1)<$E$24,DATE($A52,Mes,1)>$L$23),0,VLOOKUP(DATE($A52,Mes,1),Calculo!$H$13:$AE$1273,24,FALSE))) -> 0.003780084297 | J52: =+IF($A52="","",IF(OR(DATE($A52,Mes,1)<$E$24,DATE($A52,Mes,1)>$L$23),0,VLOOKUP(DATE($A52,Mes,1),Calculo!$H$13:$AE$1273,24,FALSE))) -> 0.003778616608 | K52: =+IF($A52="","",IF(OR(DATE($A52,Mes,1)<$E$24,DATE($A52,Mes,1)>$L$23),0,VLOOKUP(DATE($A52,Mes,1),Calculo!$H$13:$AE$1273,24,FALSE))) -> 0.003777141441 | L52: =+IF($A52="","",IF(OR(DATE($A52,Mes,1)<$E$24,DATE($A52,Mes,1)>$L$23),0,VLOOKUP(DATE($A52,Mes,1),Calculo!$H$13:$AE$1273,24,FALSE))) -> 0.003775658758 | M52: =+IF($A52="","",IF(OR(DATE($A52,Mes,1)<$E$24,DATE($A52,Mes,1)>$L$23),0,VLOOKUP(DATE($A52,Mes,1),Calculo!$H$13:$AE$1273,24,FALSE))) -> 0.003774168519
A53: =+IF(OR(A52="",A52=YEAR(Calculo!$F$19)),"",A52+1) -> 2055 | B53: =+IF($A53="","",IF(OR(DATE($A53,Mes,1)<$E$24,DATE($A53,Mes,1)>$L$23),0,VLOOKUP(DATE($A53,Mes,1),Calculo!$H$13:$AE$1273,24,FALSE))) -> 0.003772817707 | C53: =+IF($A53="","",IF(OR(DATE($A53,Mes,1)<$E$24,DATE($A53,Mes,1)>$L$23),0,VLOOKUP(DATE($A53,Mes,1),Calculo!$H$13:$AE$1273,24,FALSE))) -> 0.003771459222 | D53: =+IF($A53="","",IF(OR(DATE($A53,Mes,1)<$E$24,DATE($A53,Mes,1)>$L$23),0,VLOOKUP(DATE($A53,Mes,1),Calculo!$H$13:$AE$1273,24,FALSE))) -> 0.003770093018 | E53: =+IF($A53="","",IF(OR(DATE($A53,Mes,1)<$E$24,DATE($A53,Mes,1)>$L$23),0,VLOOKUP(DATE($A53,Mes,1),Calculo!$H$13:$AE$1273,24,FALSE))) -> 0.003768719053 | F53: =+IF($A53="","",IF(OR(DATE($A53,Mes,1)<$E$24,DATE($A53,Mes,1)>$L$23),0,VLOOKUP(DATE($A53,Mes,1),Calculo!$H$13:$AE$1273,24,FALSE))) -> 0.003767337282 | G53: =+IF($A53="","",IF(OR(DATE($A53,Mes,1)<$E$24,DATE($A53,Mes,1)>$L$23),0,VLOOKUP(DATE($A53,Mes,1),Calculo!$H$13:$AE$1273,24,FALSE))) -> 0.003765947662 | H53: =+IF($A53="","",IF(OR(DATE($A53,Mes,1)<$E$24,DATE($A53,Mes,1)>$L$23),0,VLOOKUP(DATE($A53,Mes,1),Calculo!$H$13:$AE$1273,24,FALSE))) -> 0.003764550146 | I53: =+IF($A53="","",IF(OR(DATE($A53,Mes,1)<$E$24,DATE($A53,Mes,1)>$L$23),0,VLOOKUP(DATE($A53,Mes,1),Calculo!$H$13:$AE$1273,24,FALSE))) -> 0.003763144691 | J53: =+IF($A53="","",IF(OR(DATE($A53,Mes,1)<$E$24,DATE($A53,Mes,1)>$L$23),0,VLOOKUP(DATE($A53,Mes,1),Calculo!$H$13:$AE$1273,24,FALSE))) -> 0.003761731251 | K53: =+IF($A53="","",IF(OR(DATE($A53,Mes,1)<$E$24,DATE($A53,Mes,1)>$L$23),0,VLOOKUP(DATE($A53,Mes,1),Calculo!$H$13:$AE$1273,24,FALSE))) -> 0.003760309781 | L53: =+IF($A53="","",IF(OR(DATE($A53,Mes,1)<$E$24,DATE($A53,Mes,1)>$L$23),0,VLOOKUP(DATE($A53,Mes,1),Calculo!$H$13:$AE$1273,24,FALSE))) -> 0.003758880236 | M53: =+IF($A53="","",IF(OR(DATE($A53,Mes,1)<$E$24,DATE($A53,Mes,1)>$L$23),0,VLOOKUP(DATE($A53,Mes,1),Calculo!$H$13:$AE$1273,24,FALSE))) -> 0.003757442569
A54: =+IF(OR(A53="",A53=YEAR(Calculo!$F$19)),"",A53+1) -> 2056 | B54: =+IF($A54="","",IF(OR(DATE($A54,Mes,1)<$E$24,DATE($A54,Mes,1)>$L$23),0,VLOOKUP(DATE($A54,Mes,1),Calculo!$H$13:$AE$1273,24,FALSE))) -> 0.003756143185 | C54: =+IF($A54="","",IF(OR(DATE($A54,Mes,1)<$E$24,DATE($A54,Mes,1)>$L$23),0,VLOOKUP(DATE($A54,Mes,1),Calculo!$H$13:$AE$1273,24,FALSE))) -> 0.003754835607 | D54: =+IF($A54="","",IF(OR(DATE($A54,Mes,1)<$E$24,DATE($A54,Mes,1)>$L$23),0,VLOOKUP(DATE($A54,Mes,1),Calculo!$H$13:$AE$1273,24,FALSE))) -> 0.003753519783 | E54: =+IF($A54="","",IF(OR(DATE($A54,Mes,1)<$E$24,DATE($A54,Mes,1)>$L$23),0,VLOOKUP(DATE($A54,Mes,1),Calculo!$H$13:$AE$1273,24,FALSE))) -> 0.003752195661 | F54: =+IF($A54="","",IF(OR(DATE($A54,Mes,1)<$E$24,DATE($A54,Mes,1)>$L$23),0,VLOOKUP(DATE($A54,Mes,1),Calculo!$H$13:$AE$1273,24,FALSE))) -> 0.00375086319 | G54: =+IF($A54="","",IF(OR(DATE($A54,Mes,1)<$E$24,DATE($A54,Mes,1)>$L$23),0,VLOOKUP(DATE($A54,Mes,1),Calculo!$H$13:$AE$1273,24,FALSE))) -> 0.003749522315 | H54: =+IF($A54="","",IF(OR(DATE($A54,Mes,1)<$E$24,DATE($A54,Mes,1)>$L$23),0,VLOOKUP(DATE($A54,Mes,1),Calculo!$H$13:$AE$1273,24,FALSE))) -> 0.003748172985 | I54: =+IF($A54="","",IF(OR(DATE($A54,Mes,1)<$E$24,DATE($A54,Mes,1)>$L$23),0,VLOOKUP(DATE($A54,Mes,1),Calculo!$H$13:$AE$1273,24,FALSE))) -> 0.003746815145 | J54: =+IF($A54="","",IF(OR(DATE($A54,Mes,1)<$E$24,DATE($A54,Mes,1)>$L$23),0,VLOOKUP(DATE($A54,Mes,1),Calculo!$H$13:$AE$1273,24,FALSE))) -> 0.003745448743 | K54: =+IF($A54="","",IF(OR(DATE($A54,Mes,1)<$E$24,DATE($A54,Mes,1)>$L$23),0,VLOOKUP(DATE($A54,Mes,1),Calculo!$H$13:$AE$1273,24,FALSE))) -> 0.003744073724 | L54: =+IF($A54="","",IF(OR(DATE($A54,Mes,1)<$E$24,DATE($A54,Mes,1)>$L$23),0,VLOOKUP(DATE($A54,Mes,1),Calculo!$H$13:$AE$1273,24,FALSE))) -> 0.003742690034 | M54: =+IF($A54="","",IF(OR(DATE($A54,Mes,1)<$E$24,DATE($A54,Mes,1)>$L$23),0,VLOOKUP(DATE($A54,Mes,1),Calculo!$H$13:$AE$1273,24,FALSE))) -> 0.003741297618
A55: =+IF(OR(A54="",A54=YEAR(Calculo!$F$19)),"",A54+1) -> 2057 | B55: =+IF($A55="","",IF(OR(DATE($A55,Mes,1)<$E$24,DATE($A55,Mes,1)>$L$23),0,VLOOKUP(DATE($A55,Mes,1),Calculo!$H$13:$AE$1273,24,FALSE))) -> 0.003740043747 | C55: =+IF($A55="","",IF(OR(DATE($A55,Mes,1)<$E$24,DATE($A55,Mes,1)>$L$23),0,VLOOKUP(DATE($A55,Mes,1),Calculo!$H$13:$AE$1273,24,FALSE))) -> 0.003738781122 | D55: =+IF($A55="","",IF(OR(DATE($A55,Mes,1)<$E$24,DATE($A55,Mes,1)>$L$23),0,VLOOKUP(DATE($A55,Mes,1),Calculo!$H$13:$AE$1273,24,FALSE))) -> 0.003737509682 | E55: =+IF($A55="","",IF(OR(DATE($A55,Mes,1)<$E$24,DATE($A55,Mes,1)>$L$23),0,VLOOKUP(DATE($A55,Mes,1),Calculo!$H$13:$AE$1273,24,FALSE))) -> 0.003736229366 | F55: =+IF($A55="","",IF(OR(DATE($A55,Mes,1)<$E$24,DATE($A55,Mes,1)>$L$23),0,VLOOKUP(DATE($A55,Mes,1),Calculo!$H$13:$AE$1273,24,FALSE))) -> 0.003734940112 | G55: =+IF($A55="","",IF(OR(DATE($A55,Mes,1)<$E$24,DATE($A55,Mes,1)>$L$23),0,VLOOKUP(DATE($A55,Mes,1),Calculo!$H$13:$AE$1273,24,FALSE))) -> 0.003733641856 | H55: =+IF($A55="","",IF(OR(DATE($A55,Mes,1)<$E$24,DATE($A55,Mes,1)>$L$23),0,VLOOKUP(DATE($A55,Mes,1),Calculo!$H$13:$AE$1273,24,FALSE))) -> 0.003732334537 | I55: =+IF($A55="","",IF(OR(DATE($A55,Mes,1)<$E$24,DATE($A55,Mes,1)>$L$23),0,VLOOKUP(DATE($A55,Mes,1),Calculo!$H$13:$AE$1273,24,FALSE))) -> 0.003731018091 | J55: =+IF($A55="","",IF(OR(DATE($A55,Mes,1)<$E$24,DATE($A55,Mes,1)>$L$23),0,VLOOKUP(DATE($A55,Mes,1),Calculo!$H$13:$AE$1273,24,FALSE))) -> 0.003729692454 | K55: =+IF($A55="","",IF(OR(DATE($A55,Mes,1)<$E$24,DATE($A55,Mes,1)>$L$23),0,VLOOKUP(DATE($A55,Mes,1),Calculo!$H$13:$AE$1273,24,FALSE))) -> 0.003728357563 | L55: =+IF($A55="","",IF(OR(DATE($A55,Mes,1)<$E$24,DATE($A55,Mes,1)>$L$23),0,VLOOKUP(DATE($A55,Mes,1),Calculo!$H$13:$AE$1273,24,FALSE))) -> 0.003727013351 | M55: =+IF($A55="","",IF(OR(DATE($A55,Mes,1)<$E$24,DATE($A55,Mes,1)>$L$23),0,VLOOKUP(DATE($A55,Mes,1),Calculo!$H$13:$AE$1273,24,FALSE))) -> 0.003725659756
A56: =+IF(OR(A55="",A55=YEAR(Calculo!$F$19)),"",A55+1) -> 2058 | B56: =+IF($A56="","",IF(OR(DATE($A56,Mes,1)<$E$24,DATE($A56,Mes,1)>$L$23),0,VLOOKUP(DATE($A56,Mes,1),Calculo!$H$13:$AE$1273,24,FALSE))) -> 0.003724488207 | C56: =+IF($A56="","",IF(OR(DATE($A56,Mes,1)<$E$24,DATE($A56,Mes,1)>$L$23),0,VLOOKUP(DATE($A56,Mes,1),Calculo!$H$13:$AE$1273,24,FALSE))) -> 0.003723307372 | D56: =+IF($A56="","",IF(OR(DATE($A56,Mes,1)<$E$24,DATE($A56,Mes,1)>$L$23),0,VLOOKUP(DATE($A56,Mes,1),Calculo!$H$13:$AE$1273,24,FALSE))) -> 0.003722117177 | E56: =+IF($A56="","",IF(OR(DATE($A56,Mes,1)<$E$24,DATE($A56,Mes,1)>$L$23),0,VLOOKUP(DATE($A56,Mes,1),Calculo!$H$13:$AE$1273,24,FALSE))) -> 0.003720917547 | F56: =+IF($A56="","",IF(OR(DATE($A56,Mes,1)<$E$24,DATE($A56,Mes,1)>$L$23),0,VLOOKUP(DATE($A56,Mes,1),Calculo!$H$13:$AE$1273,24,FALSE))) -> 0.003719708407 | G56: =+IF($A56="","",IF(OR(DATE($A56,Mes,1)<$E$24,DATE($A56,Mes,1)>$L$23),0,VLOOKUP(DATE($A56,Mes,1),Calculo!$H$13:$AE$1273,24,FALSE))) -> 0.003718489683 | H56: =+IF($A56="","",IF(OR(DATE($A56,Mes,1)<$E$24,DATE($A56,Mes,1)>$L$23),0,VLOOKUP(DATE($A56,Mes,1),Calculo!$H$13:$AE$1273,24,FALSE))) -> 0.003717261298 | I56: =+IF($A56="","",IF(OR(DATE($A56,Mes,1)<$E$24,DATE($A56,Mes,1)>$L$23),0,VLOOKUP(DATE($A56,Mes,1),Calculo!$H$13:$AE$1273,24,FALSE))) -> 0.003716023176 | J56: =+IF($A56="","",IF(OR(DATE($A56,Mes,1)<$E$24,DATE($A56,Mes,1)>$L$23),0,VLOOKUP(DATE($A56,Mes,1),Calculo!$H$13:$AE$1273,24,FALSE))) -> 0.003714775239 | K56: =+IF($A56="","",IF(OR(DATE($A56,Mes,1)<$E$24,DATE($A56,Mes,1)>$L$23),0,VLOOKUP(DATE($A56,Mes,1),Calculo!$H$13:$AE$1273,24,FALSE))) -> 0.00371351741 | L56: =+IF($A56="","",IF(OR(DATE($A56,Mes,1)<$E$24,DATE($A56,Mes,1)>$L$23),0,VLOOKUP(DATE($A56,Mes,1),Calculo!$H$13:$AE$1273,24,FALSE))) -> 0.003712249611 | M56: =+IF($A56="","",IF(OR(DATE($A56,Mes,1)<$E$24,DATE($A56,Mes,1)>$L$23),0,VLOOKUP(DATE($A56,Mes,1),Calculo!$H$13:$AE$1273,24,FALSE))) -> 0.003710971761
A57: =+IF(OR(A56="",A56=YEAR(Calculo!$F$19)),"",A56+1) -> 2059 | B57: =+IF($A57="","",IF(OR(DATE($A57,Mes,1)<$E$24,DATE($A57,Mes,1)>$L$23),0,VLOOKUP(DATE($A57,Mes,1),Calculo!$H$13:$AE$1273,24,FALSE))) -> 0.003709864994 | C57: =+IF($A57="","",IF(OR(DATE($A57,Mes,1)<$E$24,DATE($A57,Mes,1)>$L$23),0,VLOOKUP(DATE($A57,Mes,1),Calculo!$H$13:$AE$1273,24,FALSE))) -> 0.003708748386 | D57: =+IF($A57="","",IF(OR(DATE($A57,Mes,1)<$E$24,DATE($A57,Mes,1)>$L$23),0,VLOOKUP(DATE($A57,Mes,1),Calculo!$H$13:$AE$1273,24,FALSE))) -> 0.003707621849 | E57: =+IF($A57="","",IF(OR(DATE($A57,Mes,1)<$E$24,DATE($A57,Mes,1)>$L$23),0,VLOOKUP(DATE($A57,Mes,1),Calculo!$H$13:$AE$1273,24,FALSE))) -> 0.003706485296 | F57: =+IF($A57="","",IF(OR(DATE($A57,Mes,1)<$E$24,DATE($A57,Mes,1)>$L$23),0,VLOOKUP(DATE($A57,Mes,1),Calculo!$H$13:$AE$1273,24,FALSE))) -> 0.003705338637 | G57: =+IF($A57="","",IF(OR(DATE($A57,Mes,1)<$E$24,DATE($A57,Mes,1)>$L$23),0,VLOOKUP(DATE($A57,Mes,1),Calculo!$H$13:$AE$1273,24,FALSE))) -> 0.003704181782 | H57: =+IF($A57="","",IF(OR(DATE($A57,Mes,1)<$E$24,DATE($A57,Mes,1)>$L$23),0,VLOOKUP(DATE($A57,Mes,1),Calculo!$H$13:$AE$1273,24,FALSE))) -> 0.003703014641 | I57: =+IF($A57="","",IF(OR(DATE($A57,Mes,1)<$E$24,DATE($A57,Mes,1)>$L$23),0,VLOOKUP(DATE($A57,Mes,1),Calculo!$H$13:$AE$1273,24,FALSE))) -> 0.003701837122 | J57: =+IF($A57="","",IF(OR(DATE($A57,Mes,1)<$E$24,DATE($A57,Mes,1)>$L$23),0,VLOOKUP(DATE($A57,Mes,1),Calculo!$H$13:$AE$1273,24,FALSE))) -> 0.003700649134 | K57: =+IF($A57="","",IF(OR(DATE($A57,Mes,1)<$E$24,DATE($A57,Mes,1)>$L$23),0,VLOOKUP(DATE($A57,Mes,1),Calculo!$H$13:$AE$1273,24,FALSE))) -> 0.003699450582 | L57: =+IF($A57="","",IF(OR(DATE($A57,Mes,1)<$E$24,DATE($A57,Mes,1)>$L$23),0,VLOOKUP(DATE($A57,Mes,1),Calculo!$H$13:$AE$1273,24,FALSE))) -> 0.003698241373 | M57: =+IF($A57="","",IF(OR(DATE($A57,Mes,1)<$E$24,DATE($A57,Mes,1)>$L$23),0,VLOOKUP(DATE($A57,Mes,1),Calculo!$H$13:$AE$1273,24,FALSE))) -> 0.003697021413
A58: =+IF(OR(A57="",A57=YEAR(Calculo!$F$19)),"",A57+1) -> 2060 | B58: =+IF($A58="","",IF(OR(DATE($A58,Mes,1)<$E$24,DATE($A58,Mes,1)>$L$23),0,VLOOKUP(DATE($A58,Mes,1),Calculo!$H$13:$AE$1273,24,FALSE))) -> 0.003695981573 | C58: =+IF($A58="","",IF(OR(DATE($A58,Mes,1)<$E$24,DATE($A58,Mes,1)>$L$23),0,VLOOKUP(DATE($A58,Mes,1),Calculo!$H$13:$AE$1273,24,FALSE))) -> 0.003694931347 | D58: =+IF($A58="","",IF(OR(DATE($A58,Mes,1)<$E$24,DATE($A58,Mes,1)>$L$23),0,VLOOKUP(DATE($A58,Mes,1),Calculo!$H$13:$AE$1273,24,FALSE))) -> 0.003693870628 | E58: =+IF($A58="","",IF(OR(DATE($A58,Mes,1)<$E$24,DATE($A58,Mes,1)>$L$23),0,VLOOKUP(DATE($A58,Mes,1),Calculo!$H$13:$AE$1273,24,FALSE))) -> 0.003692799314 | F58: =+IF($A58="","",IF(OR(DATE($A58,Mes,1)<$E$24,DATE($A58,Mes,1)>$L$23),0,VLOOKUP(DATE($A58,Mes,1),Calculo!$H$13:$AE$1273,24,FALSE))) -> 0.003691717297 | G58: =+IF($A58="","",IF(OR(DATE($A58,Mes,1)<$E$24,DATE($A58,Mes,1)>$L$23),0,VLOOKUP(DATE($A58,Mes,1),Calculo!$H$13:$AE$1273,24,FALSE))) -> 0.003690624471 | H58: =+IF($A58="","",IF(OR(DATE($A58,Mes,1)<$E$24,DATE($A58,Mes,1)>$L$23),0,VLOOKUP(DATE($A58,Mes,1),Calculo!$H$13:$AE$1273,24,FALSE))) -> 0.003689520728 | I58: =+IF($A58="","",IF(OR(DATE($A58,Mes,1)<$E$24,DATE($A58,Mes,1)>$L$23),0,VLOOKUP(DATE($A58,Mes,1),Calculo!$H$13:$AE$1273,24,FALSE))) -> 0.003688405959 | J58: =+IF($A58="","",IF(OR(DATE($A58,Mes,1)<$E$24,DATE($A58,Mes,1)>$L$23),0,VLOOKUP(DATE($A58,Mes,1),Calculo!$H$13:$AE$1273,24,FALSE))) -> 0.003687280054 | K58: =+IF($A58="","",IF(OR(DATE($A58,Mes,1)<$E$24,DATE($A58,Mes,1)>$L$23),0,VLOOKUP(DATE($A58,Mes,1),Calculo!$H$13:$AE$1273,24,FALSE))) -> 0.003686142901 | L58: =+IF($A58="","",IF(OR(DATE($A58,Mes,1)<$E$24,DATE($A58,Mes,1)>$L$23),0,VLOOKUP(DATE($A58,Mes,1),Calculo!$H$13:$AE$1273,24,FALSE))) -> 0.003684994389 | M58: =+IF($A58="","",IF(OR(DATE($A58,Mes,1)<$E$24,DATE($A58,Mes,1)>$L$23),0,VLOOKUP(DATE($A58,Mes,1),Calculo!$H$13:$AE$1273,24,FALSE))) -> 0.003683834403
A59: =+IF(OR(A58="",A58=YEAR(Calculo!$F$19)),"",A58+1) -> 2061 | B59: =+IF($A59="","",IF(OR(DATE($A59,Mes,1)<$E$24,DATE($A59,Mes,1)>$L$23),0,VLOOKUP(DATE($A59,Mes,1),Calculo!$H$13:$AE$1273,24,FALSE))) -> 0.003682864901 | C59: =+IF($A59="","",IF(OR(DATE($A59,Mes,1)<$E$24,DATE($A59,Mes,1)>$L$23),0,VLOOKUP(DATE($A59,Mes,1),Calculo!$H$13:$AE$1273,24,FALSE))) -> 0.003681884494 | D59: =+IF($A59="","",IF(OR(DATE($A59,Mes,1)<$E$24,DATE($A59,Mes,1)>$L$23),0,VLOOKUP(DATE($A59,Mes,1),Calculo!$H$13:$AE$1273,24,FALSE))) -> 0.003680893061 | E59: =+IF($A59="","",IF(OR(DATE($A59,Mes,1)<$E$24,DATE($A59,Mes,1)>$L$23),0,VLOOKUP(DATE($A59,Mes,1),Calculo!$H$13:$AE$1273,24,FALSE))) -> 0.003679890477 | F59: =+IF($A59="","",IF(OR(DATE($A59,Mes,1)<$E$24,DATE($A59,Mes,1)>$L$23),0,VLOOKUP(DATE($A59,Mes,1),Calculo!$H$13:$AE$1273,24,FALSE))) -> 0.003678876617 | G59: =+IF($A59="","",IF(OR(DATE($A59,Mes,1)<$E$24,DATE($A59,Mes,1)>$L$23),0,VLOOKUP(DATE($A59,Mes,1),Calculo!$H$13:$AE$1273,24,FALSE))) -> 0.003677851354 | H59: =+IF($A59="","",IF(OR(DATE($A59,Mes,1)<$E$24,DATE($A59,Mes,1)>$L$23),0,VLOOKUP(DATE($A59,Mes,1),Calculo!$H$13:$AE$1273,24,FALSE))) -> 0.00367681456 | I59: =+IF($A59="","",IF(OR(DATE($A59,Mes,1)<$E$24,DATE($A59,Mes,1)>$L$23),0,VLOOKUP(DATE($A59,Mes,1),Calculo!$H$13:$AE$1273,24,FALSE))) -> 0.003675766105 | J59: =+IF($A59="","",IF(OR(DATE($A59,Mes,1)<$E$24,DATE($A59,Mes,1)>$L$23),0,VLOOKUP(DATE($A59,Mes,1),Calculo!$H$13:$AE$1273,24,FALSE))) -> 0.003674705858 | K59: =+IF($A59="","",IF(OR(DATE($A59,Mes,1)<$E$24,DATE($A59,Mes,1)>$L$23),0,VLOOKUP(DATE($A59,Mes,1),Calculo!$H$13:$AE$1273,24,FALSE))) -> 0.003673633686 | L59: =+IF($A59="","",IF(OR(DATE($A59,Mes,1)<$E$24,DATE($A59,Mes,1)>$L$23),0,VLOOKUP(DATE($A59,Mes,1),Calculo!$H$13:$AE$1273,24,FALSE))) -> 0.003672549456 | M59: =+IF($A59="","",IF(OR(DATE($A59,Mes,1)<$E$24,DATE($A59,Mes,1)>$L$23),0,VLOOKUP(DATE($A59,Mes,1),Calculo!$H$13:$AE$1273,24,FALSE))) -> 0.003671453031
A60: =+IF(OR(A59="",A59=YEAR(Calculo!$F$19)),"",A59+1) -> 2062 | B60: =+IF($A60="","",IF(OR(DATE($A60,Mes,1)<$E$24,DATE($A60,Mes,1)>$L$23),0,VLOOKUP(DATE($A60,Mes,1),Calculo!$H$13:$AE$1273,24,FALSE))) -> 0.003670559239 | C60: =+IF($A60="","",IF(OR(DATE($A60,Mes,1)<$E$24,DATE($A60,Mes,1)>$L$23),0,VLOOKUP(DATE($A60,Mes,1),Calculo!$H$13:$AE$1273,24,FALSE))) -> 0.003669654098 | D60: =+IF($A60="","",IF(OR(DATE($A60,Mes,1)<$E$24,DATE($A60,Mes,1)>$L$23),0,VLOOKUP(DATE($A60,Mes,1),Calculo!$H$13:$AE$1273,24,FALSE))) -> 0.003668737466 | E60: =+IF($A60="","",IF(OR(DATE($A60,Mes,1)<$E$24,DATE($A60,Mes,1)>$L$23),0,VLOOKUP(DATE($A60,Mes,1),Calculo!$H$13:$AE$1273,24,FALSE))) -> 0.003667809196 | F60: =+IF($A60="","",IF(OR(DATE($A60,Mes,1)<$E$24,DATE($A60,Mes,1)>$L$23),0,VLOOKUP(DATE($A60,Mes,1),Calculo!$H$13:$AE$1273,24,FALSE))) -> 0.00366686914 | G60: =+IF($A60="","",IF(OR(DATE($A60,Mes,1)<$E$24,DATE($A60,Mes,1)>$L$23),0,VLOOKUP(DATE($A60,Mes,1),Calculo!$H$13:$AE$1273,24,FALSE))) -> 0.00366591715 | H60: =+IF($A60="","",IF(OR(DATE($A60,Mes,1)<$E$24,DATE($A60,Mes,1)>$L$23),0,VLOOKUP(DATE($A60,Mes,1),Calculo!$H$13:$AE$1273,24,FALSE))) -> 0.003664953072 | I60: =+IF($A60="","",IF(OR(DATE($A60,Mes,1)<$E$24,DATE($A60,Mes,1)>$L$23),0,VLOOKUP(DATE($A60,Mes,1),Calculo!$H$13:$AE$1273,24,FALSE))) -> 0.003663976755 | J60: =+IF($A60="","",IF(OR(DATE($A60,Mes,1)<$E$24,DATE($A60,Mes,1)>$L$23),0,VLOOKUP(DATE($A60,Mes,1),Calculo!$H$13:$AE$1273,24,FALSE))) -> 0.003662988041 | K60: =+IF($A60="","",IF(OR(DATE($A60,Mes,1)<$E$24,DATE($A60,Mes,1)>$L$23),0,VLOOKUP(DATE($A60,Mes,1),Calculo!$H$13:$AE$1273,24,FALSE))) -> 0.003661986775 | L60: =+IF($A60="","",IF(OR(DATE($A60,Mes,1)<$E$24,DATE($A60,Mes,1)>$L$23),0,VLOOKUP(DATE($A60,Mes,1),Calculo!$H$13:$AE$1273,24,FALSE))) -> 0.003660972797 | M60: =+IF($A60="","",IF(OR(DATE($A60,Mes,1)<$E$24,DATE($A60,Mes,1)>$L$23),0,VLOOKUP(DATE($A60,Mes,1),Calculo!$H$13:$AE$1273,24,FALSE))) -> 0.003659945944
A61: =+IF(OR(A60="",A60=YEAR(Calculo!$F$19)),"",A60+1) -> 2063 | B61: =+IF($A61="","",IF(OR(DATE($A61,Mes,1)<$E$24,DATE($A61,Mes,1)>$L$23),0,VLOOKUP(DATE($A61,Mes,1),Calculo!$H$13:$AE$1273,24,FALSE))) -> 0.003659107602 | C61: =+IF($A61="","",IF(OR(DATE($A61,Mes,1)<$E$24,DATE($A61,Mes,1)>$L$23),0,VLOOKUP(DATE($A61,Mes,1),Calculo!$H$13:$AE$1273,24,FALSE))) -> 0.003658257381 | D61: =+IF($A61="","",IF(OR(DATE($A61,Mes,1)<$E$24,DATE($A61,Mes,1)>$L$23),0,VLOOKUP(DATE($A61,Mes,1),Calculo!$H$13:$AE$1273,24,FALSE))) -> 0.003657395113 | E61: =+IF($A61="","",IF(OR(DATE($A61,Mes,1)<$E$24,DATE($A61,Mes,1)>$L$23),0,VLOOKUP(DATE($A61,Mes,1),Calculo!$H$13:$AE$1273,24,FALSE))) -> 0.003656520628 | F61: =+IF($A61="","",IF(OR(DATE($A61,Mes,1)<$E$24,DATE($A61,Mes,1)>$L$23),0,VLOOKUP(DATE($A61,Mes,1),Calculo!$H$13:$AE$1273,24,FALSE))) -> 0.003655633751 | G61: =+IF($A61="","",IF(OR(DATE($A61,Mes,1)<$E$24,DATE($A61,Mes,1)>$L$23),0,VLOOKUP(DATE($A61,Mes,1),Calculo!$H$13:$AE$1273,24,FALSE))) -> 0.003654734308 | H61: =+IF($A61="","",IF(OR(DATE($A61,Mes,1)<$E$24,DATE($A61,Mes,1)>$L$23),0,VLOOKUP(DATE($A61,Mes,1),Calculo!$H$13:$AE$1273,24,FALSE))) -> 0.003653822121 | I61: =+IF($A61="","",IF(OR(DATE($A61,Mes,1)<$E$24,DATE($A61,Mes,1)>$L$23),0,VLOOKUP(DATE($A61,Mes,1),Calculo!$H$13:$AE$1273,24,FALSE))) -> 0.003652897008 | J61: =+IF($A61="","",IF(OR(DATE($A61,Mes,1)<$E$24,DATE($A61,Mes,1)>$L$23),0,VLOOKUP(DATE($A61,Mes,1),Calculo!$H$13:$AE$1273,24,FALSE))) -> 0.003651958788 | K61: =+IF($A61="","",IF(OR(DATE($A61,Mes,1)<$E$24,DATE($A61,Mes,1)>$L$23),0,VLOOKUP(DATE($A61,Mes,1),Calculo!$H$13:$AE$1273,24,FALSE))) -> 0.003651007273 | L61: =+IF($A61="","",IF(OR(DATE($A61,Mes,1)<$E$24,DATE($A61,Mes,1)>$L$23),0,VLOOKUP(DATE($A61,Mes,1),Calculo!$H$13:$AE$1273,24,FALSE))) -> 0.003650042277 | M61: =+IF($A61="","",IF(OR(DATE($A61,Mes,1)<$E$24,DATE($A61,Mes,1)>$L$23),0,VLOOKUP(DATE($A61,Mes,1),Calculo!$H$13:$AE$1273,24,FALSE))) -> 0.003649063607
A62: =+IF(OR(A61="",A61=YEAR(Calculo!$F$19)),"",A61+1) -> 2064 | B62: =+IF($A62="","",IF(OR(DATE($A62,Mes,1)<$E$24,DATE($A62,Mes,1)>$L$23),0,VLOOKUP(DATE($A62,Mes,1),Calculo!$H$13:$AE$1273,24,FALSE))) -> 0.003648284293 | C62: =+IF($A62="","",IF(OR(DATE($A62,Mes,1)<$E$24,DATE($A62,Mes,1)>$L$23),0,VLOOKUP(DATE($A62,Mes,1),Calculo!$H$13:$AE$1273,24,FALSE))) -> 0.003647492617 | D62: =+IF($A62="","",IF(OR(DATE($A62,Mes,1)<$E$24,DATE($A62,Mes,1)>$L$23),0,VLOOKUP(DATE($A62,Mes,1),Calculo!$H$13:$AE$1273,24,FALSE))) -> 0.003646688384 | E62: =+IF($A62="","",IF(OR(DATE($A62,Mes,1)<$E$24,DATE($A62,Mes,1)>$L$23),0,VLOOKUP(DATE($A62,Mes,1),Calculo!$H$13:$AE$1273,24,FALSE))) -> 0.003645871394 | F62: =+IF($A62="","",IF(OR(DATE($A62,Mes,1)<$E$24,DATE($A62,Mes,1)>$L$23),0,VLOOKUP(DATE($A62,Mes,1),Calculo!$H$13:$AE$1273,24,FALSE))) -> 0.003645041444 | G62: =+IF($A62="","",IF(OR(DATE($A62,Mes,1)<$E$24,DATE($A62,Mes,1)>$L$23),0,VLOOKUP(DATE($A62,Mes,1),Calculo!$H$13:$AE$1273,24,FALSE))) -> 0.003644198329 | H62: =+IF($A62="","",IF(OR(DATE($A62,Mes,1)<$E$24,DATE($A62,Mes,1)>$L$23),0,VLOOKUP(DATE($A62,Mes,1),Calculo!$H$13:$AE$1273,24,FALSE))) -> 0.003643341841 | I62: =+IF($A62="","",IF(OR(DATE($A62,Mes,1)<$E$24,DATE($A62,Mes,1)>$L$23),0,VLOOKUP(DATE($A62,Mes,1),Calculo!$H$13:$AE$1273,24,FALSE))) -> 0.003642471767 | J62: =+IF($A62="","",IF(OR(DATE($A62,Mes,1)<$E$24,DATE($A62,Mes,1)>$L$23),0,VLOOKUP(DATE($A62,Mes,1),Calculo!$H$13:$AE$1273,24,FALSE))) -> 0.003641587892 | K62: =+IF($A62="","",IF(OR(DATE($A62,Mes,1)<$E$24,DATE($A62,Mes,1)>$L$23),0,VLOOKUP(DATE($A62,Mes,1),Calculo!$H$13:$AE$1273,24,FALSE))) -> 0.003640689996 | L62: =+IF($A62="","",IF(OR(DATE($A62,Mes,1)<$E$24,DATE($A62,Mes,1)>$L$23),0,VLOOKUP(DATE($A62,Mes,1),Calculo!$H$13:$AE$1273,24,FALSE))) -> 0.003639777858 | M62: =+IF($A62="","",IF(OR(DATE($A62,Mes,1)<$E$24,DATE($A62,Mes,1)>$L$23),0,VLOOKUP(DATE($A62,Mes,1),Calculo!$H$13:$AE$1273,24,FALSE))) -> 0.003638851251
A63: =+IF(OR(A62="",A62=YEAR(Calculo!$F$19)),"",A62+1) -> 2065 | B63: =+IF($A63="","",IF(OR(DATE($A63,Mes,1)<$E$24,DATE($A63,Mes,1)>$L$23),0,VLOOKUP(DATE($A63,Mes,1),Calculo!$H$13:$AE$1273,24,FALSE))) -> 0.003638113559 | C63: =+IF($A63="","",IF(OR(DATE($A63,Mes,1)<$E$24,DATE($A63,Mes,1)>$L$23),0,VLOOKUP(DATE($A63,Mes,1),Calculo!$H$13:$AE$1273,24,FALSE))) -> 0.003637362867 | D63: =+IF($A63="","",IF(OR(DATE($A63,Mes,1)<$E$24,DATE($A63,Mes,1)>$L$23),0,VLOOKUP(DATE($A63,Mes,1),Calculo!$H$13:$AE$1273,24,FALSE))) -> 0.003636598948 | E63: =+IF($A63="","",IF(OR(DATE($A63,Mes,1)<$E$24,DATE($A63,Mes,1)>$L$23),0,VLOOKUP(DATE($A63,Mes,1),Calculo!$H$13:$AE$1273,24,FALSE))) -> 0.003635821567 | F63: =+IF($A63="","",IF(OR(DATE($A63,Mes,1)<$E$24,DATE($A63,Mes,1)>$L$23),0,VLOOKUP(DATE($A63,Mes,1),Calculo!$H$13:$AE$1273,24,FALSE))) -> 0.003635030487 | G63: =+IF($A63="","",IF(OR(DATE($A63,Mes,1)<$E$24,DATE($A63,Mes,1)>$L$23),0,VLOOKUP(DATE($A63,Mes,1),Calculo!$H$13:$AE$1273,24,FALSE))) -> 0.003634225467 | H63: =+IF($A63="","",IF(OR(DATE($A63,Mes,1)<$E$24,DATE($A63,Mes,1)>$L$23),0,VLOOKUP(DATE($A63,Mes,1),Calculo!$H$13:$AE$1273,24,FALSE))) -> 0.003633406261 | I63: =+IF($A63="","",IF(OR(DATE($A63,Mes,1)<$E$24,DATE($A63,Mes,1)>$L$23),0,VLOOKUP(DATE($A63,Mes,1),Calculo!$H$13:$AE$1273,24,FALSE))) -> 0.00363257262 | J63: =+IF($A63="","",IF(OR(DATE($A63,Mes,1)<$E$24,DATE($A63,Mes,1)>$L$23),0,VLOOKUP(DATE($A63,Mes,1),Calculo!$H$13:$AE$1273,24,FALSE))) -> 0.003631724288 | K63: =+IF($A63="","",IF(OR(DATE($A63,Mes,1)<$E$24,DATE($A63,Mes,1)>$L$23),0,VLOOKUP(DATE($A63,Mes,1),Calculo!$H$13:$AE$1273,24,FALSE))) -> 0.003630861007 | L63: =+IF($A63="","",IF(OR(DATE($A63,Mes,1)<$E$24,DATE($A63,Mes,1)>$L$23),0,VLOOKUP(DATE($A63,Mes,1),Calculo!$H$13:$AE$1273,24,FALSE))) -> 0.003629982514 | M63: =+IF($A63="","",IF(OR(DATE($A63,Mes,1)<$E$24,DATE($A63,Mes,1)>$L$23),0,VLOOKUP(DATE($A63,Mes,1),Calculo!$H$13:$AE$1273,24,FALSE))) -> 0.003629088541
A64: =+IF(OR(A63="",A63=YEAR(Calculo!$F$19)),"",A63+1) -> 2066 | B64: =+IF($A64="","",IF(OR(DATE($A64,Mes,1)<$E$24,DATE($A64,Mes,1)>$L$23),0,VLOOKUP(DATE($A64,Mes,1),Calculo!$H$13:$AE$1273,24,FALSE))) -> 0.00362839236 | C64: =+IF($A64="","",IF(OR(DATE($A64,Mes,1)<$E$24,DATE($A64,Mes,1)>$L$23),0,VLOOKUP(DATE($A64,Mes,1),Calculo!$H$13:$AE$1273,24,FALSE))) -> 0.003627682508 | D64: =+IF($A64="","",IF(OR(DATE($A64,Mes,1)<$E$24,DATE($A64,Mes,1)>$L$23),0,VLOOKUP(DATE($A64,Mes,1),Calculo!$H$13:$AE$1273,24,FALSE))) -> 0.003626958718 | E64: =+IF($A64="","",IF(OR(DATE($A64,Mes,1)<$E$24,DATE($A64,Mes,1)>$L$23),0,VLOOKUP(DATE($A64,Mes,1),Calculo!$H$13:$AE$1273,24,FALSE))) -> 0.003626220714 | F64: =+IF($A64="","",IF(OR(DATE($A64,Mes,1)<$E$24,DATE($A64,Mes,1)>$L$23),0,VLOOKUP(DATE($A64,Mes,1),Calculo!$H$13:$AE$1273,24,FALSE))) -> 0.003625468218 | G64: =+IF($A64="","",IF(OR(DATE($A64,Mes,1)<$E$24,DATE($A64,Mes,1)>$L$23),0,VLOOKUP(DATE($A64,Mes,1),Calculo!$H$13:$AE$1273,24,FALSE))) -> 0.003624700945 | H64: =+IF($A64="","",IF(OR(DATE($A64,Mes,1)<$E$24,DATE($A64,Mes,1)>$L$23),0,VLOOKUP(DATE($A64,Mes,1),Calculo!$H$13:$AE$1273,24,FALSE))) -> 0.003623918606 | I64: =+IF($A64="","",IF(OR(DATE($A64,Mes,1)<$E$24,DATE($A64,Mes,1)>$L$23),0,VLOOKUP(DATE($A64,Mes,1),Calculo!$H$13:$AE$1273,24,FALSE))) -> 0.003623120904 | J64: =+IF($A64="","",IF(OR(DATE($A64,Mes,1)<$E$24,DATE($A64,Mes,1)>$L$23),0,VLOOKUP(DATE($A64,Mes,1),Calculo!$H$13:$AE$1273,24,FALSE))) -> 0.003622307538 | K64: =+IF($A64="","",IF(OR(DATE($A64,Mes,1)<$E$24,DATE($A64,Mes,1)>$L$23),0,VLOOKUP(DATE($A64,Mes,1),Calculo!$H$13:$AE$1273,24,FALSE))) -> 0.0036214782 | L64: =+IF($A64="","",IF(OR(DATE($A64,Mes,1)<$E$24,DATE($A64,Mes,1)>$L$23),0,VLOOKUP(DATE($A64,Mes,1),Calculo!$H$13:$AE$1273,24,FALSE))) -> 0.003620632576 | M64: =+IF($A64="","",IF(OR(DATE($A64,Mes,1)<$E$24,DATE($A64,Mes,1)>$L$23),0,VLOOKUP(DATE($A64,Mes,1),Calculo!$H$13:$AE$1273,24,FALSE))) -> 0.003619770347
A65: =+IF(OR(A64="",A64=YEAR(Calculo!$F$19)),"",A64+1) -> 2067 | B65: =+IF($A65="","",IF(OR(DATE($A65,Mes,1)<$E$24,DATE($A65,Mes,1)>$L$23),0,VLOOKUP(DATE($A65,Mes,1),Calculo!$H$13:$AE$1273,24,FALSE))) -> 0.003619115754 | C65: =+IF($A65="","",IF(OR(DATE($A65,Mes,1)<$E$24,DATE($A65,Mes,1)>$L$23),0,VLOOKUP(DATE($A65,Mes,1),Calculo!$H$13:$AE$1273,24,FALSE))) -> 0.003618446787 | D65: =+IF($A65="","",IF(OR(DATE($A65,Mes,1)<$E$24,DATE($A65,Mes,1)>$L$23),0,VLOOKUP(DATE($A65,Mes,1),Calculo!$H$13:$AE$1273,24,FALSE))) -> 0.003617763129 | E65: =+IF($A65="","",IF(OR(DATE($A65,Mes,1)<$E$24,DATE($A65,Mes,1)>$L$23),0,VLOOKUP(DATE($A65,Mes,1),Calculo!$H$13:$AE$1273,24,FALSE))) -> 0.003617064457 | F65: =+IF($A65="","",IF(OR(DATE($A65,Mes,1)<$E$24,DATE($A65,Mes,1)>$L$23),0,VLOOKUP(DATE($A65,Mes,1),Calculo!$H$13:$AE$1273,24,FALSE))) -> 0.003616350443 | G65: =+IF($A65="","",IF(OR(DATE($A65,Mes,1)<$E$24,DATE($A65,Mes,1)>$L$23),0,VLOOKUP(DATE($A65,Mes,1),Calculo!$H$13:$AE$1273,24,FALSE))) -> 0.003615620748 | H65: =+IF($A65="","",IF(OR(DATE($A65,Mes,1)<$E$24,DATE($A65,Mes,1)>$L$23),0,VLOOKUP(DATE($A65,Mes,1),Calculo!$H$13:$AE$1273,24,FALSE))) -> 0.00361487503 | I65: =+IF($A65="","",IF(OR(DATE($A65,Mes,1)<$E$24,DATE($A65,Mes,1)>$L$23),0,VLOOKUP(DATE($A65,Mes,1),Calculo!$H$13:$AE$1273,24,FALSE))) -> 0.003614112935 | J65: =+IF($A65="","",IF(OR(DATE($A65,Mes,1)<$E$24,DATE($A65,Mes,1)>$L$23),0,VLOOKUP(DATE($A65,Mes,1),Calculo!$H$13:$AE$1273,24,FALSE))) -> 0.003613334104 | K65: =+IF($A65="","",IF(OR(DATE($A65,Mes,1)<$E$24,DATE($A65,Mes,1)>$L$23),0,VLOOKUP(DATE($A65,Mes,1),Calculo!$H$13:$AE$1273,24,FALSE))) -> 0.003612538169 | L65: =+IF($A65="","",IF(OR(DATE($A65,Mes,1)<$E$24,DATE($A65,Mes,1)>$L$23),0,VLOOKUP(DATE($A65,Mes,1),Calculo!$H$13:$AE$1273,24,FALSE))) -> 0.003611724756 | M65: =+IF($A65="","",IF(OR(DATE($A65,Mes,1)<$E$24,DATE($A65,Mes,1)>$L$23),0,VLOOKUP(DATE($A65,Mes,1),Calculo!$H$13:$AE$1273,24,FALSE))) -> 0.00361089348
A66: =+IF(OR(A65="",A65=YEAR(Calculo!$F$19)),"",A65+1) -> 2068 | B66: =+IF($A66="","",IF(OR(DATE($A66,Mes,1)<$E$24,DATE($A66,Mes,1)>$L$23),0,VLOOKUP(DATE($A66,Mes,1),Calculo!$H$13:$AE$1273,24,FALSE))) -> 0.003610280857 | C66: =+IF($A66="","",IF(OR(DATE($A66,Mes,1)<$E$24,DATE($A66,Mes,1)>$L$23),0,VLOOKUP(DATE($A66,Mes,1),Calculo!$H$13:$AE$1273,24,FALSE))) -> 0.003609653126 | D66: =+IF($A66="","",IF(OR(DATE($A66,Mes,1)<$E$24,DATE($A66,Mes,1)>$L$23),0,VLOOKUP(DATE($A66,Mes,1),Calculo!$H$13:$AE$1273,24,FALSE))) -> 0.003609009917 | E66: =+IF($A66="","",IF(OR(DATE($A66,Mes,1)<$E$24,DATE($A66,Mes,1)>$L$23),0,VLOOKUP(DATE($A66,Mes,1),Calculo!$H$13:$AE$1273,24,FALSE))) -> 0.003608350846 | F66: =+IF($A66="","",IF(OR(DATE($A66,Mes,1)<$E$24,DATE($A66,Mes,1)>$L$23),0,VLOOKUP(DATE($A66,Mes,1),Calculo!$H$13:$AE$1273,24,FALSE))) -> 0.003607675523 | G66: =+IF($A66="","",IF(OR(DATE($A66,Mes,1)<$E$24,DATE($A66,Mes,1)>$L$23),0,VLOOKUP(DATE($A66,Mes,1),Calculo!$H$13:$AE$1273,24,FALSE))) -> 0.003606983547 | H66: =+IF($A66="","",IF(OR(DATE($A66,Mes,1)<$E$24,DATE($A66,Mes,1)>$L$23),0,VLOOKUP(DATE($A66,Mes,1),Calculo!$H$13:$AE$1273,24,FALSE))) -> 0.003606274507 | I66: =+IF($A66="","",IF(OR(DATE($A66,Mes,1)<$E$24,DATE($A66,Mes,1)>$L$23),0,VLOOKUP(DATE($A66,Mes,1),Calculo!$H$13:$AE$1273,24,FALSE))) -> 0.003605547982 | J66: =+IF($A66="","",IF(OR(DATE($A66,Mes,1)<$E$24,DATE($A66,Mes,1)>$L$23),0,VLOOKUP(DATE($A66,Mes,1),Calculo!$H$13:$AE$1273,24,FALSE))) -> 0.003604803542 | K66: =+IF($A66="","",IF(OR(DATE($A66,Mes,1)<$E$24,DATE($A66,Mes,1)>$L$23),0,VLOOKUP(DATE($A66,Mes,1),Calculo!$H$13:$AE$1273,24,FALSE))) -> 0.003604040745 | L66: =+IF($A66="","",IF(OR(DATE($A66,Mes,1)<$E$24,DATE($A66,Mes,1)>$L$23),0,VLOOKUP(DATE($A66,Mes,1),Calculo!$H$13:$AE$1273,24,FALSE))) -> 0.003603259137 | M66: =+IF($A66="","",IF(OR(DATE($A66,Mes,1)<$E$24,DATE($A66,Mes,1)>$L$23),0,VLOOKUP(DATE($A66,Mes,1),Calculo!$H$13:$AE$1273,24,FALSE))) -> 0.003602458255
A67: =+IF(OR(A66="",A66=YEAR(Calculo!$F$19)),"",A66+1) -> 2069 | B67: =+IF($A67="","",IF(OR(DATE($A67,Mes,1)<$E$24,DATE($A67,Mes,1)>$L$23),0,VLOOKUP(DATE($A67,Mes,1),Calculo!$H$13:$AE$1273,24,FALSE))) -> 0.003601888508 | C67: =+IF($A67="","",IF(OR(DATE($A67,Mes,1)<$E$24,DATE($A67,Mes,1)>$L$23),0,VLOOKUP(DATE($A67,Mes,1),Calculo!$H$13:$AE$1273,24,FALSE))) -> 0.003601302909 | D67: =+IF($A67="","",IF(OR(DATE($A67,Mes,1)<$E$24,DATE($A67,Mes,1)>$L$23),0,VLOOKUP(DATE($A67,Mes,1),Calculo!$H$13:$AE$1273,24,FALSE))) -> 0.003600701017 | E67: =+IF($A67="","",IF(OR(DATE($A67,Mes,1)<$E$24,DATE($A67,Mes,1)>$L$23),0,VLOOKUP(DATE($A67,Mes,1),Calculo!$H$13:$AE$1273,24,FALSE))) -> 0.00360008238 | F67: =+IF($A67="","",IF(OR(DATE($A67,Mes,1)<$E$24,DATE($A67,Mes,1)>$L$23),0,VLOOKUP(DATE($A67,Mes,1),Calculo!$H$13:$AE$1273,24,FALSE))) -> 0.003599446532 | G67: =+IF($A67="","",IF(OR(DATE($A67,Mes,1)<$E$24,DATE($A67,Mes,1)>$L$23),0,VLOOKUP(DATE($A67,Mes,1),Calculo!$H$13:$AE$1273,24,FALSE))) -> 0.003598792993 | H67: =+IF($A67="","",IF(OR(DATE($A67,Mes,1)<$E$24,DATE($A67,Mes,1)>$L$23),0,VLOOKUP(DATE($A67,Mes,1),Calculo!$H$13:$AE$1273,24,FALSE))) -> 0.003598121272 | I67: =+IF($A67="","",IF(OR(DATE($A67,Mes,1)<$E$24,DATE($A67,Mes,1)>$L$23),0,VLOOKUP(DATE($A67,Mes,1),Calculo!$H$13:$AE$1273,24,FALSE))) -> 0.003597430863 | J67: =+IF($A67="","",IF(OR(DATE($A67,Mes,1)<$E$24,DATE($A67,Mes,1)>$L$23),0,VLOOKUP(DATE($A67,Mes,1),Calculo!$H$13:$AE$1273,24,FALSE))) -> 0.003596721245 | K67: =+IF($A67="","",IF(OR(DATE($A67,Mes,1)<$E$24,DATE($A67,Mes,1)>$L$23),0,VLOOKUP(DATE($A67,Mes,1),Calculo!$H$13:$AE$1273,24,FALSE))) -> 0.003595991884 | L67: =+IF($A67="","",IF(OR(DATE($A67,Mes,1)<$E$24,DATE($A67,Mes,1)>$L$23),0,VLOOKUP(DATE($A67,Mes,1),Calculo!$H$13:$AE$1273,24,FALSE))) -> 0.003595242232 | M67: =+IF($A67="","",IF(OR(DATE($A67,Mes,1)<$E$24,DATE($A67,Mes,1)>$L$23),0,VLOOKUP(DATE($A67,Mes,1),Calculo!$H$13:$AE$1273,24,FALSE))) -> 0.003594471723
A68: =+IF(OR(A67="",A67=YEAR(Calculo!$F$19)),"",A67+1) -> 2070 | B68: =+IF($A68="","",IF(OR(DATE($A68,Mes,1)<$E$24,DATE($A68,Mes,1)>$L$23),0,VLOOKUP(DATE($A68,Mes,1),Calculo!$H$13:$AE$1273,24,FALSE))) -> 0.00359394674 | C68: =+IF($A68="","",IF(OR(DATE($A68,Mes,1)<$E$24,DATE($A68,Mes,1)>$L$23),0,VLOOKUP(DATE($A68,Mes,1),Calculo!$H$13:$AE$1273,24,FALSE))) -> 0.003593405188 | D68: =+IF($A68="","",IF(OR(DATE($A68,Mes,1)<$E$24,DATE($A68,Mes,1)>$L$23),0,VLOOKUP(DATE($A68,Mes,1),Calculo!$H$13:$AE$1273,24,FALSE))) -> 0.003592846543 | E68: =+IF($A68="","",IF(OR(DATE($A68,Mes,1)<$E$24,DATE($A68,Mes,1)>$L$23),0,VLOOKUP(DATE($A68,Mes,1),Calculo!$H$13:$AE$1273,24,FALSE))) -> 0.003592270265 | F68: =+IF($A68="","",IF(OR(DATE($A68,Mes,1)<$E$24,DATE($A68,Mes,1)>$L$23),0,VLOOKUP(DATE($A68,Mes,1),Calculo!$H$13:$AE$1273,24,FALSE))) -> 0.003591675798 | G68: =+IF($A68="","",IF(OR(DATE($A68,Mes,1)<$E$24,DATE($A68,Mes,1)>$L$23),0,VLOOKUP(DATE($A68,Mes,1),Calculo!$H$13:$AE$1273,24,FALSE))) -> 0.003591062568 | H68: =+IF($A68="","",IF(OR(DATE($A68,Mes,1)<$E$24,DATE($A68,Mes,1)>$L$23),0,VLOOKUP(DATE($A68,Mes,1),Calculo!$H$13:$AE$1273,24,FALSE))) -> 0.003590429982 | I68: =+IF($A68="","",IF(OR(DATE($A68,Mes,1)<$E$24,DATE($A68,Mes,1)>$L$23),0,VLOOKUP(DATE($A68,Mes,1),Calculo!$H$13:$AE$1273,24,FALSE))) -> 0.00358977743 | J68: =+IF($A68="","",IF(OR(DATE($A68,Mes,1)<$E$24,DATE($A68,Mes,1)>$L$23),0,VLOOKUP(DATE($A68,Mes,1),Calculo!$H$13:$AE$1273,24,FALSE))) -> 0.003589104281 | K68: =+IF($A68="","",IF(OR(DATE($A68,Mes,1)<$E$24,DATE($A68,Mes,1)>$L$23),0,VLOOKUP(DATE($A68,Mes,1),Calculo!$H$13:$AE$1273,24,FALSE))) -> 0.003588409886 | L68: =+IF($A68="","",IF(OR(DATE($A68,Mes,1)<$E$24,DATE($A68,Mes,1)>$L$23),0,VLOOKUP(DATE($A68,Mes,1),Calculo!$H$13:$AE$1273,24,FALSE))) -> 0.003587693573 | M68: =+IF($A68="","",IF(OR(DATE($A68,Mes,1)<$E$24,DATE($A68,Mes,1)>$L$23),0,VLOOKUP(DATE($A68,Mes,1),Calculo!$H$13:$AE$1273,24,FALSE))) -> 0.003586954651
A69: =+IF(OR(A68="",A68=YEAR(Calculo!$F$19)),"",A68+1) -> 2071 | B69: =+IF($A69="","",IF(OR(DATE($A69,Mes,1)<$E$24,DATE($A69,Mes,1)>$L$23),0,VLOOKUP(DATE($A69,Mes,1),Calculo!$H$13:$AE$1273,24,FALSE))) -> 0.003586478301 | C69: =+IF($A69="","",IF(OR(DATE($A69,Mes,1)<$E$24,DATE($A69,Mes,1)>$L$23),0,VLOOKUP(DATE($A69,Mes,1),Calculo!$H$13:$AE$1273,24,FALSE))) -> 0.003585984781 | D69: =+IF($A69="","",IF(OR(DATE($A69,Mes,1)<$E$24,DATE($A69,Mes,1)>$L$23),0,VLOOKUP(DATE($A69,Mes,1),Calculo!$H$13:$AE$1273,24,FALSE))) -> 0.003585473475 | E69: =+IF($A69="","",IF(OR(DATE($A69,Mes,1)<$E$24,DATE($A69,Mes,1)>$L$23),0,VLOOKUP(DATE($A69,Mes,1),Calculo!$H$13:$AE$1273,24,FALSE))) -> 0.00358494374 | F69: =+IF($A69="","",IF(OR(DATE($A69,Mes,1)<$E$24,DATE($A69,Mes,1)>$L$23),0,VLOOKUP(DATE($A69,Mes,1),Calculo!$H$13:$AE$1273,24,FALSE))) -> 0.003584394912 | G69: =+IF($A69="","",IF(OR(DATE($A69,Mes,1)<$E$24,DATE($A69,Mes,1)>$L$23),0,VLOOKUP(DATE($A69,Mes,1),Calculo!$H$13:$AE$1273,24,FALSE))) -> 0.003583826303 | H69: =+IF($A69="","",IF(OR(DATE($A69,Mes,1)<$E$24,DATE($A69,Mes,1)>$L$23),0,VLOOKUP(DATE($A69,Mes,1),Calculo!$H$13:$AE$1273,24,FALSE))) -> 0.003583237201 | I69: =+IF($A69="","",IF(OR(DATE($A69,Mes,1)<$E$24,DATE($A69,Mes,1)>$L$23),0,VLOOKUP(DATE($A69,Mes,1),Calculo!$H$13:$AE$1273,24,FALSE))) -> 0.003582626867 | J69: =+IF($A69="","",IF(OR(DATE($A69,Mes,1)<$E$24,DATE($A69,Mes,1)>$L$23),0,VLOOKUP(DATE($A69,Mes,1),Calculo!$H$13:$AE$1273,24,FALSE))) -> 0.003581994535 | K69: =+IF($A69="","",IF(OR(DATE($A69,Mes,1)<$E$24,DATE($A69,Mes,1)>$L$23),0,VLOOKUP(DATE($A69,Mes,1),Calculo!$H$13:$AE$1273,24,FALSE))) -> 0.003581339413 | L69: =+IF($A69="","",IF(OR(DATE($A69,Mes,1)<$E$24,DATE($A69,Mes,1)>$L$23),0,VLOOKUP(DATE($A69,Mes,1),Calculo!$H$13:$AE$1273,24,FALSE))) -> 0.003580660678 | M69: =+IF($A69="","",IF(OR(DATE($A69,Mes,1)<$E$24,DATE($A69,Mes,1)>$L$23),0,VLOOKUP(DATE($A69,Mes,1),Calculo!$H$13:$AE$1273,24,FALSE))) -> 0.003579957482
A70: =+IF(OR(A69="",A69=YEAR(Calculo!$F$19)),"",A69+1) -> 2072 | B70: =+IF($A70="","",IF(OR(DATE($A70,Mes,1)<$E$24,DATE($A70,Mes,1)>$L$23),0,VLOOKUP(DATE($A70,Mes,1),Calculo!$H$13:$AE$1273,24,FALSE))) -> 0.003579537915 | C70: =+IF($A70="","",IF(OR(DATE($A70,Mes,1)<$E$24,DATE($A70,Mes,1)>$L$23),0,VLOOKUP(DATE($A70,Mes,1),Calculo!$H$13:$AE$1273,24,FALSE))) -> 0.003579100946 | D70: =+IF($A70="","",IF(OR(DATE($A70,Mes,1)<$E$24,DATE($A70,Mes,1)>$L$23),0,VLOOKUP(DATE($A70,Mes,1),Calculo!$H$13:$AE$1273,24,FALSE))) -> 0.003578645853 | E70: =+IF($A70="","",IF(OR(DATE($A70,Mes,1)<$E$24,DATE($A70,Mes,1)>$L$23),0,VLOOKUP(DATE($A70,Mes,1),Calculo!$H$13:$AE$1273,24,FALSE))) -> 0.003578171883 | F70: =+IF($A70="","",IF(OR(DATE($A70,Mes,1)<$E$24,DATE($A70,Mes,1)>$L$23),0,VLOOKUP(DATE($A70,Mes,1),Calculo!$H$13:$AE$1273,24,FALSE))) -> 0.003577678254 | G70: =+IF($A70="","",IF(OR(DATE($A70,Mes,1)<$E$24,DATE($A70,Mes,1)>$L$23),0,VLOOKUP(DATE($A70,Mes,1),Calculo!$H$13:$AE$1273,24,FALSE))) -> 0.00357716415 | H70: =+IF($A70="","",IF(OR(DATE($A70,Mes,1)<$E$24,DATE($A70,Mes,1)>$L$23),0,VLOOKUP(DATE($A70,Mes,1),Calculo!$H$13:$AE$1273,24,FALSE))) -> 0.003576628722 | I70: =+IF($A70="","",IF(OR(DATE($A70,Mes,1)<$E$24,DATE($A70,Mes,1)>$L$23),0,VLOOKUP(DATE($A70,Mes,1),Calculo!$H$13:$AE$1273,24,FALSE))) -> 0.003576071086 | J70: =+IF($A70="","",IF(OR(DATE($A70,Mes,1)<$E$24,DATE($A70,Mes,1)>$L$23),0,VLOOKUP(DATE($A70,Mes,1),Calculo!$H$13:$AE$1273,24,FALSE))) -> 0.00357549032 | K70: =+IF($A70="","",IF(OR(DATE($A70,Mes,1)<$E$24,DATE($A70,Mes,1)>$L$23),0,VLOOKUP(DATE($A70,Mes,1),Calculo!$H$13:$AE$1273,24,FALSE))) -> 0.003574885466 | L70: =+IF($A70="","",IF(OR(DATE($A70,Mes,1)<$E$24,DATE($A70,Mes,1)>$L$23),0,VLOOKUP(DATE($A70,Mes,1),Calculo!$H$13:$AE$1273,24,FALSE))) -> 0.003574255523 | M70: =+IF($A70="","",IF(OR(DATE($A70,Mes,1)<$E$24,DATE($A70,Mes,1)>$L$23),0,VLOOKUP(DATE($A70,Mes,1),Calculo!$H$13:$AE$1273,24,FALSE))) -> 0.003573599451
A71: =+IF(OR(A70="",A70=YEAR(Calculo!$F$19)),"",A70+1) -> 2073 | B71: =+IF($A71="","",IF(OR(DATE($A71,Mes,1)<$E$24,DATE($A71,Mes,1)>$L$23),0,VLOOKUP(DATE($A71,Mes,1),Calculo!$H$13:$AE$1273,24,FALSE))) -> 0.00357325497 | C71: =+IF($A71="","",IF(OR(DATE($A71,Mes,1)<$E$24,DATE($A71,Mes,1)>$L$23),0,VLOOKUP(DATE($A71,Mes,1),Calculo!$H$13:$AE$1273,24,FALSE))) -> 0.003572893889 | D71: =+IF($A71="","",IF(OR(DATE($A71,Mes,1)<$E$24,DATE($A71,Mes,1)>$L$23),0,VLOOKUP(DATE($A71,Mes,1),Calculo!$H$13:$AE$1273,24,FALSE))) -> 0.003572515408 | E71: =+IF($A71="","",IF(OR(DATE($A71,Mes,1)<$E$24,DATE($A71,Mes,1)>$L$23),0,VLOOKUP(DATE($A71,Mes,1),Calculo!$H$13:$AE$1273,24,FALSE))) -> 0.003572118687 | F71: =+IF($A71="","",IF(OR(DATE($A71,Mes,1)<$E$24,DATE($A71,Mes,1)>$L$23),0,VLOOKUP(DATE($A71,Mes,1),Calculo!$H$13:$AE$1273,24,FALSE))) -> 0.003571702849 | G71: =+IF($A71="","",IF(OR(DATE($A71,Mes,1)<$E$24,DATE($A71,Mes,1)>$L$23),0,VLOOKUP(DATE($A71,Mes,1),Calculo!$H$13:$AE$1273,24,FALSE))) -> 0.003571266972 | H71: =+IF($A71="","",IF(OR(DATE($A71,Mes,1)<$E$24,DATE($A71,Mes,1)>$L$23),0,VLOOKUP(DATE($A71,Mes,1),Calculo!$H$13:$AE$1273,24,FALSE))) -> 0.00357081009 | I71: =+IF($A71="","",IF(OR(DATE($A71,Mes,1)<$E$24,DATE($A71,Mes,1)>$L$23),0,VLOOKUP(DATE($A71,Mes,1),Calculo!$H$13:$AE$1273,24,FALSE))) -> 0.003570331191 | J71: =+IF($A71="","",IF(OR(DATE($A71,Mes,1)<$E$24,DATE($A71,Mes,1)>$L$23),0,VLOOKUP(DATE($A71,Mes,1),Calculo!$H$13:$AE$1273,24,FALSE))) -> 0.003569829214 | K71: =+IF($A71="","",IF(OR(DATE($A71,Mes,1)<$E$24,DATE($A71,Mes,1)>$L$23),0,VLOOKUP(DATE($A71,Mes,1),Calculo!$H$13:$AE$1273,24,FALSE))) -> 0.003569303047 | L71: =+IF($A71="","",IF(OR(DATE($A71,Mes,1)<$E$24,DATE($A71,Mes,1)>$L$23),0,VLOOKUP(DATE($A71,Mes,1),Calculo!$H$13:$AE$1273,24,FALSE))) -> 0.003568751524 | M71: =+IF($A71="","",IF(OR(DATE($A71,Mes,1)<$E$24,DATE($A71,Mes,1)>$L$23),0,VLOOKUP(DATE($A71,Mes,1),Calculo!$H$13:$AE$1273,24,FALSE))) -> 0.003568173424
A72: =+IF(OR(A71="",A71=YEAR(Calculo!$F$19)),"",A71+1) -> 2074 | B72: =+IF($A72="","",IF(OR(DATE($A72,Mes,1)<$E$24,DATE($A72,Mes,1)>$L$23),0,VLOOKUP(DATE($A72,Mes,1),Calculo!$H$13:$AE$1273,24,FALSE))) -> 0.003567870528 | C72: =+IF($A72="","",IF(OR(DATE($A72,Mes,1)<$E$24,DATE($A72,Mes,1)>$L$23),0,VLOOKUP(DATE($A72,Mes,1),Calculo!$H$13:$AE$1273,24,FALSE))) -> 0.003567550998 | D72: =+IF($A72="","",IF(OR(DATE($A72,Mes,1)<$E$24,DATE($A72,Mes,1)>$L$23),0,VLOOKUP(DATE($A72,Mes,1),Calculo!$H$13:$AE$1273,24,FALSE))) -> 0.003567213921 | E72: =+IF($A72="","",IF(OR(DATE($A72,Mes,1)<$E$24,DATE($A72,Mes,1)>$L$23),0,VLOOKUP(DATE($A72,Mes,1),Calculo!$H$13:$AE$1273,24,FALSE))) -> 0.003566858333 | F72: =+IF($A72="","",IF(OR(DATE($A72,Mes,1)<$E$24,DATE($A72,Mes,1)>$L$23),0,VLOOKUP(DATE($A72,Mes,1),Calculo!$H$13:$AE$1273,24,FALSE))) -> 0.003566483217 | G72: =+IF($A72="","",IF(OR(DATE($A72,Mes,1)<$E$24,DATE($A72,Mes,1)>$L$23),0,VLOOKUP(DATE($A72,Mes,1),Calculo!$H$13:$AE$1273,24,FALSE))) -> 0.003566087501 | H72: =+IF($A72="","",IF(OR(DATE($A72,Mes,1)<$E$24,DATE($A72,Mes,1)>$L$23),0,VLOOKUP(DATE($A72,Mes,1),Calculo!$H$13:$AE$1273,24,FALSE))) -> 0.003565670054 | I72: =+IF($A72="","",IF(OR(DATE($A72,Mes,1)<$E$24,DATE($A72,Mes,1)>$L$23),0,VLOOKUP(DATE($A72,Mes,1),Calculo!$H$13:$AE$1273,24,FALSE))) -> 0.003565229683 | J72: =+IF($A72="","",IF(OR(DATE($A72,Mes,1)<$E$24,DATE($A72,Mes,1)>$L$23),0,VLOOKUP(DATE($A72,Mes,1),Calculo!$H$13:$AE$1273,24,FALSE))) -> 0.003564765127 | K72: =+IF($A72="","",IF(OR(DATE($A72,Mes,1)<$E$24,DATE($A72,Mes,1)>$L$23),0,VLOOKUP(DATE($A72,Mes,1),Calculo!$H$13:$AE$1273,24,FALSE))) -> 0.00356427506 | L72: =+IF($A72="","",IF(OR(DATE($A72,Mes,1)<$E$24,DATE($A72,Mes,1)>$L$23),0,VLOOKUP(DATE($A72,Mes,1),Calculo!$H$13:$AE$1273,24,FALSE))) -> 0.00356375808 | M72: =+IF($A72="","",IF(OR(DATE($A72,Mes,1)<$E$24,DATE($A72,Mes,1)>$L$23),0,VLOOKUP(DATE($A72,Mes,1),Calculo!$H$13:$AE$1273,24,FALSE))) -> 0.00356321271
A73: =+IF(OR(A72="",A72=YEAR(Calculo!$F$19)),"",A72+1) -> 2075 | B73: =+IF($A73="","",IF(OR(DATE($A73,Mes,1)<$E$24,DATE($A73,Mes,1)>$L$23),0,VLOOKUP(DATE($A73,Mes,1),Calculo!$H$13:$AE$1273,24,FALSE))) -> 0.003562935787 | C73: =+IF($A73="","",IF(OR(DATE($A73,Mes,1)<$E$24,DATE($A73,Mes,1)>$L$23),0,VLOOKUP(DATE($A73,Mes,1),Calculo!$H$13:$AE$1273,24,FALSE))) -> 0.003562641596 | D73: =+IF($A73="","",IF(OR(DATE($A73,Mes,1)<$E$24,DATE($A73,Mes,1)>$L$23),0,VLOOKUP(DATE($A73,Mes,1),Calculo!$H$13:$AE$1273,24,FALSE))) -> 0.003562329059 | E73: =+IF($A73="","",IF(OR(DATE($A73,Mes,1)<$E$24,DATE($A73,Mes,1)>$L$23),0,VLOOKUP(DATE($A73,Mes,1),Calculo!$H$13:$AE$1273,24,FALSE))) -> 0.003561997033 | F73: =+IF($A73="","",IF(OR(DATE($A73,Mes,1)<$E$24,DATE($A73,Mes,1)>$L$23),0,VLOOKUP(DATE($A73,Mes,1),Calculo!$H$13:$AE$1273,24,FALSE))) -> 0.003561644301 | G73: =+IF($A73="","",IF(OR(DATE($A73,Mes,1)<$E$24,DATE($A73,Mes,1)>$L$23),0,VLOOKUP(DATE($A73,Mes,1),Calculo!$H$13:$AE$1273,24,FALSE))) -> 0.003561269574 | H73: =+IF($A73="","",IF(OR(DATE($A73,Mes,1)<$E$24,DATE($A73,Mes,1)>$L$23),0,VLOOKUP(DATE($A73,Mes,1),Calculo!$H$13:$AE$1273,24,FALSE))) -> 0.003560871479 | I73: =+IF($A73="","",IF(OR(DATE($A73,Mes,1)<$E$24,DATE($A73,Mes,1)>$L$23),0,VLOOKUP(DATE($A73,Mes,1),Calculo!$H$13:$AE$1273,24,FALSE))) -> 0.003560448559 | J73: =+IF($A73="","",IF(OR(DATE($A73,Mes,1)<$E$24,DATE($A73,Mes,1)>$L$23),0,VLOOKUP(DATE($A73,Mes,1),Calculo!$H$13:$AE$1273,24,FALSE))) -> 0.003559999267 | K73: =+IF($A73="","",IF(OR(DATE($A73,Mes,1)<$E$24,DATE($A73,Mes,1)>$L$23),0,VLOOKUP(DATE($A73,Mes,1),Calculo!$H$13:$AE$1273,24,FALSE))) -> 0.003559521956 | L73: =+IF($A73="","",IF(OR(DATE($A73,Mes,1)<$E$24,DATE($A73,Mes,1)>$L$23),0,VLOOKUP(DATE($A73,Mes,1),Calculo!$H$13:$AE$1273,24,FALSE))) -> 0.003559014882 | M73: =+IF($A73="","",IF(OR(DATE($A73,Mes,1)<$E$24,DATE($A73,Mes,1)>$L$23),0,VLOOKUP(DATE($A73,Mes,1),Calculo!$H$13:$AE$1273,24,FALSE))) -> 0.003558476186
A74: =+IF(OR(A73="",A73=YEAR(Calculo!$F$19)),"",A73+1) -> 2076 | B74: =+IF($A74="","",IF(OR(DATE($A74,Mes,1)<$E$24,DATE($A74,Mes,1)>$L$23),0,VLOOKUP(DATE($A74,Mes,1),Calculo!$H$13:$AE$1273,24,FALSE))) -> 0.00355822808 | C74: =+IF($A74="","",IF(OR(DATE($A74,Mes,1)<$E$24,DATE($A74,Mes,1)>$L$23),0,VLOOKUP(DATE($A74,Mes,1),Calculo!$H$13:$AE$1273,24,FALSE))) -> 0.003557962227 | D74: =+IF($A74="","",IF(OR(DATE($A74,Mes,1)<$E$24,DATE($A74,Mes,1)>$L$23),0,VLOOKUP(DATE($A74,Mes,1),Calculo!$H$13:$AE$1273,24,FALSE))) -> 0.003557677358 | E74: =+IF($A74="","",IF(OR(DATE($A74,Mes,1)<$E$24,DATE($A74,Mes,1)>$L$23),0,VLOOKUP(DATE($A74,Mes,1),Calculo!$H$13:$AE$1273,24,FALSE))) -> 0.003557372112 | F74: =+IF($A74="","",IF(OR(DATE($A74,Mes,1)<$E$24,DATE($A74,Mes,1)>$L$23),0,VLOOKUP(DATE($A74,Mes,1),Calculo!$H$13:$AE$1273,24,FALSE))) -> 0.003557045034 | G74: =+IF($A74="","",IF(OR(DATE($A74,Mes,1)<$E$24,DATE($A74,Mes,1)>$L$23),0,VLOOKUP(DATE($A74,Mes,1),Calculo!$H$13:$AE$1273,24,FALSE))) -> 0.00355669456 | H74: =+IF($A74="","",IF(OR(DATE($A74,Mes,1)<$E$24,DATE($A74,Mes,1)>$L$23),0,VLOOKUP(DATE($A74,Mes,1),Calculo!$H$13:$AE$1273,24,FALSE))) -> 0.003556319017 | I74: =+IF($A74="","",IF(OR(DATE($A74,Mes,1)<$E$24,DATE($A74,Mes,1)>$L$23),0,VLOOKUP(DATE($A74,Mes,1),Calculo!$H$13:$AE$1273,24,FALSE))) -> 0.003555916612 | J74: =+IF($A74="","",IF(OR(DATE($A74,Mes,1)<$E$24,DATE($A74,Mes,1)>$L$23),0,VLOOKUP(DATE($A74,Mes,1),Calculo!$H$13:$AE$1273,24,FALSE))) -> 0.003555485424 | K74: =+IF($A74="","",IF(OR(DATE($A74,Mes,1)<$E$24,DATE($A74,Mes,1)>$L$23),0,VLOOKUP(DATE($A74,Mes,1),Calculo!$H$13:$AE$1273,24,FALSE))) -> 0.003555023394 | L74: =+IF($A74="","",IF(OR(DATE($A74,Mes,1)<$E$24,DATE($A74,Mes,1)>$L$23),0,VLOOKUP(DATE($A74,Mes,1),Calculo!$H$13:$AE$1273,24,FALSE))) -> 0.003554528316 | M74: =+IF($A74="","",IF(OR(DATE($A74,Mes,1)<$E$24,DATE($A74,Mes,1)>$L$23),0,VLOOKUP(DATE($A74,Mes,1),Calculo!$H$13:$AE$1273,24,FALSE))) -> 0.003553997825
A75: =+IF(OR(A74="",A74=YEAR(Calculo!$F$19)),"",A74+1) -> 2077 | B75: =+IF($A75="","",IF(OR(DATE($A75,Mes,1)<$E$24,DATE($A75,Mes,1)>$L$23),0,VLOOKUP(DATE($A75,Mes,1),Calculo!$H$13:$AE$1273,24,FALSE))) -> 0.003553785934 | C75: =+IF($A75="","",IF(OR(DATE($A75,Mes,1)<$E$24,DATE($A75,Mes,1)>$L$23),0,VLOOKUP(DATE($A75,Mes,1),Calculo!$H$13:$AE$1273,24,FALSE))) -> 0.00355355644 | D75: =+IF($A75="","",IF(OR(DATE($A75,Mes,1)<$E$24,DATE($A75,Mes,1)>$L$23),0,VLOOKUP(DATE($A75,Mes,1),Calculo!$H$13:$AE$1273,24,FALSE))) -> 0.00355330788 | E75: =+IF($A75="","",IF(OR(DATE($A75,Mes,1)<$E$24,DATE($A75,Mes,1)>$L$23),0,VLOOKUP(DATE($A75,Mes,1),Calculo!$H$13:$AE$1273,24,FALSE))) -> 0.003553038672 | F75: =+IF($A75="","",IF(OR(DATE($A75,Mes,1)<$E$24,DATE($A75,Mes,1)>$L$23),0,VLOOKUP(DATE($A75,Mes,1),Calculo!$H$13:$AE$1273,24,FALSE))) -> 0.003552747099 | G75: =+IF($A75="","",IF(OR(DATE($A75,Mes,1)<$E$24,DATE($A75,Mes,1)>$L$23),0,VLOOKUP(DATE($A75,Mes,1),Calculo!$H$13:$AE$1273,24,FALSE))) -> 0.003552431303 | H75: =+IF($A75="","",IF(OR(DATE($A75,Mes,1)<$E$24,DATE($A75,Mes,1)>$L$23),0,VLOOKUP(DATE($A75,Mes,1),Calculo!$H$13:$AE$1273,24,FALSE))) -> 0.003552089273 | I75: =+IF($A75="","",IF(OR(DATE($A75,Mes,1)<$E$24,DATE($A75,Mes,1)>$L$23),0,VLOOKUP(DATE($A75,Mes,1),Calculo!$H$13:$AE$1273,24,FALSE))) -> 0.003551718829 | J75: =+IF($A75="","",IF(OR(DATE($A75,Mes,1)<$E$24,DATE($A75,Mes,1)>$L$23),0,VLOOKUP(DATE($A75,Mes,1),Calculo!$H$13:$AE$1273,24,FALSE))) -> 0.00355131761 | K75: =+IF($A75="","",IF(OR(DATE($A75,Mes,1)<$E$24,DATE($A75,Mes,1)>$L$23),0,VLOOKUP(DATE($A75,Mes,1),Calculo!$H$13:$AE$1273,24,FALSE))) -> 0.003550883059 | L75: =+IF($A75="","",IF(OR(DATE($A75,Mes,1)<$E$24,DATE($A75,Mes,1)>$L$23),0,VLOOKUP(DATE($A75,Mes,1),Calculo!$H$13:$AE$1273,24,FALSE))) -> 0.003550412408 | M75: =+IF($A75="","",IF(OR(DATE($A75,Mes,1)<$E$24,DATE($A75,Mes,1)>$L$23),0,VLOOKUP(DATE($A75,Mes,1),Calculo!$H$13:$AE$1273,24,FALSE))) -> 0.003549902658
A76: =+IF(OR(A75="",A75=YEAR(Calculo!$F$19)),"",A75+1) -> 2078 | B76: =+IF($A76="","",IF(OR(DATE($A76,Mes,1)<$E$24,DATE($A76,Mes,1)>$L$23),0,VLOOKUP(DATE($A76,Mes,1),Calculo!$H$13:$AE$1273,24,FALSE))) -> 0.003549750245 | C76: =+IF($A76="","",IF(OR(DATE($A76,Mes,1)<$E$24,DATE($A76,Mes,1)>$L$23),0,VLOOKUP(DATE($A76,Mes,1),Calculo!$H$13:$AE$1273,24,FALSE))) -> 0.003549582896 | D76: =+IF($A76="","",IF(OR(DATE($A76,Mes,1)<$E$24,DATE($A76,Mes,1)>$L$23),0,VLOOKUP(DATE($A76,Mes,1),Calculo!$H$13:$AE$1273,24,FALSE))) -> 0.003549399146 | E76: =+IF($A76="","",IF(OR(DATE($A76,Mes,1)<$E$24,DATE($A76,Mes,1)>$L$23),0,VLOOKUP(DATE($A76,Mes,1),Calculo!$H$13:$AE$1273,24,FALSE))) -> 0.00354919739 | F76: =+IF($A76="","",IF(OR(DATE($A76,Mes,1)<$E$24,DATE($A76,Mes,1)>$L$23),0,VLOOKUP(DATE($A76,Mes,1),Calculo!$H$13:$AE$1273,24,FALSE))) -> 0.003548975861 | G76: =+IF($A76="","",IF(OR(DATE($A76,Mes,1)<$E$24,DATE($A76,Mes,1)>$L$23),0,VLOOKUP(DATE($A76,Mes,1),Calculo!$H$13:$AE$1273,24,FALSE))) -> 0.003548732624 | H76: =+IF($A76="","",IF(OR(DATE($A76,Mes,1)<$E$24,DATE($A76,Mes,1)>$L$23),0,VLOOKUP(DATE($A76,Mes,1),Calculo!$H$13:$AE$1273,24,FALSE))) -> 0.003548465549 | I76: =+IF($A76="","",IF(OR(DATE($A76,Mes,1)<$E$24,DATE($A76,Mes,1)>$L$23),0,VLOOKUP(DATE($A76,Mes,1),Calculo!$H$13:$AE$1273,24,FALSE))) -> 0.003548172302 | J76: =+IF($A76="","",IF(OR(DATE($A76,Mes,1)<$E$24,DATE($A76,Mes,1)>$L$23),0,VLOOKUP(DATE($A76,Mes,1),Calculo!$H$13:$AE$1273,24,FALSE))) -> 0.003547850316 | K76: =+IF($A76="","",IF(OR(DATE($A76,Mes,1)<$E$24,DATE($A76,Mes,1)>$L$23),0,VLOOKUP(DATE($A76,Mes,1),Calculo!$H$13:$AE$1273,24,FALSE))) -> 0.003547496777 | L76: =+IF($A76="","",IF(OR(DATE($A76,Mes,1)<$E$24,DATE($A76,Mes,1)>$L$23),0,VLOOKUP(DATE($A76,Mes,1),Calculo!$H$13:$AE$1273,24,FALSE))) -> 0.003547108591 | M76: =+IF($A76="","",IF(OR(DATE($A76,Mes,1)<$E$24,DATE($A76,Mes,1)>$L$23),0,VLOOKUP(DATE($A76,Mes,1),Calculo!$H$13:$AE$1273,24,FALSE))) -> 0.003546682364
A77: =+IF(OR(A76="",A76=YEAR(Calculo!$F$19)),"",A76+1) -> 2079 | B77: =+IF($A77="","",IF(OR(DATE($A77,Mes,1)<$E$24,DATE($A77,Mes,1)>$L$23),0,VLOOKUP(DATE($A77,Mes,1),Calculo!$H$13:$AE$1273,24,FALSE))) -> 0.003546682364 | C77: =+IF($A77="","",IF(OR(DATE($A77,Mes,1)<$E$24,DATE($A77,Mes,1)>$L$23),0,VLOOKUP(DATE($A77,Mes,1),Calculo!$H$13:$AE$1273,24,FALSE))) -> 0.003546682364 | D77: =+IF($A77="","",IF(OR(DATE($A77,Mes,1)<$E$24,DATE($A77,Mes,1)>$L$23),0,VLOOKUP(DATE($A77,Mes,1),Calculo!$H$13:$AE$1273,24,FALSE))) -> 0.003546682364 | E77: =+IF($A77="","",IF(OR(DATE($A77,Mes,1)<$E$24,DATE($A77,Mes,1)>$L$23),0,VLOOKUP(DATE($A77,Mes,1),Calculo!$H$13:$AE$1273,24,FALSE))) -> 0.003546682364 | F77: =+IF($A77="","",IF(OR(DATE($A77,Mes,1)<$E$24,DATE($A77,Mes,1)>$L$23),0,VLOOKUP(DATE($A77,Mes,1),Calculo!$H$13:$AE$1273,24,FALSE))) -> 0.003546682364 | G77: =+IF($A77="","",IF(OR(DATE($A77,Mes,1)<$E$24,DATE($A77,Mes,1)>$L$23),0,VLOOKUP(DATE($A77,Mes,1),Calculo!$H$13:$AE$1273,24,FALSE))) -> 0.003546682364 | H77: =+IF($A77="","",IF(OR(DATE($A77,Mes,1)<$E$24,DATE($A77,Mes,1)>$L$23),0,VLOOKUP(DATE($A77,Mes,1),Calculo!$H$13:$AE$1273,24,FALSE))) -> 0.003546682364 | I77: =+IF($A77="","",IF(OR(DATE($A77,Mes,1)<$E$24,DATE($A77,Mes,1)>$L$23),0,VLOOKUP(DATE($A77,Mes,1),Calculo!$H$13:$AE$1273,24,FALSE))) -> 0.003546682364 | J77: =+IF($A77="","",IF(OR(DATE($A77,Mes,1)<$E$24,DATE($A77,Mes,1)>$L$23),0,VLOOKUP(DATE($A77,Mes,1),Calculo!$H$13:$AE$1273,24,FALSE))) -> 0.003546682364 | K77: =+IF($A77="","",IF(OR(DATE($A77,Mes,1)<$E$24,DATE($A77,Mes,1)>$L$23),0,VLOOKUP(DATE($A77,Mes,1),Calculo!$H$13:$AE$1273,24,FALSE))) -> 0.003546682364 | L77: =+IF($A77="","",IF(OR(DATE($A77,Mes,1)<$E$24,DATE($A77,Mes,1)>$L$23),0,VLOOKUP(DATE($A77,Mes,1),Calculo!$H$13:$AE$1273,24,FALSE))) -> 0.003546682364 | M77: =+IF($A77="","",IF(OR(DATE($A77,Mes,1)<$E$24,DATE($A77,Mes,1)>$L$23),0,VLOOKUP(DATE($A77,Mes,1),Calculo!$H$13:$AE$1273,24,FALSE))) -> 0.003546682364
A78: =+IF(OR(A77="",A77=YEAR(Calculo!$F$19)),"",A77+1) -> 2080 | B78: =+IF($A78="","",IF(OR(DATE($A78,Mes,1)<$E$24,DATE($A78,Mes,1)>$L$23),0,VLOOKUP(DATE($A78,Mes,1),Calculo!$H$13:$AE$1273,24,FALSE))) -> 0.003546682364 | C78: =+IF($A78="","",IF(OR(DATE($A78,Mes,1)<$E$24,DATE($A78,Mes,1)>$L$23),0,VLOOKUP(DATE($A78,Mes,1),Calculo!$H$13:$AE$1273,24,FALSE))) -> 0.003546682364 | D78: =+IF($A78="","",IF(OR(DATE($A78,Mes,1)<$E$24,DATE($A78,Mes,1)>$L$23),0,VLOOKUP(DATE($A78,Mes,1),Calculo!$H$13:$AE$1273,24,FALSE))) -> 0.003546682364 | E78: =+IF($A78="","",IF(OR(DATE($A78,Mes,1)<$E$24,DATE($A78,Mes,1)>$L$23),0,VLOOKUP(DATE($A78,Mes,1),Calculo!$H$13:$AE$1273,24,FALSE))) -> 0.003546682364 | F78: =+IF($A78="","",IF(OR(DATE($A78,Mes,1)<$E$24,DATE($A78,Mes,1)>$L$23),0,VLOOKUP(DATE($A78,Mes,1),Calculo!$H$13:$AE$1273,24,FALSE))) -> 0.003546682364 | G78: =+IF($A78="","",IF(OR(DATE($A78,Mes,1)<$E$24,DATE($A78,Mes,1)>$L$23),0,VLOOKUP(DATE($A78,Mes,1),Calculo!$H$13:$AE$1273,24,FALSE))) -> 0.003546682364 | H78: =+IF($A78="","",IF(OR(DATE($A78,Mes,1)<$E$24,DATE($A78,Mes,1)>$L$23),0,VLOOKUP(DATE($A78,Mes,1),Calculo!$H$13:$AE$1273,24,FALSE))) -> 0.003546682364 | I78: =+IF($A78="","",IF(OR(DATE($A78,Mes,1)<$E$24,DATE($A78,Mes,1)>$L$23),0,VLOOKUP(DATE($A78,Mes,1),Calculo!$H$13:$AE$1273,24,FALSE))) -> 0.003546682364 | J78: =+IF($A78="","",IF(OR(DATE($A78,Mes,1)<$E$24,DATE($A78,Mes,1)>$L$23),0,VLOOKUP(DATE($A78,Mes,1),Calculo!$H$13:$AE$1273,24,FALSE))) -> 0.003546682364 | K78: =+IF($A78="","",IF(OR(DATE($A78,Mes,1)<$E$24,DATE($A78,Mes,1)>$L$23),0,VLOOKUP(DATE($A78,Mes,1),Calculo!$H$13:$AE$1273,24,FALSE))) -> 0.003546682364 | L78: =+IF($A78="","",IF(OR(DATE($A78,Mes,1)<$E$24,DATE($A78,Mes,1)>$L$23),0,VLOOKUP(DATE($A78,Mes,1),Calculo!$H$13:$AE$1273,24,FALSE))) -> 0.003546682364 | M78: =+IF($A78="","",IF(OR(DATE($A78,Mes,1)<$E$24,DATE($A78,Mes,1)>$L$23),0,VLOOKUP(DATE($A78,Mes,1),Calculo!$H$13:$AE$1273,24,FALSE))) -> 0.003546682364
A79: =+IF(OR(A78="",A78=YEAR(Calculo!$F$19)),"",A78+1) -> 2081 | B79: =+IF($A79="","",IF(OR(DATE($A79,Mes,1)<$E$24,DATE($A79,Mes,1)>$L$23),0,VLOOKUP(DATE($A79,Mes,1),Calculo!$H$13:$AE$1273,24,FALSE))) -> 0.003546682364 | C79: =+IF($A79="","",IF(OR(DATE($A79,Mes,1)<$E$24,DATE($A79,Mes,1)>$L$23),0,VLOOKUP(DATE($A79,Mes,1),Calculo!$H$13:$AE$1273,24,FALSE))) -> 0.003546682364 | D79: =+IF($A79="","",IF(OR(DATE($A79,Mes,1)<$E$24,DATE($A79,Mes,1)>$L$23),0,VLOOKUP(DATE($A79,Mes,1),Calculo!$H$13:$AE$1273,24,FALSE))) -> 0.003546682364 | E79: =+IF($A79="","",IF(OR(DATE($A79,Mes,1)<$E$24,DATE($A79,Mes,1)>$L$23),0,VLOOKUP(DATE($A79,Mes,1),Calculo!$H$13:$AE$1273,24,FALSE))) -> 0.003546682364 | F79: =+IF($A79="","",IF(OR(DATE($A79,Mes,1)<$E$24,DATE($A79,Mes,1)>$L$23),0,VLOOKUP(DATE($A79,Mes,1),Calculo!$H$13:$AE$1273,24,FALSE))) -> 0.003546682364 | G79: =+IF($A79="","",IF(OR(DATE($A79,Mes,1)<$E$24,DATE($A79,Mes,1)>$L$23),0,VLOOKUP(DATE($A79,Mes,1),Calculo!$H$13:$AE$1273,24,FALSE))) -> 0.003546682364 | H79: =+IF($A79="","",IF(OR(DATE($A79,Mes,1)<$E$24,DATE($A79,Mes,1)>$L$23),0,VLOOKUP(DATE($A79,Mes,1),Calculo!$H$13:$AE$1273,24,FALSE))) -> 0.003546682364 | I79: =+IF($A79="","",IF(OR(DATE($A79,Mes,1)<$E$24,DATE($A79,Mes,1)>$L$23),0,VLOOKUP(DATE($A79,Mes,1),Calculo!$H$13:$AE$1273,24,FALSE))) -> 0.003546682364 | J79: =+IF($A79="","",IF(OR(DATE($A79,Mes,1)<$E$24,DATE($A79,Mes,1)>$L$23),0,VLOOKUP(DATE($A79,Mes,1),Calculo!$H$13:$AE$1273,24,FALSE))) -> 0.003546682364 | K79: =+IF($A79="","",IF(OR(DATE($A79,Mes,1)<$E$24,DATE($A79,Mes,1)>$L$23),0,VLOOKUP(DATE($A79,Mes,1),Calculo!$H$13:$AE$1273,24,FALSE))) -> 0.003546682364 | L79: =+IF($A79="","",IF(OR(DATE($A79,Mes,1)<$E$24,DATE($A79,Mes,1)>$L$23),0,VLOOKUP(DATE($A79,Mes,1),Calculo!$H$13:$AE$1273,24,FALSE))) -> 0.003546682364 | M79: =+IF($A79="","",IF(OR(DATE($A79,Mes,1)<$E$24,DATE($A79,Mes,1)>$L$23),0,VLOOKUP(DATE($A79,Mes,1),Calculo!$H$13:$AE$1273,24,FALSE))) -> 0.003546682364
C92: =+"En Madrid a "&TEXT(DAY(TODAY()),"d")&" de "&TEXT(TODAY(),"mmmm")&" de "&TEXT(TODAY(),"aaaa") -> En Madrid a 1 de octubre de 2024
H93: SEGUROS DE VIDA Y PENSIONES ANTARES

Sheet Proyecto Definitivo
A4: RENTA ASEGURADA
A6: DATOS DEL PARTICIPE BENEFICIARIO Y DEL BENEFICIARIO DE LA REVERSION
B7: Partícipe Beneficiario | F7: Beneficiario de la Reversión
A8: Nombre | B8: =+Calculo!C7 -> SALVADOR | F8: =+IF(Calculo!$F$17="","",Calculo!$F$17) -> 
A9: Apellidos | B9: =+Calculo!C6 -> MILLAN OUTEIRAL | F9: =+IF(Calculo!$F$16="","",Calculo!$F$16) -> 
A10: NIF | B10: =+Solicitud!B17 -> 36479790L
A11: Fecha de Nacimiento | B11: =+Calculo!C10 -> 1964-01-01 | F11: =+Solicitud!F18 -> 
A12: Sexo | B12: =+IF(Calculo!C12=1,"Hombre","Mujer") -> Mujer | F12: =+Solicitud!F19 -> 
A14: RENTA ASEGURADA
A16: Prima: | C16: =+Calculo!C17 -> 1
A17: El partícipe benficiario percibirá del plan la renta que a continuación se especifica por la duración indicada y mientras sobreviva.
A18: En caso de Fallecimiento del Beneficiario partícipe, el Beneficiario de la reversión percibirá el porcentaje de la renta indicado hasta la fecha del último pago y siempre y cuando sobreviva.
A19: El pago de la renta cesará en caso de fallecimiento del beneficiario participe y del beneficario de la reversión si lo hubiere
A20: Periodicidad del pago: | C20: Mensual
A21: Duración: | C21: =+IF(Calculo!C19<960,Calculo!C19&" Meses","Vitalicia") -> Vitalicia
A22: Crecimiento (1): | C22: =+Calculo!C14 -> 0
A24: Reversión: | C24: =+Calculo!C13 -> 0
A25: Fecha de Efecto: | C25: =+DATE(YEAR(Calculo!$C$8),MONTH(Calculo!$C$8),1) -> 2031-01-01
A26: Fecha de 1er pago: | C26: =+DATE(YEAR(Calculo!$C$9),MONTH(Calculo!$C$9)+1,1-1) -> 2031-01-31
A27: =+IF(C21="Vitalicia","","Fecha de último pago:") ->  | C27: =+IF(C21="Vitalicia","",Calculo!F19) -> 
A28: Importe inicial de la renta: | C28: =+Calculo!C18 -> 0.003520342978
A31: (1) El crecimiento de la renta es anual acumulativo a primeros de año

Sheet Proyecto
A4: SIMULACION RENTA ASEGURADA
A6: DATOS DEL PARTICIPE BENEFICIARIO Y DEL BENEFICIARIO DE LA REVERSION
B7: Partícipe Beneficiario | F7: Beneficiario de la Reversión
A8: Nombre | B8: =+Calculo!C7 -> SALVADOR | F8: =+IF(Calculo!$F$17="","",Calculo!$F$17) -> 
A9: Apellidos | B9: =+Calculo!C6 -> MILLAN OUTEIRAL | F9: =+IF(Calculo!$F$16="","",Calculo!$F$16) -> 
A10: NIF | B10: =+Solicitud!B17 -> 36479790L
A11: Fecha de Nacimiento | B11: =+Calculo!C10 -> 1964-01-01 | F11: =+Solicitud!F18 -> 
A12: Sexo | B12: =+IF(Calculo!C12=1,"Hombre","Mujer") -> Mujer | F12: =+Solicitud!F19 -> 
A14: RENTA ASEGURADA
A16: Prima: | C16: =+Calculo!C17 -> 1
A17: El partícipe benficiario percibirá del plan la renta que a continuación se especifica por la duración indicada y mientras sobreviva.
A18: En caso de Fallecimiento del Beneficiario partícipe, el Beneficiario de la reversión percibirá el porcentaje de la renta indicado hasta la fecha del último pago y siempre y cuando sobreviva.
A19: El pago de la renta cesará en caso de fallecimiento del beneficiario participe y del beneficario de la reversión si lo hubiere
A20: Periodicidad del pago: | C20: Mensual
A21: Duración: | C21: =+IF(Calculo!C19<960,Calculo!C19&" Meses","Vitalicia") -> Vitalicia
A22: Crecimiento (1): | C22: =+Calculo!C14 -> 0
A24: Reversión: | C24: =+Calculo!C13 -> 0
A25: Fecha de Efecto: | C25: =+DATE(YEAR(Calculo!$C$8),MONTH(Calculo!$C$8),1) -> 2031-01-01
A26: Fecha de 1er pago: | C26: =+DATE(YEAR(Calculo!$C$9),MONTH(Calculo!$C$9)+1,1-1) -> 2031-01-31
A27: =+IF(C21="Vitalicia","","Fecha de último pago:") ->  | C27: =+IF(C21="Vitalicia","",Calculo!F19) -> 
A28: Importe inicial de la renta: | C28: =+Calculo!C18 -> 0.003520342978
A31: (1) El crecimiento de la renta es anual acumulativo a primeros de año
A34: Esta simulación no tiene ningún valor contractual ni constituye una proposición de renta asegurada vinculante Su importe final vendrá determinado por la fecha de la solicitud de percepción de renta por parte del Plan de Pensiones según la modalidad de renta elegida

Sheet Generacion Tabla Produccion
B1: Asegurado | C1: Beneficiario | H1: Asegurado | I1: Beneficiario
A2: Año Nacimiento | B2: =YEAR(Calculo!$C$10) -> 1964 | C2: =YEAR(Calculo!$C$11) -> 1900 | G2: Año Nacimiento | H2: =YEAR(Calculo!$C$10) -> 1964 | I2: =YEAR(Calculo!$C$11) -> 1900
B3: HOMBRES | D3: Asegurado | E3: Beneficiario | G3: MUJERES PRINCIPAL | I3: Asegurado | J3: Beneficiario | M3: ASEGURADO | Q3: BENEFICIARIO
A4: Año | B4: Qx | C4: Mejora Qx | D4: Conversion | E4: Conversion | G4: Qx | H4: Mejora Qx | I4: Conversion | J4: Conversion | L4: Edad | M4: Qx | N4: Qy | O4: Px | P4: Py | Q4: Qx | R4: Qy | S4: Px | T4: Py
A5: 2012 | B5: 1.9791825 | C5: 0.04 | D5: =+EXP(-$C5*($B$2-$A5)) -> 6.820958469 | E5: =+EXP(-$C5*($C$2-$A5)) -> 88.23467268 | G5: 1.96384 | H5: 0.04 | I5: =+EXP(-$H5*($H$2-$A5)) -> 6.820958469 | J5: =+EXP(-$H5*($I$2-$A5)) -> 88.23467268 | L5: =+$A$5-A5 -> 0 | M5: =+$B5*$D5/1000 -> 0.01349992164 | N5: =+$G5*$I5/1000 -> 0.01339527108 | O5: =+(1-M5)^(0.0833333333333333) -> 0.998867985 | P5: =+(1-N5)^(0.0833333333333333) -> 0.9988768148 | Q5: =+B5*E5/1000 -> 0.1746325201 | R5: =+G5*J5/1000 -> 0.1732787796 | S5: =+(1-Q5)^(0.0833333333333333) -> 0.9841333428 | T5: =+(1-R5)^(0.0833333333333333) -> 0.9842677537
A6: 2011 | B6: 0.1254475 | C6: 0.04 | D6: 6.553504862 | E6: =+EXP(-$C6*($C$2-$A6)) -> 84.77494167 | G6: 0.1308625 | H6: 0.04 | I6: 6.553504862 | J6: 84.77494167 | L6: =+$A$5-A6 -> 1 | M6: 0.0008221208012 | N6: 0.00085760803 | O6: 0.9999314641 | P6: 0.9999285046 | Q6: =+B6*E6/1000 -> 0.0106348045 | R6: =+G6*J6/1000 -> 0.0110938608 | S6: =+(1-Q6)^(0.0833333333333333) -> 0.999109417 | T6: =+(1-R6)^(0.0833333333333333) -> 0.9990707773
A7: 2010 | B7: 0.1083 | C7: 0.04 | D7: 6.296538261 | E7: 81.45086866 | G7: 0.11191 | H7: 0.04 | I7: 6.296538261 | J7: 81.45086866 | L7: 2 | M7: 0.0006819150937 | N7: 0.0007046455968 | O7: 0.999943156 | P7: 0.9999412606 | Q7: 0.008821129076 | R7: 0.009115166712 | S7: 0.9992619171 | T7: 0.9992372107
A8: 2009 | B8: 0.0929575 | C8: 0.04 | D8: 6.049647464 | E8: 78.25713442 | G8: 0.09386 | H8: 0.04 | I8: 6.049647464 | J8: 78.25713442 | L8: 3 | M8: 0.0005623601042 | N8: 0.000567819911 | O8: 0.9999531246 | P8: 0.9999526694 | Q8: 0.007274587573 | R8: 0.007345214637 | S8: 0.9993917537 | T8: 0.9993858284
A9: 2008 | B9: 0.07942 | C9: 0.04 | D9: 5.812437394 | E9: 75.18862829 | G9: 0.0785175 | H9: 0.04 | I9: 5.812437394 | J9: 75.18862829 | L9: 4 | M9: 0.0004616237779 | N9: 0.0004563780531 | O9: 0.9999615232 | P9: 0.9999619605 | Q9: 0.005971480859 | R9: 0.005903623122 | S9: 0.9995010094 | T9: 0.9995066952
A10: 2007 | B10: 0.06859 | C10: 0.04 | D10: 5.584528464 | E10: 72.24044001 | G10: 0.0658825 | H10: 0.04 | I10: 5.584528464 | J10: 72.24044001 | L10: 5 | M10: 0.0003830428074 | N10: 0.0003679226965 | O10: 0.9999680742 | P10: 0.9999693346 | Q10: 0.00495497178 | R10: 0.004759380789 | S10: 0.999586145 | T10: 0.9996025171
A11: 2006 | B11: 0.0604675 | C11: 0.04 | D11: 5.365555971 | E11: 69.40785184 | G11: 0.0568575 | H11: 0.04 | I11: 5.365555971 | J11: 69.40785184 | L11: 6 | M11: 0.0003244417557 | N11: 0.0003050720986 | O11: 0.9999729592 | P11: 0.9999745738 | Q11: 0.004196919281 | R11: 0.003946356936 | S11: 0.9996495822 | T11: 0.9996705406
A12: 2005 | B12: 0.055955 | C12: 0.04 | D12: 5.155169512 | E12: 66.68633104 | G12: 0.0514425 | H12: 0.04 | I12: 5.155169512 | J12: 66.68633104 | L12: 7 | M12: 0.0002884575101 | N12: 0.0002651948076 | O12: 0.9999759587 | P12: 0.9999778977 | Q12: 0.003731433653 | R12: 0.003430511585 | S12: 0.9996885141 | T12: 0.9997136736
A13: 2004 | B13: 0.0532475 | C13: 0.04 | D13: 4.953032424 | E13: 64.0715226 | G13: 0.0478325 | H13: 0.03952118143 | I13: 4.85907095 | J13: 60.959083 | L13: 8 | M13: 0.000263736594 | N13: 0.0002324215112 | O13: 0.9999780193 | P13: 0.9999806295 | Q13: 0.0034116484 | R13: 0.002915825337 | S13: 0.9997152504 | T13: 0.9997566892
A14: 2003 | B14: 0.0532475 | C14: 0.04 | D14: 4.758821245 | E14: 61.55924226 | G14: 0.0478325 | H14: 0.03907702672 | I14: 4.590569278 | J14: 55.97660034 | L14: 9 | M14: 0.0002533953343 | N14: 0.000219578405 | O14: 0.9999788813 | P14: 0.9999817 | Q14: 0.003277875752 | R14: 0.002677500736 | S14: 0.9997264324 | T14: 0.9997766007
A15: 2002 | B15: 0.055955 | C15: 0.04 | D15: 4.572225195 | E15: 59.14546985 | G15: 0.048735 | H15: 0.0388322871 | I15: 4.373776878 | J15: 52.5042062 | L15: 10 | M15: 0.0002558388608 | N15: 0.0002131560161 | O15: 0.9999786776 | P15: 0.9999822353 | Q15: 0.003309484765 | R15: 0.002558792489 | S15: 0.9997237904 | T15: 0.9997865168
A16: 2001 | B16: 0.06137 | C16: 0.04 | D16: 4.392945681 | E16: 56.82634281 | G16: 0.052345 | H16: 0.03871313303 | I16: 4.188681146 | J16: 49.90027111 | L16: 11 | M16: 0.0002695950764 | N16: 0.0002192565146 | O16: 0.999977531 | P16: 0.9999817268 | Q16: 0.003487432658 | R16: 0.002612029691 | S16: 0.999708915 | T16: 0.9997820698
A17: 2000 | B17: 0.0694925 | C17: 0.04 | D17: 4.220695817 | E17: 54.59815003 | G17: 0.05776 | H17: 0.03863634568 | I17: 4.018498979 | J17: 47.63818131 | L17: 12 | M17: 0.0002933067041 | N17: 0.000232108501 | O17: 0.9999755545 | P17: 0.9999806556 | Q17: 0.003794161941 | R17: 0.002751581352 | S17: 0.9996832687 | T17: 0.9997704119
A18: 1999 | B18: 0.0821275 | C18: 0.04 | D18: 4.055199967 | E18: 52.45732595 | G18: 0.063175 | H18: 0.03853359534 | I18: 3.85232105 | J18: 45.36885873 | L18: 13 | M18: 0.0003330434353 | N18: 0.0002433703824 | O18: 0.9999722421 | P18: 0.9999797169 | Q18: 0.004308189037 | R18: 0.00286617765 | S18: 0.9996402734 | T18: 0.9997608375
A19: 1998 | B19: 0.09747 | C19: 0.04 | D19: 3.896193302 | E19: 50.40044478 | G19: 0.0694925 | H19: 0.03836645108 | I19: 3.685695834 | J19: 42.94465552 | L19: 14 | M19: 0.0003797619611 | N19: 0.0002561282178 | O19: 0.9999683477 | P19: 0.9999786535 | Q19: 0.004912531353 | R19: 0.002984331473 | S19: 0.9995896977 | T19: 0.9997509649
A20: 1997 | B20: 0.11552 | C20: 0.04 | D20: 3.743421377 | E20: 48.42421507 | G20: 0.0767125 | H20: 0.03812929565 | I20: 3.519316365 | J20: 40.38836214 | L20: 15 | M20: 0.0004324400375 | N20: 0.0002699755567 | O20: 0.9999639562 | P20: 0.9999774993 | Q20: 0.005593965325 | R20: 0.003098292231 | S20: 0.9995326367 | T20: 0.9997414416
A21: 1996 | B21: 0.135375 | C21: 0.04 | D21: 3.596639726 | E21: 46.52547444 | G21: 0.0839325 | H21: 0.03784247316 | I21: 3.356702661 | J21: 37.82148864 | L21: 16 | M21: 0.0004868951028 | N21: 0.0002817364461 | O21: 0.9999594164 | P21: 0.9999765189 | Q21: 0.006298386102 | R21: 0.003174452095 | S21: 0.9994736132 | T21: 0.9997350767
A22: 1995 | B22: 0.1579375 | C22: 0.04 | D22: 3.455613465 | E22: 44.70118449 | G22: 0.092055 | H22: 0.03754108304 | I22: 3.201993467 | J22: 35.38906551 | L22: 17 | M22: 0.0005457709516 | N22: 0.0002947595086 | O22: 0.9999545077 | P22: 0.9999754334 | Q22: 0.007059993326 | R22: 0.003257740426 | S22: 0.9994097548 | T22: 0.9997281154
A23: 1994 | B23: 0.1805 | C23: 0.04 | D23: 3.320116923 | E23: 42.94842598 | G23: 0.0983725 | H23: 0.03726414902 | I23: 3.058499606 | J23: 33.2093017 | L23: 18 | M23: 0.0005992811046 | N23: 0.0003008722524 | O23: 0.9999500462 | P23: 0.9999749239 | Q23: 0.007752190889 | R23: 0.003266882031 | S23: 0.9993516773 | T23: 0.9997273513
A24: 1993 | B24: 0.2012575 | C24: 0.04 | D24: 3.189933276 | E24: 41.26439411 | G24: 0.102885 | H24: 0.03704568068 | I24: 2.928015061 | J24: 31.35106707 | L24: 19 | M24: 0.0006419979963 | N24: 0.0003012488295 | O24: 0.9999464844 | P24: 0.9999748925 | Q24: 0.008304768797 | R24: 0.003225554535 | S24: 0.9993052876 | T24: 0.9997308056
A25: 1992 | B25: 0.2193075 | C25: 0.04 | D25: 3.064854203 | E25: 39.64639407 | G25: 0.106495 | H25: 0.03690751455 | I25: 2.810634918 | J25: 29.82930616 | L25: 20 | M25: 0.0006721455132 | N25: 0.0002993185656 | O25: 0.9999439706 | P25: 0.9999750534 | Q25: 0.008694751568 | R25: 0.003176671959 | S25: 0.9992725338 | T25: 0.9997348911
A26: 1991 | B26: 0.232845 | C26: 0.04 | D26: 2.944679551 | E26: 38.09183673 | G26: 0.1092025 | H26: 0.03685446198 | I26: 2.704914959 | J26: 28.60999237 | L26: 21 | M26: 0.0006856539101 | N26: 0.0002953834759 | O26: 0.9999428442 | P26: 0.9999753814 | Q26: 0.008869493722 | R26: 0.003124282692 | S26: 0.9992578537 | T26: 0.9997392695
A27: 1990 | B27: 0.243675 | C27: 0.04 | D27: 2.829217014 | E27: 36.59823444 | G27: 0.1110075 | H27: 0.03687338431 | I27: 2.60832432 | J27: 27.62177989 | L27: 22 | M27: 0.000689409456 | N27: 0.0002895435619 | O27: 0.9999425311 | P27: 0.9999758682 | Q27: 0.008918074778 | R27: 0.003066224731 | S27: 0.999253772 | T27: 0.9997441215
A28: 1989 | B28: 0.250895 | C28: 0.04 | D28: 2.718281828 | E28: 35.16319715 | G28: 0.113715 | H28: 0.03693714587 | I28: 2.517908627 | J28: 26.77332304 | L28: 23 | M28: 0.0006820033194 | N28: 0.0002863239795 | O28: 0.9999431486 | P28: 0.9999761365 | Q28: 0.008822270348 | R28: 0.003044528429 | S28: 0.9992618212 | T28: 0.9997459346
A29: 1988 | B29: 0.25631 | C29: 0.04 | D29: 2.611696473 | E29: 33.78442846 | G29: 0.1164225 | H29: 0.03701265904 | I29: 2.431002727 | J29: 25.97446644 | L29: 24 | M29: 0.0006694039231 | N29: 0.0002830234149 | O29: 0.9999441992 | P29: 0.9999764117 | Q29: 0.00865928686 | R29: 0.003024012319 | S29: 0.9992755129 | T29: 0.999747649
A30: 1987 | B30: 0.261725 | C30: 0.04 | D30: 2.50929039 | E30: 32.45972208 | G30: 0.1200325 | H30: 0.03707031504 | I30: 2.345778303 | J30: 25.15652756 | L30: 25 | M30: 0.0006567440273 | N30: 0.0002815696342 | O30: 0.9999452549 | P30: 0.9999765328 | Q30: 0.00849552076 | R30: 0.003019600895 | S30: 0.9992892682 | T30: 0.9997480177
A31: 1986 | B31: 0.2680425 | C31: 0.04 | D31: 2.410899706 | E31: 31.18695817 | G31: 0.124545 | H31: 0.03709107617 | I31: 2.26144429 | J31: 24.2843607 | L31: 26 | M31: 0.0006462235846 | N31: 0.0002816515792 | O31: 0.9999461321 | P31: 0.999976526 | Q31: 0.008359430235 | R31: 0.003024495704 | S31: 0.9993006974 | T31: 0.9997476086
A32: 1985 | B32: 0.27436 | C32: 0.04 | D32: 2.316366977 | E32: 29.96410005 | G32: 0.1308625 | H32: 0.03706846162 | I32: 2.178066799 | J32: 23.3551902 | L32: 27 | M32: 0.0006355184437 | N32: 0.0002850272665 | O32: 0.9999470247 | P32: 0.9999762446 | Q32: 0.008220950489 | R32: 0.003056318577 | S32: 0.9993123258 | T32: 0.9997449493
A33: 1984 | B33: 0.283385 | C33: 0.04 | D33: 2.225540928 | E33: 28.78919088 | G33: 0.1380825 | H33: 0.03700448503 | I33: 2.096123529 | J33: 22.38467879 | L33: 28 | M33: 0.000630684916 | N33: 0.0002894379773 | O33: 0.9999474277 | P33: 0.999975877 | Q33: 0.008158424857 | R33: 0.003090932409 | S33: 0.9993175757 | T33: 0.9997420567
A34: 1983 | B34: 0.294215 | C34: 0.04 | D34: 2.13827622 | E34: 27.66035056 | G34: 0.1471075 | H34: 0.0369010014 | I34: 2.016007412 | J34: 21.38699691 | L34: 29 | M34: 0.0006291129382 | N34: 0.0002965698103 | O34: 0.9999475588 | P34: 0.9999752825 | Q34: 0.00813809004 | R34: 0.003146187648 | S34: 0.999319283 | T34: 0.9997374389
A35: 1982 | B35: 0.30685 | C35: 0.04 | D35: 2.054433211 | E35: 26.5757727 | G35: 0.1579375 | H35: 0.03675040139 | I35: 1.9377107 | J35: 20.35920032 | L35: 30 | M35: 0.0006304028307 | N35: 0.0003060371838 | O35: 0.9999474512 | P35: 0.9999744933 | Q35: 0.008154775853 | R35: 0.0032154812 | S35: 0.9993178821 | T35: 0.9997316475
A36: 1981 | B36: 0.3221925 | C36: 0.04 | D36: 1.973877732 | E36: 25.53372175 | G36: 0.16967 | H36: 0.03653081641 | I36: 1.860832334 | J36: 19.27860881 | L36: 31 | M36: 0.0006359686012 | N36: 0.0003157274221 | O36: 0.9999469872 | P36: 0.9999736856 | Q36: 0.008226773644 | R36: 0.003271001556 | S36: 0.9993118369 | T36: 0.999727007
A37: 1980 | B37: 0.33934 | C37: 0.04 | D37: =+EXP(-$C37*($B$2-$A37)) -> 1.896480879 | E37: 24.5325302 | G37: 0.18411 | H37: 0.03620962381 | I37: =+EXP(-$H37*($H$2-$A37)) -> 1.784884988 | J37: =+EXP(-$H37*($I$2-$A37)) -> 18.11553585 | L37: 32 | M37: =+$B37*$D37/1000 -> 0.0006435518216 | N37: =+$G37*$I37/1000 -> 0.0003286151752 | O37: 0.9999463549 | P37: 0.9999726113 | Q37: 0.008324868797 | R37: 0.003335251306 | S37: 0.9993035998 | T37: 0.9997216366
A38: 1979 | B38: 0.359195 | C38: 0.04 | D38: 1.8221188 | E38: 23.57059593 | G38: 0.2012575 | H38: 0.03575459034 | I38: 1.709701605 | J38: 16.85441494 | L38: 33 | M38: 0.0006544959625 | N38: 0.0003440902707 | O38: 0.9999454423 | P38: 0.9999713213 | Q38: 0.008466440205 | R38: 0.003392077414 | S38: 0.9992917106 | T38: 0.9997168865
A39: 1978 | B39: 0.3835625 | C39: 0.04 | D39: 1.7506725 | E39: 22.64637964 | G39: 0.222015 | H39: 0.03514762076 | I39: 1.635693201 | J39: 15.51045665 | L39: 34 | M39: 0.0006714923209 | N39: 0.000363148426 | O39: 0.9999440251 | P39: 0.9999697326 | Q39: 0.008686301992 | R39: 0.003443554034 | S39: 0.9992732436 | T39: 0.9997125833
A40: 1977 | B40: 0.4124425 | C40: 0.04 | D40: 1.68202765 | E40: 21.7584024 | G40: 0.2463825 | H40: 0.03439472248 | I40: 1.56381976 | J40: 14.13132029 | L40: 35 | M40: 0.0006937396889 | N40: 0.0003852978219 | O40: 0.99994217 | P40: 0.9999678862 | Q40: 0.00897408988 | R40: 0.003481710022 | S40: 0.9992490655 | T40: 0.9997093935
A41: 1976 | B41: 0.44764 | C41: 0.04 | D41: 1.616074402 | E41: 20.90524324 | G41: 0.27436 | H41: 0.03352801453 | I41: 1.495313934 | J41: 12.78316543 | L41: 36 | M41: 0.0007234195454 | N41: 0.0004102543311 | O41: 0.999939695 | P41: 0.9999658057 | Q41: 0.009358023082 | R41: 0.003507189267 | S41: 0.9992167998 | T41: 0.9997072634
A42: 1975 | B42: 0.49096 | C42: 0.04 | D42: 1.552707219 | E42: 20.08553692 | G42: 0.30685 | H42: 0.03259926701 | I42: 1.431312617 | J42: 11.52991573 | L42: 37 | M42: 0.000762317136 | N42: 0.0004391982765 | O42: 0.9999364514 | P42: 0.9999633928 | Q42: 0.009861195208 | R42: 0.003537954643 | S42: 0.999174496 | T42: 0.9997046913
A43: 1974 | B43: 0.54511 | C43: 0.04 | D43: 1.491824698 | E43: 19.29797176 | G43: 0.34295 | H43: 0.03166721935 | I43: 1.372552567 | J43: 10.41632443 | L43: 38 | M43: 0.0008132085609 | N43: 0.0004707169027 | O43: 0.9999322073 | P43: 0.9999607651 | Q43: 0.01051951738 | R43: 0.003572278463 | S43: 0.9991191183 | T43: 0.9997018216
A44: 1973 | B44: 0.61009 | C44: 0.04 | D44: 1.433329415 | E44: 18.54128746 | G44: 0.3835625 | H44: 0.03078239732 | I44: 1.319221218 | J44: 9.460403208 | L44: 39 | M44: 0.0008744599425 | N44: 0.0005060037883 | O44: 0.9999270991 | P44: 0.9999578232 | Q44: 0.01131185407 | R44: 0.003628655906 | S44: 0.9990524226 | T44: 0.9996971079
A45: 1972 | B45: 0.687705 | C45: 0.04 | D45: 1.377127764 | E45: 17.81427318 | G45: 0.4286875 | H45: 0.02997385203 | I45: 1.270983253 | J45: 8.654828263 | L45: 40 | M45: 0.0009470576492 | N45: 0.0005448546335 | O45: 0.9999210443 | P45: 0.9999545841 | Q45: 0.01225096474 | R45: 0.003710216691 | S45: 0.9989733085 | T45: 0.9996902883
A46: 1971 | B46: 0.7770525 | C46: 0.03918727895 | D46: 1.315623835 | E46: 16.15608575 | G46: 0.48013 | H46: 0.0292416779 | I46: 1.227146733 | J46: 7.973783766 | L46: 41 | M46: 0.00102230879 | N46: 0.0005891899609 | O46: 0.9999147677 | P46: 0.9999508876 | Q46: 0.01255412682 | R46: 0.0038284528 | S46: 0.9989477544 | T46: 0.9996804011
A47: 1970 | B47: 0.88084 | C47: 0.03824710136 | D47: 1.257948989 | E47: 14.5457244 | G47: 0.53789 | H47: 0.028557732 | I47: 1.186901811 | J47: 7.381975163 | L47: 42 | M47: 0.001108051787 | N47: 0.0006384226152 | O47: 0.9999076154 | P47: 0.9999467825 | Q47: 0.01281245588 | R47: 0.003970690621 | S47: 0.9989259736 | T47: 0.9996685054
A48: 1969 | B48: 0.9972625 | C48: 0.03716424385 | D48: 1.204206952 | E48: 12.99198755 | G48: 0.601065 | H48: 0.02787448787 | I48: 1.149552159 | J48: 6.843776251 | L48: 43 | M48: 0.001200910436 | N48: 0.0006909555683 | O48: 0.999899869 | P48: 0.9999424021 | Q48: 0.01295642199 | R48: 0.004113554372 | S48: 0.9989138329 | T48: 0.9996565558
A49: 1968 | B49: 1.1290275 | C49: 0.03591824085 | D49: 1.154506481 | E49: 11.50107349 | G49: 0.67146 | H49: 0.02713922017 | I49: 1.11466831 | J49: 6.331055522 | L49: 44 | M49: 0.001303469566 | N49: 0.0007484551833 | O49: 0.9998913126 | P49: 0.9999376073 | Q49: 0.01298502825 | R49: 0.004251050541 | S49: 0.9989114204 | T49: 0.9996450537
A50: 1967 | B50: 1.2752325 | C50: 0.03449584955 | D50: 1.109031984 | E50: 10.08674232 | G50: 0.74727 | H50: 0.0263089906 | I50: 1.082125294 | J50: 5.828165996 | L50: 45 | M50: 0.00141427363 | N50: 0.0008086397681 | O50: 0.9998820674 | P50: 0.9999325884 | Q50: 0.01286294163 | R50: 0.004355213604 | S50: 0.9989217163 | T50: 0.999636339
A51: 1966 | B51: 1.43678 | C51: 0.0328983671 | D51: 1.068009605 | E51: 8.769609061 | G51: 0.828495 | H51: 0.02536220672 | I51: 1.052032927 | J51: 5.332955801 | L51: 46 | M51: 0.001534494841 | N51: 0.00087160402 | O51: 0.9998720354 | P51: 0.9999273373 | Q51: 0.01259999891 | R51: 0.004418327217 | S51: 0.9989438871 | T51: 0.9996310583
A52: 1965 | B52: 1.61367 | C52: 0.03116203564 | D52: 1.031652655 | E52: 7.580144905 | G52: 0.91694 | H52: 0.02430450036 | I52: 1.024602262 | J52: 4.853948625 | L52: 47 | M52: 0.00166474694 | N52: 0.0009394987983 | O52: 0.9998611651 | P52: 0.9999216747 | Q52: 0.01223185243 | R52: 0.004450779653 | S52: 0.9989749193 | T52: 0.9996283429
A53: 1964 | B53: 1.8077075 | C53: 0.02938631974 | D53: 1 | E53: 6.558254358 | G53: 1.0108 | H53: 0.02316872316 | I53: 1 | J53: 4.405255597 | L53: 48 | M53: 0.0018077075 | N53: 0.0010108 | O53: 0.9998492328 | P53: 0.9999157276 | Q53: 0.01185540559 | R53: 0.004452832357 | S53: 0.9990066403 | T53: 0.9996281712
A54: 1963 | B54: 2.0170875 | C54: 0.02769469524 | D54: 0.9726852869 | E54: 5.724560626 | G54: 1.110075 | H54: 0.02201001096 | I54: 0.978230442 | J54: 4.001345543 | L54: 49 | M54: 0.001961991334 | N54: 0.001085909158 | O54: 0.9998363535 | P54: 0.9999094625 | Q54: 0.01154693968 | R54: 0.004441793654 | S54: 0.9990326246 | T54: 0.9996290948
A55: 1962 | B55: 2.243615 | C55: 0.02618214199 | D55: 0.9489831045 | E55: 5.069756575 | G55: 1.214765 | H55: 0.020897262 | I55: 0.9590668255 | J55: 3.653297717 | L55: 50 | M55: 0.002129152728 | N55: 0.001165040812 | O55: 0.9998223972 | P55: 0.9999028614 | Q55: 0.0113745819 | R55: 0.004437898201 | S55: 0.9990471403 | T55: 0.9996294208
A56: 1961 | B56: 2.4863875 | C56: 0.02491808174 | D56: 0.9279715117 | E56: 4.572238849 | G56: 1.323065 | H56: 0.01990246167 | I56: 0.9420401483 | J56: 3.36709435 | L56: 51 | M56: 0.002307296767 | N56: 0.001246380349 | O56: 0.9998075216 | P56: 0.9998960756 | Q56: 0.01136835752 | R56: 0.004454884686 | S56: 0.9990476645 | T56: 0.9996279994
A57: 1960 | B57: 2.745405 | C57: 0.02394010369 | D57: 0.9086816967 | E57: 4.205554792 | G57: 1.4358775 | H57: 0.01908945614 | I57: 0.9264846283 | J57: 3.143596002 | L57: 52 | M57: 0.002494699274 | N57: 0.001330318432 | O57: 0.9997918703 | P57: 0.9998890725 | Q57: 0.01154595116 | R57: 0.004513818768 | S57: 0.9990327079 | T57: 0.999623068
A58: 1959 | B58: 3.0188625 | C58: 0.02324205211 | D58: 0.8902880112 | E58: 3.940395404 | G58: 1.5513975 | H58: 0.0185043023 | I58: 0.9116296002 | J58: 2.979495038 | L58: 53 | M58: 0.002687657091 | N58: 0.001414299883 | O58: 0.9997757522 | P58: 0.9998820652 | Q58: 0.01189551192 | R58: 0.004622381154 | S58: 0.9990032613 | T58: 0.9996139831
A59: 1958 | B59: 3.3076625 | C59: 0.02277141776 | D59: 0.8722942176 | E59: 3.746200888 | G59: 1.6687225 | H59: 0.01816934356 | I59: 0.8967160149 | J59: 2.868593749 | L59: 54 | M59: 0.002885254872 | N59: 0.00149637019 | O59: 0.9997592435 | P59: 0.9998752169 | Q59: 0.01239116819 | R59: 0.004786886931 | S59: 0.9989614914 | T59: 0.9996002149
A60: 1957 | B60: 3.61 | C60: 0.02245343649 | D60: 0.8545553059 | E60: 3.596085455 | G60: 1.7878525 | H60: 0.01808227243 | I60: 0.8811072648 | J60: 2.802997915 | L60: 55 | M60: 0.003084944654 | N60: 0.001575289826 | O60: 0.9997425571 | P60: 0.999868631 | Q60: 0.01298186849 | R60: 0.00501134683 | S60: 0.9989116869 | T60: 0.9995814255
A61: 1956 | B61: 3.9231675 | C61: 0.02221640748 | D61: 0.8371673738 | E61: 3.469875863 | G61: 1.9069825 | H61: 0.01822001615 | I61: 0.8643650142 | J61: 2.774084838 | L61: 56 | M61: 0.003284347833 | N61: 0.001648328956 | O61: 0.9997258915 | P61: 0.9998625354 | Q61: 0.01361290421 | R61: 0.005290131239 | S61: 0.9988584513 | T61: 0.9995580832
A62: 1955 | B62: 4.243555 | C62: 0.02201931577 | D62: 0.8202272508 | E62: 3.357049179 | G62: 2.0243075 | H62: 0.01854603887 | I62: 0.8462720916 | J62: 2.77328389 | L62: 57 | M62: 0.003480679451 | N62: 0.001713114942 | O62: 0.9997094796 | P62: 0.9998571282 | Q62: 0.01424582283 | R62: 0.005613979378 | S62: 0.9988050255 | T62: 0.9995309603
A63: 1954 | B63: 4.564845 | C63: 0.0218430894 | D63: 0.8037790235 | E63: 3.252834686 | G63: 2.1398275 | H63: 0.01901913504 | I63: 0.8268009101 | J63: 2.792768205 | L63: 58 | M63: 0.003669126657 | N63: 0.001769211325 | O63: 0.999693724 | P63: 0.999852446 | Q63: 0.01484868615 | R63: 0.005976042206 | S63: 0.9987541075 | T63: 0.9995006272
A64: 1953 | B64: 4.88794 | C64: 0.02168983513 | D64: 0.7877392173 | E64: 3.156807594 | G64: 2.25264 | H64: 0.01960173761 | I64: 0.8060422538 | J64: 2.826084242 | L64: 59 | M64: 0.00385042203 | N64: 0.001815723023 | O64: 0.9996785638 | P64: 0.9998485637 | Q64: 0.01543028611 | R64: 0.006366150408 | S64: 0.9987049583 | T64: 0.9994679332
A65: 1952 | B65: 5.214492627 | C65: 0.02158174237 | D65: 0.7718377585 | E65: 3.071759742 | G65: 2.27157449 | H65: 0.02026597829 | I65: 0.7841211524 | J65: 2.868619406 | L65: 60 | M65: 0.004024742301 | N65: 0.001781189607 | O65: 0.9996639845 | P65: 0.9998514462 | Q65: 0.01601766852 | R65: 0.006516282665 | S65: 0.9986552934 | T65: 0.9994553479
A66: 1951 | B66: 5.963965076 | C66: 0.02155272045 | D66: 0.7556436579 | E66: 3.001729862 | G66: 2.719273681 | H66: 0.02099623715 | I66: 0.7611300189 | J66: 2.917736355 | L66: 61 | M66: 0.004506632386 | N66: 0.002069720828 | O66: 0.9996236693 | P66: 0.9998273594 | Q66: 0.01790221206 | R66: 0.007934123678 | S66: 0.9984957662 | T66: 0.9993364064
A67: 1950 | B67: 6.702620131 | C67: 0.02163391139 | D67: 0.7386916047 | E67: 2.949676696 | G67: 3.177724676 | H67: 0.02178780475 | I67: 0.7371018017 | J67: 2.972461024 | L67: 62 | M67: 0.00495116922 | N67: 0.002342306584 | O67: 0.9995864633 | P67: 0.9998045979 | Q67: 0.0197705624 | R67: 0.009445662745 | S67: 0.9983373325 | T67: 0.999209433
A68: 1949 | B68: 7.425796135 | C68: 0.02183927251 | D68: 0.7206590866 | E68: 2.915742059 | G68: 3.612342304 | H68: 0.02264239491 | I68: 0.7120295087 | J68: 3.032772903 | L68: 63 | M68: 0.00535146746 | N68: 0.002572094316 | O68: 0.9995529468 | P68: 0.9997854057 | Q68: 0.02165170611 | R68: 0.01095541386 | S68: 0.9981775341 | T68: 0.9990824324
A69: 1948 | B69: 8.091977124 | C69: 0.0221772481 | D69: =+EXP(-$C69*($B$2-$A69)) -> 0.7012884664 | E69: 2.899411858 | G69: 3.992017091 | H69: 0.02356204001 | I69: =+EXP(-$H69*($H$2-$A69)) -> 0.6859211221 | J69: =+EXP(-$H69*($I$2-$A69)) -> 3.098685287 | L69: 64 | M69: =+$B69*$D69/1000 -> 0.005674810227 | N69: =+$G69*$I69/1000 -> 0.002738208843 | O69: =+(1-M69)^(0.0833333333333333) -> 0.9995258647 | P69: =+(1-N69)^(0.0833333333333333) -> 0.9997715291 | Q69: 0.02346197443 | R69: 0.01237000463 | S69: 0.9980234901 | T69: 0.9989632753
A70: 1947 | B70: 8.675108407 | C70: 0.022631596 | D70: 0.6806295285 | E70: =+EXP(-$C70*($C$2-$A70)) -> 2.897026922 | G70: 4.326657805 | H70: 0.02454318241 | I70: 0.6588666605 | J70: 3.169359679 | L70: =+$A$5-A70 -> 65 | M70: 0.005904534945 | N70: 0.002850690579 | O70: 0.9995066188 | P70: 0.9997621315 | Q70: =+B70*E70/1000 -> 0.02513202261 | R70: =+G70*J70/1000 -> 0.01371273479 | S70: =+(1-Q70)^(0.0833333333333333) -> 0.9978811459 | T70: =+(1-R70)^(0.0833333333333333) -> 0.9988500265
A71: 1946 | B71: 9.178520071 | C71: 0.02306542904 | D71: 0.6602229337 | E71: 2.889286933 | G71: 4.659864451 | H71: 0.02547270803 | I71: 0.6322257529 | J71: 3.227618535 | L71: 66 | M71: 0.006059869449 | N71: 0.002946086311 | O71: 0.9994936028 | P71: 0.9997541607 | Q71: 0.02651937811 | R71: 0.01504026487 | S71: 0.9977627264 | T71: 0.9987379207
A72: 1945 | B72: 9.647874616 | C72: 0.02353176742 | D72: 0.6394776671 | E72: 2.88328288 | G72: 5.049489172 | H72: 0.02642706551 | I72: 0.6052496601 | J72: 3.284511544 | L72: 67 | M72: 0.006169600352 | N72: 0.003056201605 | O72: 0.999484407 | P72: 0.9997449591 | Q72: 0.02781755171 | R72: 0.01658510547 | S72: 0.9976517791 | T72: 0.9986072892
A73: 1944 | B73: 10.14981038 | C73: 0.02398279299 | D73: 0.6189963766 | E73: 2.872672818 | G73: 5.507987483 | H73: 0.02737448032 | I73: 0.578400001 | J73: 3.335014857 | L73: 68 | M73: 0.006282695848 | N73: 0.003185819965 | O73: 0.9994749283 | P73: 0.9997341266 | Q73: 0.02915708438 | R73: 0.01836922009 | S73: 0.9975371545 | T73: 0.9984561905
A74: 1943 | B74: 10.75460918 | C74: 0.02428809455 | D74: 0.6004655635 | E74: 2.841659083 | G74: 6.051551294 | H74: 0.02817922396 | I74: 0.5533504776 | J74: 3.359212697 | L74: 69 | M74: 0.006457772463 | N74: 0.003348628799 | O74: 0.9994602529 | P74: 0.9997205184 | Q74: 0.03056093286 | R74: 0.02032844794 | S74: 0.9974168707 | T74: 0.9982899709
A75: 1942 | B75: 11.59327334 | C75: 0.02451494685 | D75: 0.5831395065 | E75: 2.800023381 | G75: 6.669949679 | H75: 0.02890633728 | I75: 0.52943789 | J75: 3.367148237 | L75: 70 | M75: 0.006760495695 | N75: 0.003531324085 | O75: 0.9994348721 | P75: 0.9997052456 | Q75: 0.03246143642 | R75: 0.0224587093 | S75: 0.9972537781 | T75: 0.9981088948
A76: 1941 | B76: 12.76552076 | C76: 0.0247409437 | D76: 0.5660676386 | E76: 2.757649515 | G76: 7.383954395 | H76: 0.02962528143 | I76: 0.505917598 | J76: 3.369069315 | L76: 71 | M76: 0.007226148193 | N76: 0.003735672471 | O76: 0.9993958173 | P76: 0.9996881597 | Q76: 0.03520283213 | R76: 0.02487705417 | S76: 0.997018006 | T76: 0.9979028922
A77: 1940 | B77: 14.34800397 | C77: 0.02466599839 | D77: 0.5532286111 | E77: 2.682206926 | G77: 8.257076823 | H77: 0.03001163585 | I77: 0.4866163443 | J77: 3.321662578 | L77: 72 | M77: 0.007937726309 | N77: 0.004018028539 | O77: 0.999336104 | P77: 0.9996645461 | Q77: 0.03848431563 | R77: 0.02742722308 | S77: 0.996734975 | T77: 0.9976851525
A78: 1939 | B78: 16.35576563 | C78: 0.0245981266 | D78: 0.5406662168 | E78: 2.60993923 | G78: 9.327298621 | H78: 0.03034682861 | I78: 0.4682885023 | J78: 3.265870411 | L78: 73 | M78: 0.008843009925 | N78: 0.004367866701 | O78: 0.9992600788 | P78: 0.9996352804 | Q78: 0.04268755435 | R78: 0.03046174858 | S78: 0.9963711456 | T78: 0.9974253742
A79: 1938 | B79: 18.74485292 | C79: 0.02445158925 | D79: 0.5295427819 | E79: 2.532382075 | G79: 10.61803727 | H79: 0.03051664843 | I79: 0.4522894812 | J79: 3.188761638 | L79: 74 | M79: 0.009926201559 | N79: 0.00480242657 | O79: 0.9991690292 | P79: 0.9995989142 | Q79: 0.04746912953 | R79: 0.03385838993 | S79: 0.995955471 | T79: 0.9971337106
A80: 1937 | B80: 21.50499955 | C80: 0.02423886393 | D80: 0.5197281846 | E80: 2.451838044 | G80: 12.17933531 | H80: 0.03050956199 | I80: 0.4387795423 | J80: 3.092110271 | L80: 75 | M80: 0.01117675438 | N80: 0.005344043171 | O80: 0.9990637982 | P80: 0.9995535685 | Q80: 0.05272677604 | R80: 0.0376598478 | S80: 0.9954961967 | T80: 0.9968061693
A81: 1936 | B81: 24.66175103 | C81: 0.02386457713 | D81: 0.5126262999 | E81: 2.361093305 | G81: 14.0724785 | H81: 0.03021574739 | I81: 0.429110453 | J81: 2.96763965 | L81: 76 | M81: 0.01264226218 | N81: 0.006038647623 | O81: 0.9989403239 | P81: 0.9994953812 | Q81: 0.05822869525 | R81: 0.04176204516 | S81: 0.9950130754 | T81: 0.9964513825
A82: 1935 | B82: 28.33171756 | C82: 0.02352331179 | D82: 0.5055157711 | E82: 2.278041113 | G82: 16.34037856 | H82: 0.02982738293 | I82: 0.4210540348 | J82: 2.840438388 | L82: 77 | M82: 0.01432213005 | N82: 0.006880182321 | O82: 0.9987985821 | P82: 0.9994248355 | Q82: 0.0645408174 | R82: 0.04641383853 | S82: 0.9944556133 | T82: 0.9960473744
A83: 1934 | B83: 32.61185585 | C83: 0.02309944001 | D83: 0.5000819969 | E83: 2.19324232 | G83: 18.99759411 | H83: 0.02924013238 | I83: 0.4159442794 | J83: 2.702465491 | L83: 78 | M83: 0.016308602 | N83: 0.007901940592 | O83: 0.9986306841 | P83: 0.999339108 | Q83: 0.07152570237 | R83: 0.05134034249 | S83: 0.9938347022 | T83: 0.995617533
A84: 1933 | B84: 37.56804896 | C84: 0.02257283726 | D84: 0.4967055144 | E84: 2.106238446 | G84: 22.10124542 | H84: 0.02845526261 | I84: 0.4139073423 | J84: 2.557483242 | L84: 79 | M84: 0.01866025708 | N84: 0.009147867753 | O84: 0.9984315183 | P84: 0.9992344626 | Q84: 0.07912726907 | R84: 0.05652356477 | S84: 0.9931540876 | T84: 0.9951630782
A85: 1932 | B85: 43.12551206 | C85: 0.02202422716 | D85: 0.4942196283 | E85: 2.023391915 | G85: 25.65798362 | H85: 0.02758161258 | I85: 0.4137010768 | J85: 2.417204247 | L85: 80 | M85: 0.02131347454 | N85: 0.01061473545 | O85: 0.9982062868 | P85: 0.9991111058 | Q85: 0.08725981243 | R85: 0.062020587 | S85: 0.9924202052 | T85: 0.9946786026
A86: 1931 | B86: 49.29428081 | C86: 0.02123548822 | D86: 0.4962025289 | E86: 1.931506242 | G86: 29.76179378 | H86: 0.02643661692 | I86: 0.4179437778 | J86: 2.269444583 | L86: 81 | M86: 0.0244599468 | N86: 0.01243875653 | O86: 0.9979384562 | P86: 0.99895748 | Q86: 0.09521221106 | R86: 0.06754274169 | S86: 0.9916967597 | T86: 0.9941892842
A87: 1930 | B87: 56.04780789 | C87: 0.02050446312 | D87: 0.4980017211 | E87: 1.849904273 | G87: 34.43291664 | H87: 0.02534585052 | I87: 0.4224184293 | J87: 2.139079327 | L87: 82 | M87: 0.02791190479 | N87: 0.01454509857 | O87: 0.9976437099 | P87: 0.9987797521 | Q87: 0.1036830793 | R87: 0.07365474016 | S87: 0.9909197086 | T87: 0.993644593
A88: 1929 | B88: 63.32721275 | C88: 0.01954456052 | D88: 0.5045644899 | E88: 1.762603989 | G88: 39.78912742 | H88: 0.02404102813 | I88: 0.4310910387 | J88: 2.008101635 | L88: 83 | M88: 0.03195266279 | N88: 0.01715273627 | O88: 0.9972974675 | P88: 0.9985592432 | Q88: 0.1116207978 | R88: 0.07990061183 | S88: 0.9901854306 | T88: 0.9930845571
A89: 1928 | B89: 71.01651774 | C89: 0.01858192769 | D89: 0.5122464629 | E89: 1.682522197 | G89: 45.76252663 | H89: 0.02275695765 | I89: 0.4407618926 | J89: 1.891168353 | L89: 84 | M89: 0.03637796002 | N89: 0.02017037785 | O89: 0.9969167517 | P89: 0.9983033928 | Q89: 0.1194868675 | R89: 0.0865446421 | S89: 0.9894518233 | T89: 0.9924849822
A90: 1927 | B90: 78.93344155 | C90: 0.01755773503 | D90: 0.5222357336 | E90: 1.60650152 | G90: 52.37305615 | H90: 0.02142826714 | I90: 0.4525550416 | J90: 1.783474116 | L90: 85 | M90: 0.04122186375 | N90: 0.0237016906 | O90: 0.9964981807 | P90: 0.998003072 | Q90: 0.1268066938 | R90: 0.09340599003 | S90: 0.9887637436 | T90: 0.9918615854
A91: 1926 | B91: 86.96453706 | C91: 0.01651095757 | D91: 0.5339695909 | E91: 1.536158619 | G91: 59.5269627 | H91: 0.0200866805 | I91: 0.4661285339 | J91: 1.685822699 | L91: 86 | M91: 0.04643641827 | N91: 0.02774721585 | O91: 0.9960454089 | P91: 0.9976577937 | Q91: 0.1335913231 | R91: 0.1003519049 | S91: 0.9881212356 | T91: 0.9912260843
A92: 1925 | B92: 94.97787631 | C92: 0.01546466779 | D92: 0.547100894 | E92: 1.471992161 | G92: 66.99388121 | H92: 0.01875926153 | I92: 0.4811331637 | J92: 1.59836549 | L92: 87 | M92: 0.05196248103 | N92: 0.03223297801 | O92: 0.9955631055 | P92: 0.9972733989 | Q92: 0.1398066894 | R92: 0.1070807078 | S92: 0.9875285763 | T92: 0.9906061438
A93: 1924 | B93: 102.8314427 | C93: 0.01443181213 | D93: 0.5614275823 | E93: 1.413916468 | G93: 74.70611483 | H93: 0.0174676069 | I93: 0.4972291584 | J93: 1.52077879 | L93: 88 | M93: 0.05773240828 | N93: 0.0371460586 | O93: 0.9950567601 | P93: 0.9968505077 | Q93: 0.1453950703 | R93: 0.1136114749 | S93: 0.9869923415 | T93: 0.99000034
A94: 1923 | B94: 110.3991576 | C94: 0.01342443689 | D94: 0.5767179735 | E94: 1.361738304 | G94: 82.71529587 | H94: 0.01622766179 | I94: 0.5141017204 | J94: 1.452427394 | L94: 89 | M94: 0.06366917844 | N94: 0.04252407591 | O94: 0.9945327979 | P94: 0.9963853235 | Q94: 0.1503347617 | R94: 0.1201379616 | S94: 0.9865156689 | T94: 0.9893908319
A95: 1922 | B95: 117.5683023 | C95: 0.01245393241 | D95: 0.5927010367 | E95: 1.315197064 | G95: 91.00055777 | H95: 0.01504979281 | I95: 0.5314791567 | J95: 1.392492688 | L95: 90 | M95: 0.06968285466 | N95: 0.0483648997 | O95: 0.9939989342 | P95: 0.9958773868 | Q95: 0.154625486 | R95: 0.1267176113 | S95: 0.9860995544 | T95: 0.9887721493
A96: 1921 | B96: 124.3955484 | C96: 0.01132556412 | D96: 0.6144674893 | E96: 1.268502216 | G96: 99.28453306 | H96: 0.01373893973 | I96: 0.5538981753 | J96: 1.334448015 | L96: 91 | M96: 0.0764370203 | N96: 0.05499352169 | O96: 0.9933955488 | P96: 0.995297467 | Q96: 0.1577960287 | R96: 0.132490048 | S96: 0.9857908295 | T96: 0.9882258398
A97: 1920 | B97: 133.0974965 | C97: 0.01023765935 | D97: 0.6373368149 | E97: 1.227222133 | G97: 107.459584 | H97: 0.01249493214 | I97: 0.5770784764 | J97: 1.283895278 | L97: 92 | M97: 0.08482793449 | N97: 0.06201261301 | O97: 0.9926402845 | P97: 0.9946793072 | Q97: 0.1633401936 | R97: 0.1379668525 | S97: 0.9852484088 | T97: 0.9877044198
A98: 1919 | B98: 142.6859348 | C98: 0.00918763405 | D98: 0.6613688793 | E98: 1.190728193 | G98: 115.6873039 | H98: 0.0113131831 | I98: 0.6010403314 | J98: 1.239800499 | L98: 93 | M98: 0.09436803679 | N98: 0.06953273549 | O98: 0.9917738319 | P98: 0.9940122995 | Q98: 0.1699001653 | R98: 0.1434291772 | S98: 0.9846023333 | T98: 0.9871813449
A99: 1918 | B99: 154.9583241 | C99: 0.008176969819 | D99: 0.6865057955 | E99: 1.158568808 | G99: 127.7386836 | H99: 0.01018589743 | I99: 0.6259083765 | J99: 1.201230147 | L99: 94 | M99: 0.1063797876 | N99: 0.07995271207 | O99: 0.9906709207 | P99: 0.9930798709 | Q99: 0.1795298808 | R99: 0.1534435576 | S99: 0.9836453972 | T99: 0.9862143707
A100: 1917 | B100: 166.5600749 | C100: 0.007208722466 | D100: 0.712617865 | E100: 1.130373695 | G100: 138.7554836 | H100: 0.009103698622 | I100: 0.6518936556 | J100: 1.167381115 | L100: 95 | M100: 0.118693685 | N100: 0.09045381947 | O100: 0.989526069 | P100: 0.992130337 | Q100: 0.1882751274 | R100: 0.1619805312 | S100: 0.982767391 | T100: 0.9853817374
A101: 1916 | B101: 179.0365306 | C101: 0.006281341428 | D101: =+EXP(-$C101*($B$2-$A101)) -> 0.7397045801 | E101: 1.105725259 | G101: 150.532217 | H101: 0.008057359793 | I101: =+EXP(-$H101*($H$2-$A101)) -> 0.6792586677 | J101: =+EXP(-$H101*($I$2-$A101)) -> 1.137596561 | L101: 96 | M101: =+$B101*$D101/1000 -> 0.1324341417 | N101: =+$G101*$I101/1000 -> 0.1022503132 | O101: 0.9882311468 | P101: 0.9910516111 | Q101: 0.1979652142 | R101: 0.1712449323 | S101: 0.9817843396 | T101: 0.9844693126
A102: 1915 | B102: 192.4257965 | C102: 0.005581341428 | D102: 0.7607231918 | E102: 1.087324532 | G102: 163.1481052 | H102: 0.007039250276 | I102: 0.7082747019 | J102: 1.111364738 | L102: 97 | M102: 0.1463827661 | N102: 0.1155536756 | O102: 0.9868972327 | P102: 0.9898193892 | Q102: 0.2092292892 | R102: 0.1813170512 | S102: 0.9806278308 | T102: 0.9834666684
A103: 1914 | B103: 206.9396905 | C103: 0.004881341428 | D103: 0.7834350864 | E103: 1.070727988 | G103: 176.7120372 | H103: 0.006044165386 | I103: 0.7391840995 | J103: 1.088301599 | L103: 98 | M103: 0.1621238143 | N103: 0.1306227281 | O103: 0.9853676964 | P103: 0.9884029286 | Q103: 0.2215761185 | R103: 0.1923159927 | S103: 0.9793426748 | T103: 0.9823587632
A104: 1913 | B104: 222.5991268 | C104: 0.004181341428 | D104: 0.8079554058 | E104: 1.05586194 | G104: 191.2903424 | H104: 0.005344165386 | I104: 0.7614335026 | J104: 1.071944351 | L104: 99 | M104: 0.1798501678 | N104: 0.1456548754 | O104: 0.9836133927 | P104: 0.9869673337 | Q104: 0.2350339459 | R104: 0.2050526019 | S104: 0.9779204175 | T104: 0.9810584122
A105: 1912 | B105: 239.5389285 | C105: 0.003481341428 | D105: 0.834410531 | E105: 1.042660998 | G105: 206.9956576 | H105: 0.004644165386 | I105: 0.7854514743 | J105: 1.057312155 | L105: 100 | M105: 0.1998738046 | N105: 0.1625850445 | O105: 0.9815894321 | P105: 0.9853224833 | Q105: 0.2497578982 | R105: 0.2188590248 | S105: 0.9763378349 | T105: 0.9796270869
A106: 1911 | B106: 257.9148547 | C106: 0.002981341428 | D106: 0.853840308 | E106: 1.033338431 | G106: 223.9572017 | H106: 0.004144165386 | I106: 0.8028071422 | J106: 1.046640823 | L106: 101 | M106: 0.220218099 | N106: 0.1797944411 | O106: 0.9794849392 | P106: 0.983618962 | Q106: 0.2665133312 | R106: 0.2344027498 | S106: 0.9745018892 | T106: 0.9779876346
A107: 1910 | B107: 277.9074627 | C107: 0.002481341428 | D107: 0.874596679 | E107: 1.025123829 | G107: 242.3237194 | H107: 0.003644165386 | I107: 0.8213672651 | J107: 1.037113791 | L107: 102 | M107: 0.243056944 | N107: 0.1990367707 | O107: 0.9770615751 | P107: 0.9816749634 | Q107: 0.2848895623 | R107: 0.2513172712 | S107: 0.9724436089 | T107: 0.9761685643
A108: 1909 | B108: 299.7266938 | C108: 0.001981341428 | D108: 0.8967539314 | E108: 1.017992014 | G108: 262.2669857 | H108: 0.003144165386 | I108: 0.8411972568 | J108: 1.028701666 | L108: 103 | M108: 0.268781091 | N108: 0.2206182689 | O108: 0.9742504561 | P108: 0.9794430415 | Q108: 0.3051193805 | R108: 0.269794485 | S108: 0.9701208753 | T108: 0.974137867
A109: 1908 | B109: 323.6172424 | C109: 0.001481341428 | D109: 0.9203924535 | E109: 1.01192123 | G109: 283.9859471 | H109: 0.002644165386 | I109: 0.8623679342 | J109: 1.021378641 | L109: 104 | M109: 0.2978548678 | N109: 0.2449003745 | O109: 0.9709620163 | P109: 0.9768630618 | Q109: 0.3274751579 | R109: 0.2900571805 | S109: 0.9674808131 | T109: 0.9718560612
A110: 1907 | B110: 349.8646839 | C110: 0.0009813414284 | D110: 0.945599216 | E110: 1.006893038 | G110: 307.7115571 | H110: 0.002144165386 | I110: 0.8849559343 | J110: 1.015122361 | L110: 105 | M110: 0.3308317708 | N110: 0.2723111685 | O110: 0.9670774933 | P110: 0.9738576402 | Q110: 0.3522763146 | R110: 0.3123648823 | S110: 0.9644561383 | T110: 0.9692738677
A111: 1906 | B111: 378.8021251 | C111: 0.0004813414284 | D111: 0.9724682976 | E111: 1.002892223 | G111: 333.7122882 | H111: 0.001644165386 | I111: 0.9090441716 | J111: 1.009913812 | L111: 106 | M111: 0.3683730578 | N111: 0.3033592106 | O111: 0.9624356922 | P111: 0.9703254186 | Q111: 0.3798977053 | R111: 0.337020649 | S111: 0.9609599285 | T111: 0.9663289712
A112: 1905 | B112: 410.8166832 | C112: 0 | D112: 1 | E112: 1 | G112: 362.3001402 | H112: 0.001144165386 | I112: 0.9347223387 | J112: 1.005737222 | L112: 107 | M112: 0.4108166832 | N112: 0.3386500344 | O112: 0.9568727865 | P112: 0.966130838 | Q112: 0.4108166832 | R112: 0.3643787366 | S112: 0.9568727865 | T112: 0.9629414205
A113: 1904 | B113: 446.3541052 | C113: 0 | D113: 1 | E113: 1 | G113: 393.8366072 | H113: 0.0006441653861 | I113: 0.9620874547 | J113: 1.002579984 | L113: 108 | M113: 0.4463541052 | N113: 0.378905259 | O113: 0.9519248707 | P113: 0.9610879991 | Q113: 0.4463541052 | R113: 0.3948526993 | S113: 0.9519248707 | T113: 0.9590069584
A114: 1903 | B114: 485.9177294 | C114: 0 | D114: 1 | E114: 1 | G114: 428.7373041 | H114: 0.0001441653861 | I114: 0.9912444663 | J114: 1.00043259 | L114: 109 | M114: 0.4859177294 | N114: 0.4249834802 | O114: 0.9460615356 | P114: 0.9549340081 | Q114: 0.4859177294 | R114: 0.4289227714 | S114: 0.9460615356 | T114: 0.9543871214
A115: 1902 | B115: 530.053478 | C115: 0 | D115: 1 | E115: 1 | G115: 467.4723748 | H115: 0 | I115: 1 | J115: 1 | L115: 110 | M115: 0.530053478 | N115: 0.4674723748 | O115: 0.9390110508 | P115: 0.9488447927 | Q115: 0.530053478 | R115: 0.4674723748 | S115: 0.9390110508 | T115: 0.9488447927
A116: 1901 | B116: 579.3028235 | C116: 0 | D116: 1 | E116: 1 | G116: 510.5564862 | H116: 0 | I116: 1 | J116: 1 | L116: 111 | M116: 0.5793028235 | N116: 0.5105564862 | O116: 0.9303880703 | P116: 0.9421973566 | Q116: 0.5793028235 | R116: 0.5105564862 | S116: 0.9303880703 | T116: 0.9421973566
A117: 1900 | B117: 634.0843676 | C117: 0 | D117: 1 | E117: 1 | G117: 558.5152106 | H117: 0 | I117: 1 | J117: 1 | L117: 112 | M117: 0.6340843676 | N117: 0.5585152106 | O117: 0.9196341292 | P117: 0.9341350021 | Q117: 0.6340843676 | R117: 0.5585152106 | S117: 0.9196341292 | T117: 0.9341350021
A118: 1899 | B118: 694.417984 | C118: 0 | D118: 1 | E118: 1 | G118: 611.7996277 | H118: 0 | I118: 1 | J118: 1 | L118: 113 | M118: 0.694417984 | N118: 0.6117996277 | O118: 0.9059286254 | P118: 0.9241759494 | Q118: 0.694417984 | R118: 0.6117996277 | S118: 0.9059286254 | T118: 0.9241759494
A119: 1898 | B119: 759.3062472 | C119: 0 | D119: 1 | E119: 1 | G119: 670.5887689 | H119: 0 | I119: 1 | J119: 1 | L119: 114 | M119: 0.7593062472 | N119: 0.6705887689 | O119: 0.8880867724 | P119: 0.9116151489 | Q119: 0.7593062472 | R119: 0.6705887689 | S119: 0.8880867724 | T119: 0.9116151489
A120: 1897 | B120: 825.4087903 | C120: 0 | D120: 1 | E120: 1 | G120: 734.3513224 | H120: 0 | I120: 1 | J120: 1 | L120: 115 | M120: 0.8254087903 | N120: 0.7343513224 | O120: 0.8646397508 | P120: 0.8954176242 | Q120: 0.8254087903 | R120: 0.7343513224 | S120: 0.8646397508 | T120: 0.8954176242
A121: 1896 | B121: 884.5799335 | C121: 0 | D121: 1 | E121: 1 | G121: 800.9065865 | H121: 0 | I121: 1 | J121: 1 | L121: =+$A$5-A121 -> 116 | M121: 0.8845799335 | N121: 0.8009065865 | O121: =+(1-M121)^(0.0833333333333333) -> 0.8353274953 | P121: 0.8741542521 | Q121: =+B121*E121/1000 -> 0.8845799335 | R121: =+G121*J121/1000 -> 0.8009065865 | S121: =+(1-Q121)^(0.0833333333333333) -> 0.8353274953 | T121: 0.8741542521
A122: 1895 | B122: 922.0103792 | C122: 0 | D122: 1 | E122: 1 | G122: 864.5744447 | H122: 0 | I122: 1 | J122: 1 | L122: =+$A$5-A122 -> 117 | M122: 0.9220103792 | N122: 0.8645744447 | O122: 0.8084808436 | P122: 0.8465287626 | Q122: =+B122*E122/1000 -> 0.9220103792 | R122: =+G122*J122/1000 -> 0.8645744447 | S122: 0.8084808436 | T122: 0.8465287626
A123: 1894 | B123: 930 | C123: 0 | D123: 1 | E123: 1 | G123: 935 | H123: 0 | I123: 1 | J123: 1 | L123: =+$A$5-A123 -> 118 | M123: 0.93 | N123: 0.935 | O123: 0.8012317859 | P123: 0.796298895 | Q123: =+B123*E123/1000 -> 0.93 | R123: =+G123*J123/1000 -> 0.935 | S123: 0.8012317859 | T123: 0.796298895
A124: 1893 | B124: 1000 | C124: 0 | D124: 1 | E124: 1 | G124: 1000 | H124: 0 | I124: 1 | J124: 1 | L124: =+$A$5-A124 -> 119 | M124: 1 | N124: 1 | O124: 0 | P124: 0 | Q124: =+B124*E124/1000 -> 1 | R124: =+G124*J124/1000 -> 1 | S124: 0 | T124: 0
A125: 1892 | B125: 1000 | C125: 0 | D125: 1 | E125: 1 | G125: 1000 | H125: 0 | I125: 1 | J125: 1 | L125: =+$A$5-A125 -> 120 | M125: 1 | N125: 1 | O125: 0 | P125: 0 | Q125: =+B125*E125/1000 -> 1 | R125: =+G125*J125/1000 -> 1 | S125: 0 | T125: 0
